Workbook

Sheet User interface
B1: Radiata Pine Calculator Version 4.0 Pro Registered User: NZ Farm Forestry Association
B3: Stand information | C3: 300-index | D3: 26 | J3: Stand parameters at clear-felling
C4: Site index (m) | D4: 28.3 | E4: Survival | J4: Age | K4: DBH | L4: MTH | M4: SPH | N4: BA | O4: Vol | P4: MH
C5: Stems/ha planted | D5: 850 | E5: 0.95 | J5: =D6 -> 30 | K5: =VLOOKUP('User interface'!$J$5+1,'300 Index'!$G$5:$Q$95,10) -> 51.62299901 | L5: =VLOOKUP('User interface'!$J$5+1,'300 Index'!$G$5:$Q$95,4) -> 38.56293938 | M5: =VLOOKUP('User interface'!$J$5+1,'300 Index'!$G$5:$Q$95,2) -> 292.8839309 | N5: =VLOOKUP('User interface'!$J$5+1,'300 Index'!$G$5:$Q$95,8) -> 61.31314636 | O5: =VLOOKUP('User interface'!$J$5+1,'300 Index'!$G$5:$Q$95,6,TRUE) -> 783.006649 | P5: =calcmeanht(L5,M5) -> 37.1138852
C6: Rotation age (years) | D6: 30
C7: Altitude (m) | D7: 300 | F7: =IF(Change!J1>0,"PUSH RUN TO UPDATE","") ->  | J7: BIX | K7: Juvenile | L7: PLI | M7: Density | N7: SED | O7: SED (pr) | P7: Grazing
C8: Latitude (0S) | D8: 40 | J8: =Clearfell!N27 -> 5.168816802 | K8: =calcjuvenile(D4,'300 Index'!G6:G105,'300 Index'!P6:P105,'300 Index'!H6:H105) -> 0.3306564149 | L8: =conref4(Clearfell!O31) -> 6.627316819 | M8: =VLOOKUP('User interface'!$J$5+1,'300 Index'!$G$5:$AO$95,35,TRUE)*1000 -> 361.0274545 | N8: =Clearfell!N35 -> 33.04343828 | O8: =Clearfell!N29 -> 41.64334649 | P8: =UnderStoreyGrazing(Summary!R3,D36) -> 0
B9: =IF(Change!P6>0,"Warning! Pruned height and pruned log length (in log specs) do not match up!","") -> 
B10: Prunings | D10: Prune 1 | E10: Prune 2 | F10: Prune 3 | G10: Prune 4 | H10: Prune 5 | J10: Pruning results | L10: Prune 1 | M10: Prune 2 | N10: Prune 3 | O10: Prune 4 | P10: Prune 5
C11: Age at pruning (years) | D11: 5.5 | E11: 6.8 | F11: 8 | J11: DOS (cm) | L11: =conref3(Summary!D28) -> 15.64775564 | M11: =conref3(Summary!E28) -> 16.71055368 | N11: =conref3(Summary!F28) -> 15.93475311 | O11: =conref3(Summary!G28) ->  | P11: =conref3(Summary!H28) -> 
C12: Pruned height (m) | D12: 2.4 | E12: 4.6 | F12: 6 | J12: GCL at pruning (m) | L12: =conref3(Summary!D29) -> 3.840152185 | M12: =conref3(Summary!E29) -> 3.657934405 | N12: =conref3(Summary!F29) -> 4.142832375 | O12: =conref3(Summary!G29) ->  | P12: =conref3(Summary!H29) -> 
C13: Stems per hectare | D13: 450 | E13: 350 | F13: 320 | J13: MTH at pruning (m) | L13: =conref3(Summary!D23) -> 6.587147924 | M13: =conref3(Summary!E23) -> 8.639669382 | N13: =conref3(Summary!F23) -> 10.57537857 | O13: =conref3(Summary!G23) ->  | P13: =conref3(Summary!H23) -> 
C14: Target DOS (cm) | J14: FC pruned SPH | L14: =conref3(Summary!D19) ->  | M14: =conref3(Summary!E19) ->  | N14: =conref3(Summary!F19) -> 292.8839309 | O14: =conref3(Summary!G19) ->  | P14: =conref3(Summary!H19) -> 
C15: Target green crown length (m) | J15: FC pruned TSV (m3) | L15: =conref3(Summary!D21) ->  | M15: =conref3(Summary!E21) ->  | N15: =conref3(Summary!F21) -> 783.006649 | O15: =conref3(Summary!G21) ->  | P15: =conref3(Summary!H21) -> 
B17: Thinnings | D17: Thin 1 | E17: Thin 2 | F17: Thin 3 | G17: Thin 4 | H17: Thin 5 | J17: Thinning results | L17: Thin 1 | M17: Thin 2 | N17: Thin 3 | O17: Thin 4 | P17: Thin 5
C18: Age at thinning (years) | D18: 8.8 | J18: MTH at thinning | L18: =conref3(Summary!D14) -> 11.87300152 | M18: =conref3(Summary!E14) ->  | N18: =conref3(Summary!F14) ->  | O18: =conref3(Summary!G14) ->  | P18: =conref3(Summary!H14) -> 
C19: SPH after thinning | D19: 307 | J19: SPH before thin | L19: =conref3(Summary!D4) -> 804.1138833 | M19: =conref3(Summary!E4) ->  | N19: =conref3(Summary!F4) ->  | O19: =conref3(Summary!G4) ->  | P19: =conref3(Summary!H4) -> 
C20: Thinning coefficient | D20: 0.78 | J20: SPH thinnings | L20: =conref3(Summary!D6) -> 497.1138833 | M20: =conref3(Summary!E6) ->  | N20: =conref3(Summary!F6) ->  | O20: =conref3(Summary!G6) ->  | P20: =conref3(Summary!H6) -> 
C21: Production or waste (P/W) | D21: W | J21: DBH thinnings (cm) | L21: =conref3(Summary!D13) -> 19.25731973 | M21: =conref3(Summary!E13) ->  | N21: =conref3(Summary!F13) ->  | O21: =conref3(Summary!G13) ->  | P21: =conref3(Summary!H13) -> 
C22: Target final crop stocking | D22: 270 | J22: Vol thinnings (m3/ha) | L22: =conref3(Summary!D9) -> 65.08873889 | M22: =conref3(Summary!E9) ->  | N22: =conref3(Summary!F9) ->  | O22: =conref3(Summary!G9) ->  | P22: =conref3(Summary!H9) -> 
B24: Financial | C24: Annual fixed costs ($/ha) | D24: 46 | F24: Model Adjustments | J24: Volume by log grades
C25: Establishment costs (cents/tree) | D25: 50 | F25: Mort + | G25: 0
C26: Clearfell Logging Cost ($/m3) | D26: 35 | F26: Mort x | G26: 0 | J26: Log grade | K26: Thin 1 | L26: Thin 2 | M26: Thin 3 | N26: Thin 4 | O26: Thin 5 | P26: Clearfell
C27: Production Thin Logging Cost ($/m3) | D27: 45 | F27: Drift | G27: 0 | J27: =conref2(Clearfell!B2) -> Pruned | K27: =conref3('Prod thin 1'!B35) ->  | L27: =conref3('Prod thin 2'!B35) ->  | M27: =conref3('Prod thin 3'!B35) ->  | N27: =conref3('Prod thin 4'!B35) ->  | O27: =conref3('Prod thin 5'!B35) ->  | P27: =conref3(Clearfell!B35) -> 205.2809204
C28: Labour Cost ($/hr) | D28: 25 | J28: =conref2(Clearfell!C2) -> S1 | K28: =conref3('Prod thin 1'!B36) ->  | L28: =conref3('Prod thin 2'!B36) ->  | M28: =conref3('Prod thin 3'!B36) ->  | N28: =conref3('Prod thin 4'!B36) ->  | O28: =conref3('Prod thin 5'!B36) ->  | P28: =conref3(Clearfell!B36) -> 9.512173717
C29: Labour Supervision (%) | D29: 12 | J29: =conref2(Clearfell!D2) -> S2 | K29: =conref3('Prod thin 1'!B37) ->  | L29: =conref3('Prod thin 2'!B37) ->  | M29: =conref3('Prod thin 3'!B37) ->  | N29: =conref3('Prod thin 4'!B37) ->  | O29: =conref3('Prod thin 5'!B37) ->  | P29: =conref3(Clearfell!B37) -> 53.86143062
C30: Discount rate (%) | D30: 7 | F30: Calibrate indices | J30: =conref2(Clearfell!E2) -> S3 | K30: =conref3('Prod thin 1'!B38) ->  | L30: =conref3('Prod thin 2'!B38) ->  | M30: =conref3('Prod thin 3'!B38) ->  | N30: =conref3('Prod thin 4'!B38) ->  | O30: =conref3('Prod thin 5'!B38) ->  | P30: =conref3(Clearfell!B38) -> 56.32005595
F31: Age (years) | H31: 12 | J31: =conref2(Clearfell!F2) -> L1 | K31: =conref3('Prod thin 1'!B39) ->  | L31: =conref3('Prod thin 2'!B39) ->  | M31: =conref3('Prod thin 3'!B39) ->  | N31: =conref3('Prod thin 4'!B39) ->  | O31: =conref3('Prod thin 5'!B39) ->  | P31: =conref3(Clearfell!B39) -> 55.19774255
B32: Land & livestock | C32: Land Value ($/ha) | D32: 0 | F32: Stocking (sph) | H32: 300 | J32: =conref2(Clearfell!G2) -> L2 | K32: =conref3('Prod thin 1'!B40) ->  | L32: =conref3('Prod thin 2'!B40) ->  | M32: =conref3('Prod thin 3'!B40) ->  | N32: =conref3('Prod thin 4'!B40) ->  | O32: =conref3('Prod thin 5'!B40) ->  | P32: =conref3(Clearfell!B40) -> 118.8921868
C33: Livestock Carrying Capacity (LSU/ha) | D33: 0 | F33: DBH (cm) | J33: =conref2(Clearfell!H2) -> L3 | K33: =conref3('Prod thin 1'!B41) ->  | L33: =conref3('Prod thin 2'!B41) ->  | M33: =conref3('Prod thin 3'!B41) ->  | N33: =conref3('Prod thin 4'!B41) ->  | O33: =conref3('Prod thin 5'!B41) ->  | P33: =conref3(Clearfell!B41) -> 77.40670944
C34: Livestock capital value ($/LSU) | D34: 0 | F34: Basal area (m2/ha) | H34: 18 | J34: =conref2(Clearfell!I2) -> Pulp | K34: =conref3('Prod thin 1'!B42) ->  | L34: =conref3('Prod thin 2'!B42) ->  | M34: =conref3('Prod thin 3'!B42) ->  | N34: =conref3('Prod thin 4'!B42) ->  | O34: =conref3('Prod thin 5'!B42) ->  | P34: =conref3(Clearfell!B42) -> 89.08443211
C35: Livestock Gross Margin ($/lsu/yr) | D35: 0 | F35: Volume (m3/ha) | J35: =conref2(Clearfell!J2) ->  | K35: =conref3('Prod thin 1'!B43) ->  | L35: =conref3('Prod thin 2'!B43) ->  | M35: =conref3('Prod thin 3'!B43) ->  | N35: =conref3('Prod thin 4'!B43) ->  | O35: =conref3('Prod thin 5'!B43) ->  | P35: =conref3(Clearfell!B43) -> 
C36: Understorey grazing (Y/N) | D36: N | F36: MTH (m) | H36: 18 | J36: =conref2(Clearfell!K2) ->  | K36: =conref3('Prod thin 1'!B44) ->  | L36: =conref3('Prod thin 2'!B44) ->  | M36: =conref3('Prod thin 3'!B44) ->  | N36: =conref3('Prod thin 4'!B44) ->  | O36: =conref3('Prod thin 5'!B44) ->  | P36: =conref3(Clearfell!B44) -> 
F37: MH (m) | J37: Merchant. | K37: =IF(L22<>"",SUM(K27:K36),"") -> 0 | L37: =IF(M22<>"",SUM(L27:L36),"") ->  | M37: =IF(N22<>"",SUM(M27:M36),"") ->  | N37: =IF(O22<>"",SUM(N27:N36),"") ->  | O37: =IF(P22<>"",SUM(O27:O36),"") ->  | P37: =SUM(P27:P36) -> 665.5556517
B38: Log quality | C38: Clearfell yield (%) | D38: 85 | J38: Waste | K38: =IF(L22<>"",L22-K37,"") -> 65.08873889 | L38: =IF(M22<>"",M22-L37,"") ->  | M38: =IF(N22<>"",N22-M37,"") ->  | N38: =IF(O22<>"",O22-N37,"") ->  | O38: =IF(P22<>"",P22-O37,"") ->  | P38: =O5-$P$37 -> 117.4509974
C39: Thinning Yield Reduction (%) | D39: 10
C40: B.H. Outerwood Density (kg/m3) | D40: 410 | J40: Economic results
C41: Density measurement age (yrs) | D41: 15 | J41: NPV | K41: LEV | L41: IRR | M41: EFGM | N41: Stumpage | O41: Value/m3 | P41: Labour
C42: Pruned log sweep (mm/m) | D42: 8 | J42: =Economics!D29 -> 2025.572824 | K42: =Economics!D30 -> 2331.908985 | L42: =Economics!D32 -> 0.09658432007 | M42: =Economics!D33 -> 0 | N42: =Economics!G15-Economics!G23 -> 33317.45402 | O42: =Economics!D36 -> 85.05960648 | P42: =Economics!D35 -> 66.33314641
C43: Soil C (%) | D43: 5.3
C44: Soil N (%) | D44: 0.37
C45: Mean annual temperature (ºC) | D45: 12
C46: Theoretical clearfell yield (%) | D46: =Clearfell!N39*100 -> 96.7898541
B49: Developed for Future Forests Research - based on NZFFA Radiata Pine Calculator 2003-2007 produced by Leith Knowles - this version released in March 2014
B50: For assitance, contact Mark Kimberley, Scion Research

Sheet Stand history
L3: CO2 equivalents (t/ha)
B4: Age | C4: DBH | D4: MTH | E4: MH | F4: SPH | G4: BA | H4: VOL | I4: Root Biomass | J4: Grazing | K4: Crown closure | L4: Rotation 1 | M4: Rotation 2 | N4: This sheet displays detailed stand-level
B5: 1 | C5: 0 | D5: 0.7819607947 | E5: 0.7304766754 | F5: 807.5 | G5: 0 | H5: 0.06164375601 | K5: 0 | L5: 0.1664496188 | M5: 331.8353081 | N5: results on a year-by-year basis.
B6: 2 | C6: 0.308795286 | D6: 1.754166532 | E6: 1.638675201 | F6: 807.4110303 | G6: 0.006047941728 | H6: 0.3721075422 | I6: 0.004017509946 | K6: 0 | L6: 0.9580740883 | M6: 283.3292942
B7: 3 | C7: 2.585148355 | D7: 2.968362086 | E7: 2.772948473 | F7: 807.0404286 | G7: 0.4236798696 | H7: 1.101244927 | I7: 0.4686652428 | K7: 1.326656982e-05 | L7: 2.608101923 | M7: 243.52449 | N7: Press the 'Generate' button to access
B8: 4 | C8: 5.576420517 | D8: 4.340864533 | E8: 4.055122916 | F8: 806.6699694 | G8: 1.970509434 | H8: 5.014592294 | I8: 2.621393668 | K8: 0.005840631563 | L8: 11.76543932 | M8: 217.7423302 | N8: these results for the latest run
B9: 5 | C9: 8.829616663 | D9: 5.819651472 | E9: 5.43660333 | F9: 806.298201 | G9: 4.937998861 | H9: 13.93150141 | I9: 7.335089763 | K9: 0.04922605875 | L9: 29.19617999 | M9: 205.6578937
B10: 6 | C10: 12.11423377 | D10: 7.368445917 | E10: 6.88350425 | F10: 805.9097736 | G10: 9.290731711 | H10: 29.80531067 | I10: 14.88913099 | K10: 0.1586120821 | L10: 57.35396134 | M10: 208.8264644
B11: 7 | C11: 14.90579905 | D11: 8.960483025 | E11: 8.370832622 | F11: 805.4528019 | G11: 14.0579572 | H11: 51.26330059 | I11: 23.67859249 | K11: 0.1984824367 | L11: 90.26050782 | M11: 220.5286267
B12: 8 | C12: 17.48092889 | D12: 10.57537857 | E12: 9.879571648 | F12: 804.816655 | G12: 19.3195748 | H12: 79.44724762 | I12: 33.80971025 | K12: 0.2731178857 | L12: 130.9119996 | M12: 243.1479078
B13: 9 | C13: 19.82344468 | D13: 12.19731439 | E13: 11.39499057 | F13: 803.8492837 | G13: 24.81443961 | H13: 113.9490364 | I13: 44.75647404 | K13: 0.2923551572 | L13: 171.3847735 | M13: 268.2531718
B14: 10 | C14: 21.90802392 | D14: 13.81388373 | E14: 13.27055509 | F14: 306.8365288 | G14: 11.56871361 | H14: 58.74338511 | I14: 21.37264358 | K14: 0.3255231548 | L14: 174.7511658 | M14: 258.4955289
B15: 11 | C15: 23.94895427 | D15: 15.41530636 | E15: 14.8093243 | F15: 306.6596083 | G15: 13.81660311 | H15: 76.87527095 | I15: 49.00923811 | K15: 0.4039257135 | L15: 185.0814778 | M15: 257.5948996
B16: 12 | C16: 26.57164583 | D16: 16.99386861 | E16: 16.32625175 | F16: 306.4582685 | G16: 16.99729649 | H16: 102.7779226 | I16: 54.57364558 | K16: 0.5212387716 | L16: 206.3891044 | M16: 269.2725979
B17: 13 | C17: 28.99998594 | D17: 18.54350886 | E17: 17.81555375 | F17: 306.2205273 | G17: 20.23026031 | H17: 131.964697 | I17: 60.47894407 | K17: 0.2248129733 | L17: 231.0304711 | M17: 285.6410333
B18: 14 | C18: 31.23434573 | D18: 20.05950186 | E18: 19.27273105 | F18: 305.9374137 | G18: 23.44601365 | H18: 163.9125919 | I18: 66.5496574 | K18: 0.302035598 | L18: 260.4254874 | M18: 307.9158042
B19: 15 | C19: 33.2873258 | D19: 21.53821286 | E19: 20.69433403 | F19: 305.601244 | G19: 26.60017707 | H19: 198.1420719 | I19: 72.66256758 | K19: 0.384824722 | L19: 292.6972342 | M19: 334.0485435
B20: 16 | C20: 35.1752184 | D20: 22.97690271 | E20: 22.07777325 | F20: 305.2058621 | G20: 29.66457103 | H20: 234.2147845 | I20: 78.73105924 | K20: 0.479752575 | L20: 327.7375331 | M20: 363.7868801
B21: 17 | C21: 36.91374001 | D21: 24.37357102 | E21: 23.42116696 | F21: 304.746694 | G21: 32.62020585 | H21: 271.7195328 | I21: 84.69094286 | K21: 0.5611526741 | L21: 364.6960608 | M21: 396.1589502
B22: 18 | C22: 38.51670236 | D22: 25.72682862 | E22: 24.72321709 | F22: 304.2207124 | G22: 35.45345549 | H22: 310.2648912 | I22: 90.49217807 | K22: 0.6274232926 | L22: 403.1537932 | M22: 430.6430551
B23: 19 | C23: 39.9960104 | D23: 27.03579269 | E23: 25.98310735 | F23: 303.6263474 | G23: 38.15437965 | H23: 349.4797153 | I23: 96.09505233 | K23: 0.6796461613 | L23: 442.524025 | M23: 466.5655614
B24: 20 | C24: 41.3620345 | D24: 28.3 | E24: 27.20041912 | F24: 302.9633576 | G24: 40.71603572 | H24: 389.0174538 | I24: 101.4685257 | K24: 0.7053603105 | L24: 482.3813006 | M24: 503.4272561
B25: 21 | C25: 42.62397795 | D25: 29.51933459 | E25: 28.3750615 | F25: 302.2326716 | G25: 43.13412211 | H25: 428.5608934 | I25: 106.5893239 | K25: 0.7187656605 | L25: 522.3183284 | M25: 540.758132
B26: 22 | C26: 43.78501991 | D26: 30.69396722 | E26: 29.50721162 | F26: 301.4365561 | G26: 45.39610782 | H26: 467.7167239 | I26: 111.4153165 | K26: 0.7295672633 | L26: 561.877207 | M26: 578.0468484
B27: 23 | C27: 44.90767205 | D27: 31.82430441 | E27: 30.59727471 | F27: 300.5761559 | G27: 47.61756762 | H27: 507.4548595 | I27: 116.2198746 | K27: 0.7383426733 | L27: 602.4238512 | M27: 616.6136913
B28: 24 | C28: 45.98627497 | D28: 32.9109455 | E28: 31.64584282 | F28: 299.6517447 | G28: 49.77885132 | H28: 547.4323338 | I28: 120.9496582 | K28: 0.7455152516 | L28: 643.1050413 | M28: 655.5664031
B29: 25 | C29: 47.02322344 | D29: 33.9546463 | E29: 32.65365351 | F29: 298.6643935 | G29: 51.87759557 | H29: 587.4837255 | I29: 125.5935847 | K29: 0.7514014428 | L29: 684.0431266 | M29: 694.9938695
B30: 26 | C30: 48.02088825 | D30: 34.9562883 | E30: 33.62156145 | F30: 297.6156197 | G30: 53.91227949 | H30: 627.459417 | I30: 130.1429398 | K30: 0.7561708544 | L30: 724.9415454 | M30: 734.5707894
B31: 27 | C31: 48.98161286 | D31: 35.91685253 | E31: 34.55051336 | F31: 296.5073242 | G31: 55.88216003 | H31: 667.2262039 | I31: 134.5912316 | K31: 0.7606147421 | L31: 765.7329757 | M31: 774.2051133
B32: 28 | C32: 49.90771284 | D32: 36.83739738 | E32: 35.44152696 | F32: 295.3417277 | G32: 57.78721209 | H32: 706.667614 | I32: 138.9340508 | K32: 0.764687158 | L32: 806.2655422 | M32: 813.7236541
B33: 29 | C33: 50.80147729 | D33: 37.71903982 | E33: 36.29567311 | F33: 294.1213085 | G33: 59.62807225 | H33: 745.6839748 | I33: 143.1689361 | K33: 0.7684230499 | L33: 846.4597878 | M33: 853.0285554
B34: 30 | C34: 51.66517148 | D34: 38.56293938 | E34: 37.11406077 | F34: 292.8487413 | G34: 61.40598589 | H34: 784.192267 | I34: 147.2952445 | K34: 0.7718546768 | L34: 886.2280093 | M34: 892.0162036
B35: 31 | I35: 75.22164626
B36: 32 | I36: 38.41465543
B37: 33 | I37: 19.61783377
B38: 34 | I38: 10.01855665
B39: 35 | I39: 5.11633846
B40: 36 | I40: 2.612843361
B41: 37 | I41: 1.334343004
B42: 38 | I42: 0.6814305359
B43: 39 | I43: 0.3479971596
B44: 40 | I44: 0.1777173413
B45: 41 | I45: 0.09075779072

Sheet C Change (hidden)
A1: Forest Carbon Predictor Version 3 (June 2011)
G2: Yield Table | P2: Carbon Predictions | AA2: Shrub Understorey
A3: Species | C3: PRAD | G3: Age | H3: Stocking | K3: Volume | N3: Density | P3: Rotation 1 | U3: Rotation 2 | AA3: Rotation 1 | AB3: Rotation 2
A4: Initial stocking (stems/ha) | C4: 807.5 | H4: b4 thin | I4: Aft thin | J4: Height | K4: Net | L4: Aft thin | M4: Dead | P4: Total | Q4: AGL | R4: BGL | S4: DWL | T4: FL | U4: Total | V4: AGL | W4: BGL | X4: DWL | Y4: FL
A5: 1st rotation length (years) | C5: 30 | G5: years | H5: stems/ha | J5: m | K5: m3/ha | N5: kg/m3 | P5: tC/ha | U5: tC/ha | AA5: tC/ha
A6: 2nd rotation length (years) | C6: 30 | G6: 0 | H6: 807.5 | J6: 0.25 | K6: 0.005168 | M6: 0 | N6: 305.0240517 | P6: 0.003351125 | Q6: 0.002907 | R6: 0.000444125 | S6: 0 | T6: 0 | U6: 106.4835502 | V6: 0.002907 | W6: 0.000444125 | X6: 63.88761018 | Y6: 42.59258891 | AA6: 0 | AB6: 5.547
G7: 1 | H7: 807.5 | J7: 0.7819607947 | K7: 0.06164375601 | M7: 0 | N7: 303.9495442 | P7: 0.04539535059 | Q7: 0.03225740979 | R7: 0.01264314518 | S7: 0 | T7: 0.000494795625 | U7: 90.50053859 | V7: 0.03225740979 | W7: 0.01264314518 | X7: 53.94977865 | Y7: 36.50585938 | AA7: 0.0921 | AB7: 4.725343863
A8: Thinning | G8: 2 | H8: 807.4110303 | J8: 1.754166532 | K8: 0.3721075422 | M8: 1.292839517e-05 | N8: 302.9107325 | P8: 0.2612929332 | Q8: 0.1887964799 | R8: 0.06799803148 | S8: 2.512012366e-06 | T8: 0.004495909831 | U8: 77.27162569 | V8: 0.1887964799 | W8: 0.06799803148 | X8: 45.6567989 | Y8: 31.35803227 | AA8: 0.1906 | AB8: 4.060610581
A9: Type | B9: Age | C9: Stocking after | G9: 3 | H9: 807.0404286 | J9: 2.968362086 | K9: 1.101244927 | M9: 0.0001829954333 | N9: 306.1041759 | P9: 0.7113005243 | Q9: 0.5282054317 | R9: 0.1560910925 | S9: 3.774141566e-05 | T9: 0.02696625877 | U9: 66.41576999 | V9: 0.5282054317 | W9: 0.1560910925 | X9: 38.72345041 | Y9: 27.00802305 | AA9: 0.2955 | AB9: 3.528004556
A10: (W or P) | B10: (years) | C10: (stems/ha) | G10: 4 | H10: 806.6699694 | J10: 4.340864533 | K10: 5.014592294 | M10: 0.0007596647131 | N10: 306.8449111 | P10: 3.208756179 | Q10: 2.304612513 | R10: 0.8132967036 | S10: 0.0001797889 | T10: 0.09066717395 | U10: 59.38427189 | V10: 2.304612513 | W10: 0.8132967036 | X10: 32.91563051 | Y10: 23.35073216 | AA10: 0.4068 | AB10: 3.106814764
A11: W | B11: 9 | C11: 307 | G11: 5 | H11: 806.298201 | J11: 5.819651472 | K11: 13.93150141 | M11: 0.00236274983 | N11: 311.4010538 | P11: 7.962594542 | Q11: 5.918311393 | R11: 1.704105407 | S11: 0.0006130031756 | T11: 0.3395647392 | U11: 56.08851646 | V11: 5.918311393 | W11: 1.704105407 | X11: 28.04108677 | Y11: 20.42501289 | AA11: 0.5245 | AB11: 2.779741903
G12: 6 | H12: 805.9097736 | J12: 7.368445917 | K12: 29.80531067 | M12: 0.005701508991 | N12: 316.5333108 | P12: 15.64198946 | Q12: 10.01984804 | R12: 3.074664787 | S12: 0.001637389689 | T12: 2.545839238 | U12: 56.95267211 | V12: 10.01984804 | W12: 3.074664787 | X12: 23.9418159 | Y12: 19.91634338 | AA12: 0.6486 | AB12: 2.532336381
G13: 7 | H13: 805.4528019 | J13: 8.960483025 | K13: 51.26330059 | M13: 0.0124397805 | N13: 325.7444649 | P13: 24.61650213 | Q13: 15.99791829 | R13: 4.391214919 | S13: 0.003855276095 | T13: 4.223513645 | U13: 60.14417093 | V13: 15.99791829 | W13: 4.391214919 | X13: 20.48804917 | Y13: 19.26698855 | AA13: 0.7791 | AB13: 2.352528885
G14: 8 | H14: 804.816655 | J14: 10.57537857 | K14: 79.44724762 | M14: 0.02794213501 | N14: 331.2752751 | P14: 35.70327261 | Q14: 23.10153327 | R14: 6.224177656 | S14: 0.008860228225 | T14: 6.368701454 | U14: 66.31306576 | V14: 23.10153327 | W14: 6.224177656 | X14: 17.57388357 | Y14: 19.41347126 | AA14: 0.916 | AB14: 2.230238277
G15: 9 | H15: 803.8492837 | I15: 307 | J15: 12.19731439 | K15: 113.9490364 | L15: 44.22070979 | M15: 0.06293816176 | N15: 336.466048 | P15: 46.74130187 | Q15: 12.80417842 | R15: 3.168711125 | S15: 16.29957823 | T15: 14.46883409 | U15: 73.15995594 | V15: 12.80417842 | W15: 3.168711125 | X15: 31.39349614 | Y15: 25.79357026 | AA15: 1.0593 | AB15: 2.157044084
G16: 10 | H16: 306.8365288 | J16: 13.81388373 | K16: 58.74338511 | M16: 0.01483659587 | N16: 344.2074467 | P16: 47.65940885 | Q16: 16.68802371 | R16: 3.892453516 | S16: 14.24922866 | T16: 12.82970296 | U16: 70.4987806 | V16: 16.68802371 | W16: 3.892453516 | X16: 27.24673565 | Y16: 22.67156773 | AA16: 1.209 | AB16: 2.125912933
A17: Pruning | G17: 11 | H17: 306.6596083 | J17: 15.41530636 | K17: 76.87527095 | M17: 0.02116171228 | N17: 343.7159463 | P17: 50.47676666 | Q17: 21.45969134 | R17: 5.014809233 | S17: 12.47634771 | T17: 11.52591838 | U17: 70.25315445 | V17: 21.45969134 | W17: 5.014809233 | X17: 23.69139411 | Y17: 20.08725976 | AA17: 1.3651 | AB17: 2.130970059
A18: Lift | B18: Age | C18: Pr. Stocking | D18: Pr. Height | G18: 12 | H18: 306.4582685 | J18: 16.99386861 | K18: 102.7779226 | M18: 0.03192235772 | N18: 336.8181361 | P18: 56.28793756 | Q18: 28.2457185 | R18: 6.646931214 | S18: 10.94157065 | T18: 10.45371719 | U18: 73.43798123 | V18: 28.2457185 | W18: 6.646931214 | X18: 20.63773976 | Y18: 17.90759176 | AA18: 1.5276 | AB18: 2.167308446
A19: (1 - 5) | B19: (years) | C19: (stems/ha) | D19: (m) | G19: 13 | H19: 306.2205273 | J19: 18.54350886 | K19: 131.964697 | M19: 0.04928922562 | N19: 339.9751103 | P19: 63.00831031 | Q19: 35.73651629 | R19: 8.001228117 | S19: 9.61218712 | T19: 9.658378779 | U19: 77.90209999 | V19: 35.73651629 | W19: 8.001228117 | X19: 18.01123279 | Y19: 16.15312279 | AA19: 1.6965 | AB19: 2.230829409
A20: 1 | B20: 6 | C20: 450 | D20: 2.4 | G20: 14 | H20: 305.9374137 | J20: 20.05950186 | K20: 163.9125919 | M20: 0.07404825257 | N20: 343.1872312 | P20: 71.02513292 | Q20: 43.77547246 | R20: 9.65602981 | S20: 8.460759611 | T20: 9.132871043 | U20: 83.97703751 | V20: 43.77547246 | W20: 9.65602981 | X20: 15.74963848 | Y20: 14.79589676 | AA20: 1.8718 | AB20: 2.318109439
A21: 2 | B21: 7 | C21: 350 | D21: 4.6 | G21: 15 | H21: 305.601244 | J21: 21.53821286 | K21: 198.1420719 | M21: 0.1077048644 | N21: 346.356304 | P21: 79.82651843 | Q21: 52.30069041 | R21: 11.29647375 | S21: 7.464410215 | T21: 8.764944051 | U21: 91.10414823 | V21: 52.30069041 | W21: 11.29647375 | X21: 13.80108093 | Y21: 13.70590314 | AA21: 2.0535 | AB21: 2.426288979
A22: 3 | B22: 8 | C22: 320 | D22: 6 | G22: 16 | H22: 305.2058621 | J22: 22.97690271 | K22: 234.2147845 | M22: 0.1514622809 | N22: 349.4540463 | P22: 89.38296358 | Q22: 61.25529795 | R22: 13.05595008 | S22: 6.604031767 | T22: 8.467683784 | U22: 99.21460366 | V22: 61.25529795 | W22: 13.05595008 | X22: 12.12224359 | Y22: 12.78111205 | AA22: 2.2416 | AB22: 2.552979529
G23: 17 | H23: 304.746694 | J23: 24.37357102 | K23: 271.7195328 | M23: 0.2061313296 | N23: 352.4953374 | P23: 99.46256205 | Q23: 70.5310222 | R23: 14.84430599 | S23: 5.863609193 | T23: 8.223624666 | U23: 108.0433501 | V23: 70.5310222 | W23: 14.84430599 | X23: 10.67686151 | Y23: 11.99116037 | AA23: 2.4361 | AB23: 2.696186045
G24: 18 | H24: 304.2207124 | J24: 25.72682862 | K24: 310.2648912 | M24: 0.2720747169 | N24: 355.5112419 | P24: 109.9510345 | Q24: 80.0190554 | R24: 16.68376424 | S24: 5.229637526 | T24: 8.018577333 | U24: 117.4481059 | V24: 80.0190554 | W24: 16.68376424 | X24: 9.434458586 | Y24: 11.31082771 | AA24: 2.637 | AB24: 2.854242126
G25: 19 | H25: 303.6263474 | J25: 27.03579269 | K25: 349.4797153 | M25: 0.3491900704 | N25: 358.5332587 | P25: 120.6883705 | Q25: 89.61432857 | R25: 18.54140329 | S25: 4.690627169 | T25: 7.842011437 | U25: 127.2451531 | V25: 89.61432857 | W25: 18.54140329 | X25: 8.369293193 | Y25: 10.72012805 | AA25: 2.8443 | AB25: 3.025755877
A26: Calibration measurement | G26: 20 | H26: 302.9633576 | J26: 28.3 | K26: 389.0174538 | M26: 0.4369330714 | N26: 361.5873359 | P26: 131.5585365 | Q26: 99.22301563 | R26: 20.41335361 | S26: 4.236689728 | T26: 7.685477559 | U26: 137.2983426 | V26: 99.22301563 | W26: 20.41335361 | X26: 7.459483575 | Y26: 10.20248975 | AA26: 3.058 | AB26: 3.209564688
A27: Age (years) | G27: 21 | H27: 302.2326716 | J27: 29.51933459 | K27: 428.5608934 | M27: 0.5343739794 | N27: 364.6929979 | P27: 142.4504532 | Q27: 108.7662477 | R27: 22.2830033 | S27: 3.859198307 | T27: 7.542003919 | U27: 147.4794906 | V27: 108.7662477 | W27: 22.2830033 | X27: 6.686288812 | Y27: 9.743950775 | AA27: 3.2781 | AB27: 3.404697469
A28: Stocking (stems/hs) | G28: 22 | H28: 301.4365561 | J28: 30.69396722 | K28: 467.7167239 | M28: 0.6399219008 | N28: 368.0127032 | P28: 153.2392383 | Q28: 118.1525299 | R28: 24.13040035 | S28: 3.55044385 | T28: 7.405864215 | U28: 157.6491405 | V28: 118.1525299 | W28: 24.13040035 | X28: 6.033452303 | Y28: 9.332757974 | AA28: 3.5046 | AB28: 3.610343095
A29: BA (m2/ha) | G29: 23 | H29: 300.5761559 | J29: 31.82430441 | K29: 507.4548595 | M29: 0.7545869383 | N29: 369.7289655 | P29: 164.297414 | Q29: 127.6355103 | R29: 26.08644105 | S29: 3.303986428 | T29: 7.271476218 | U29: 168.1673704 | V29: 127.6355103 | W29: 26.08644105 | X29: 5.487294664 | Y29: 8.958124367 | AA29: 3.7375 | AB29: 3.825824057
A30: MTH (m) | G30: 24 | H30: 299.6517447 | J30: 32.9109455 | K30: 547.4323338 | M30: 0.8796594001 | N30: 371.7252169 | P30: 175.392284 | Q30: 137.1280128 | R30: 28.0045555 | S30: 3.11457058 | T30: 7.145145165 | U30: 178.7908372 | V30: 137.1280128 | W30: 28.0045555 | X30: 5.036415391 | Y30: 8.621853581 | AA30: 3.9768 | AB30: 4.050574454
G31: 25 | H31: 298.6643935 | J31: 33.9546463 | K31: 587.4837255 | M31: 1.0141218 | N31: 373.7681701 | P31: 186.5572163 | Q31: 146.586999 | R31: 29.9560048 | S31: 2.977465322 | T31: 7.036747211 | U31: 189.5437826 | V31: 146.586999 | W31: 29.9560048 | X31: 4.670855889 | Y31: 8.329922912 | AA31: 4.2225 | AB31: 4.284121604
A32: Site | G32: 26 | H32: 297.6156197 | J32: 34.9562883 | K32: 627.459417 | M32: 1.15717373 | N32: 375.8566943 | P32: 197.7113306 | Q32: 155.9796217 | R32: 31.89656596 | S32: 2.888422573 | T32: 6.946720346 | U32: 200.337488 | V32: 155.9796217 | W32: 31.89656596 | X32: 4.381911101 | Y32: 8.079389262 | AA32: 4.4746 | AB32: 4.52607069
A33: Latitude (ºS) | C33: 40 | G33: 27 | H33: 296.5073242 | J33: 35.91685253 | K33: 667.2262039 | M33: 1.307915605 | N33: 377.9885703 | P33: 208.8362661 | Q33: 165.2839347 | R33: 33.84069924 | S33: 2.843577994 | T33: 6.868054151 | U33: 211.1468491 | V33: 165.2839347 | W33: 33.84069924 | X33: 4.161908384 | Y33: 7.860306752 | AA33: 4.7331 | AB33: 4.776091934
A34: Altitude (m) | C34: 300 | G34: 28 | H34: 295.3417277 | J34: 36.83739738 | K34: 706.667614 | M34: 1.465382671 | N34: 380.1605363 | P34: 219.8906024 | Q34: 174.479912 | R34: 35.7744839 | S34: 2.839374081 | T34: 6.796832444 | U34: 221.9246329 | V34: 174.479912 | W34: 35.7744839 | X34: 4.004029097 | Y34: 7.666207962 | AA34: 4.998 | AB34: 5.033909882
A35: Soil C (%) | C35: 5.3 | G35: 29 | H35: 294.1213085 | J35: 37.71903982 | K35: 745.6839748 | M35: 1.628578308 | N35: 382.3683193 | P35: 230.8526694 | Q35: 183.5510202 | R35: 37.69915845 | S35: 2.872502211 | T35: 6.729988534 | U35: 232.6441515 | V35: 183.5510202 | W35: 37.69915845 | X35: 3.902166025 | Y35: 7.491806788 | AA35: 5.2693 | AB35: 5.299294455
A36: Soil N (%) | C36: 0.37 | G36: 30 | H36: 292.8487413 | J36: 38.56293938 | K36: 784.192267 | M36: 1.796505422 | N36: 384.6066582 | P36: 241.698548 | Q36: 192.4840796 | R36: 39.60934904 | S36: 2.939860598 | T36: 6.665258779 | U36: 243.2771464 | V36: 192.4840796 | W36: 39.60934904 | X36: 3.850810653 | Y36: 7.332907177 | AA36: 5.547 | AB36: 5.572053474
A37: M A Temperature (ºC) | C37: 12
A38: 300 Index (m3/ha/yr) | C38: 26
A39: Site Index (m) | C39: 28.3
A41: Wood density
A42: Core Density (kg/m3) | C42: 410
A43: OWD Age (years) | C43: 15
A44: Inner ring (no. from pith)
A45: Outer ring (no. from pith)
A47: Other options
A48: Drift factor | C48: 0
A49: Mortality + | C49: 0
A50: Mortality x | C50: 0
A51: Clearfell Removal % | C51: 85
A52: Prod Thin Removal % | C52: 75
A53: Density: Tree or Sheath ("T" or "S") | C53: S
A54: Height: Top or Mean ("T" or "M") | C54: T
A55: Needle Retention (years) | C55: 2.1

Sheet INPUT (hidden)
A1: 2
A2: Rotation 1
A3: 0 | B3: 0 | C3: 1 | D3: 0 | E3: 0 | F3: 1 | G3: 2 | H3: 0
A4: 30 | B4: 6 | C4: 3 | D4: 0 | E4: 6
A5: 0 | B5: 807.5 | C5: -1 | D5: -1 | E5: 0 | F5: 0
A6: 6 | B6: 0 | C6: -1 | D6: 1.340100388 | E6: 0 | F6: 0
A7: 7 | B7: 0 | C7: -1 | D7: 2.296844701 | E7: 0 | F7: 0
A8: 8 | B8: 0 | C8: -1 | D8: 2.855308704 | E8: 0 | F8: 0
A9: 9 | B9: 307 | C9: 30 | D9: -1 | E9: 0 | F9: 0
A10: 30 | B10: 0 | C10: -2 | D10: -1 | E10: 0.85 | F10: 0
A11: 0 | B11: 0 | C11: -1 | D11: -1 | E11: 0 | F11: 0
A12: 0 | B12: 0 | C12: -1 | D12: -1 | E12: 0 | F12: 0
A13: 0 | B13: 0 | C13: -1 | D13: -1 | E13: 0 | F13: 0
A14: 0 | B14: 0 | C14: -1 | D14: -1 | E14: 0 | F14: 0
A15: -0.001825 | B15: 1.77250004 | C15: 30 | D15: 0.05 | E15: 0.7 | F15: 7.2 | G15: 1 | H15: 200 | I15: 6 | J15: 0.3
A16: 0.0043 | B16: 0 | C16: 0 | D16: 0 | E16: 0 | F16: 0.0029 | G16: 0 | H16: 0.0011 | I16: 0 | J16: 0
A17: 35
A18: 0 | B18: 807.5 | C18: 0.2335400574 | D18: 0.005168 | E18: 0.005168 | F18: 0.005168 | G18: 0.3050240517 | H18: 0.3050240517
A19: 1 | B19: 807.5 | C19: 0.7304766754 | D19: 0.06164375601 | E19: 0.06164375601 | F19: 0.06164375601 | G19: 0.3040396272 | H19: 0.3039495442
A20: 2 | B20: 807.4110303 | C20: 1.638675201 | D20: 0.3721075422 | E20: 0.3721204706 | F20: 0.3721075422 | G20: 0.3030977464 | H20: 0.3029107325
A21: 3 | B21: 807.0404286 | C21: 2.772948473 | D21: 1.101244927 | E21: 1.101427923 | F21: 1.101244927 | G21: 0.3050883119 | H21: 0.3061041759
A22: 4 | B22: 806.6699694 | C22: 4.055122916 | D22: 5.014592294 | E22: 5.015351959 | F22: 5.014592294 | G22: 0.3064591477 | H22: 0.3068449111
A23: 5 | B23: 806.298201 | C23: 5.43660333 | D23: 13.93150141 | E23: 13.93386416 | F23: 13.93150141 | G23: 0.309622233 | H23: 0.3114010538
A24: 6 | B24: 805.9097736 | C24: 6.88350425 | D24: 29.80531067 | E24: 29.81101218 | F24: 29.80531067 | G24: 0.3133029573 | H24: 0.3165333108
A25: 6 | B25: 805.9097736 | C25: 7.368445917 | D25: 29.80531067 | E25: 29.81101218 | F25: 29.80531067 | G25: 0.3133029573 | H25: 0.3165333108
A26: 7 | B26: 805.4528019 | C26: 8.370832622 | D26: 51.26330059 | E26: 51.27574037 | F26: 51.26330059 | G26: 0.3185107715 | H26: 0.3257444649
A27: 7 | B27: 805.4528019 | C27: 8.960483025 | D27: 51.26330059 | E27: 51.27574037 | F27: 51.26330059 | G27: 0.3185107715 | H27: 0.3257444649
A28: 8 | B28: 804.816655 | C28: 9.879571648 | D28: 79.44724762 | E28: 79.47518976 | F28: 79.44724762 | G28: 0.3230389849 | H28: 0.3312752751
A29: 8 | B29: 804.816655 | C29: 10.57537857 | D29: 79.44724762 | E29: 79.47518976 | F29: 79.44724762 | G29: 0.3230389849 | H29: 0.3312752751
A30: 9 | B30: 803.8492837 | C30: 11.39499057 | D30: 113.9490364 | E30: 114.0119745 | F30: 113.9490364 | G30: 0.3271044664 | H30: 0.336466048
A31: 9 | B31: 307 | C31: 11.71732487 | D31: 44.22070979 | E31: 44.28364795 | F31: 44.22070979 | G31: 0.3271044664 | H31: 0.336466048
A32: 10 | B32: 306.8365288 | C32: 13.27055509 | D32: 58.74338511 | E32: 58.7582217 | F32: 58.74338511 | G32: 0.3313327047 | H32: 0.3442074467
A33: 11 | B33: 306.6596083 | C33: 14.8093243 | D33: 76.87527095 | E33: 76.89643267 | F33: 76.87527095 | G33: 0.3342534296 | H33: 0.3437159463
A34: 12 | B34: 306.4582685 | C34: 16.32625175 | D34: 102.7779226 | E34: 102.809845 | F34: 102.7779226 | G34: 0.3348998009 | H34: 0.3368181361
A35: 13 | B35: 306.2205273 | C35: 17.81555375 | D35: 131.964697 | E35: 132.0139863 | F35: 131.964697 | G35: 0.3360223126 | H35: 0.3399751103
A36: 14 | B36: 305.9374137 | C36: 19.27273105 | D36: 163.9125919 | E36: 163.9866401 | F36: 163.9125919 | G36: 0.3374188134 | H36: 0.3431872312
A37: 15 | B37: 305.601244 | C37: 20.69433403 | D37: 198.1420719 | E37: 198.2497767 | F37: 198.1420719 | G37: 0.3389627846 | H37: 0.346356304
A38: 16 | B38: 305.2058621 | C38: 22.07777325 | D38: 234.2147845 | E38: 234.3662468 | F38: 234.2147845 | G38: 0.3405786018 | H38: 0.3494540463
A39: 17 | B39: 304.746694 | C39: 23.42116696 | D39: 271.7195328 | E39: 271.9256641 | F39: 271.7195328 | G39: 0.3422234381 | H39: 0.3524953374
A40: 18 | B40: 304.2207124 | C40: 24.72321709 | D40: 310.2648912 | E40: 310.5369659 | F40: 310.2648912 | G40: 0.3438742313 | H40: 0.3555112419
A41: 19 | B41: 303.6263474 | C41: 25.98310735 | D41: 349.4797153 | E41: 349.8289054 | F41: 349.4797153 | G41: 0.3455191084 | H41: 0.3585332587
A42: 20 | B42: 302.9633576 | C42: 27.20041912 | D42: 389.0174538 | E42: 389.4543869 | F42: 389.0174538 | G42: 0.3471522006 | H42: 0.3615873359
A43: 21 | B43: 302.2326716 | C43: 28.3750615 | D43: 428.5608934 | E43: 429.0952674 | F43: 428.5608934 | G43: 0.3487706951 | H43: 0.3646929979
A44: 22 | B44: 301.4365561 | C44: 29.50721162 | D44: 467.7167239 | E44: 468.3566458 | F44: 467.7167239 | G44: 0.3503815779 | H44: 0.3680127032
A45: 23 | B45: 300.5761559 | C45: 30.59727471 | D45: 507.4548595 | E45: 508.2094465 | F45: 507.4548595 | G45: 0.3518966469 | H45: 0.3697289655
A46: 24 | B46: 299.6517447 | C46: 31.64584282 | D46: 547.4323338 | E46: 548.3119932 | F46: 547.4323338 | G46: 0.3533446727 | H46: 0.3717252169
A47: 25 | B47: 298.6643935 | C47: 32.65365351 | D47: 587.4837255 | E47: 588.4978473 | F47: 587.4837255 | G47: 0.3547370338 | H47: 0.3737681701
A48: 26 | B48: 297.6156197 | C48: 33.62156145 | D48: 627.459417 | E48: 628.6165908 | F48: 627.459417 | G48: 0.3560825758 | H48: 0.3758566943
A49: 27 | B49: 296.5073242 | C49: 34.55051336 | D49: 667.2262039 | E49: 668.5341195 | F49: 667.2262039 | G49: 0.3573881766 | H49: 0.3779885703
A50: 28 | B50: 295.3417277 | C50: 35.44152696 | D50: 706.667614 | E50: 708.1329967 | F50: 706.667614 | G50: 0.3586591758 | H50: 0.3801605363
A51: 29 | B51: 294.1213085 | C51: 36.29567311 | D51: 745.6839748 | E51: 747.3125531 | F51: 745.6839748 | G51: 0.3598997073 | H51: 0.3823683193
A52: 30 | B52: 292.8487413 | C52: 37.11406077 | D52: 784.192267 | E52: 785.9887724 | F52: 784.192267 | G52: 0.3611129589 | H52: 0.3846066582
A53: Rotation 2
A54: 0 | B54: 0 | C54: 1 | D54: 0 | E54: 0 | F54: 1 | G54: 2 | H54: 0
A55: 30 | B55: 6 | C55: 3 | D55: 0 | E55: 6
A56: 0 | B56: 807.5 | C56: -1 | D56: -1 | E56: 0 | F56: 0
A57: 6 | B57: 0 | C57: -1 | D57: 1.340100388 | E57: 0 | F57: 0
A58: 7 | B58: 0 | C58: -1 | D58: 2.296844701 | E58: 0 | F58: 0
A59: 8 | B59: 0 | C59: -1 | D59: 2.855308704 | E59: 0 | F59: 0
A60: 9 | B60: 307 | C60: 30 | D60: -1 | E60: 0 | F60: 0
A61: 30 | B61: 0 | C61: -2 | D61: -1 | E61: 0.85 | F61: 0
A62: 0 | B62: 0 | C62: -1 | D62: -1 | E62: 0 | F62: 0
A63: 0 | B63: 0 | C63: -1 | D63: -1 | E63: 0 | F63: 0
A64: 0 | B64: 0 | C64: -1 | D64: -1 | E64: 0 | F64: 0
A65: 0 | B65: 0 | C65: -1 | D65: -1 | E65: 0 | F65: 0
A66: -0.001825 | B66: 1.77250004 | C66: 30 | D66: 0.05 | E66: 0.7 | F66: 7.2 | G66: 2 | H66: 200 | I66: 6 | J66: 0.3
A67: 0.0043 | B67: 0 | C67: 0 | D67: 0 | E67: 0 | F67: 0.0029 | G67: 0 | H67: 0.0011 | I67: 0 | J67: 0
A68: 35
A69: 0 | B69: 807.5 | C69: 0.2335400574 | D69: 0.005168 | E69: 0.005168 | F69: 0.005168 | G69: 0.3050240517 | H69: 0.3050240517
A70: 1 | B70: 807.5 | C70: 0.7304766754 | D70: 0.06164375601 | E70: 0.06164375601 | F70: 0.06164375601 | G70: 0.3040396272 | H70: 0.3039495442
A71: 2 | B71: 807.4110303 | C71: 1.638675201 | D71: 0.3721075422 | E71: 0.3721204706 | F71: 0.3721075422 | G71: 0.3030977464 | H71: 0.3029107325
A72: 3 | B72: 807.0404286 | C72: 2.772948473 | D72: 1.101244927 | E72: 1.101427923 | F72: 1.101244927 | G72: 0.3050883119 | H72: 0.3061041759
A73: 4 | B73: 806.6699694 | C73: 4.055122916 | D73: 5.014592294 | E73: 5.015351959 | F73: 5.014592294 | G73: 0.3064591477 | H73: 0.3068449111
A74: 5 | B74: 806.298201 | C74: 5.43660333 | D74: 13.93150141 | E74: 13.93386416 | F74: 13.93150141 | G74: 0.309622233 | H74: 0.3114010538
A75: 6 | B75: 805.9097736 | C75: 6.88350425 | D75: 29.80531067 | E75: 29.81101218 | F75: 29.80531067 | G75: 0.3133029573 | H75: 0.3165333108
A76: 6 | B76: 805.9097736 | C76: 7.368445917 | D76: 29.80531067 | E76: 29.81101218 | F76: 29.80531067 | G76: 0.3133029573 | H76: 0.3165333108
A77: 7 | B77: 805.4528019 | C77: 8.370832622 | D77: 51.26330059 | E77: 51.27574037 | F77: 51.26330059 | G77: 0.3185107715 | H77: 0.3257444649
A78: 7 | B78: 805.4528019 | C78: 8.960483025 | D78: 51.26330059 | E78: 51.27574037 | F78: 51.26330059 | G78: 0.3185107715 | H78: 0.3257444649
A79: 8 | B79: 804.816655 | C79: 9.879571648 | D79: 79.44724762 | E79: 79.47518976 | F79: 79.44724762 | G79: 0.3230389849 | H79: 0.3312752751
A80: 8 | B80: 804.816655 | C80: 10.57537857 | D80: 79.44724762 | E80: 79.47518976 | F80: 79.44724762 | G80: 0.3230389849 | H80: 0.3312752751
A81: 9 | B81: 803.8492837 | C81: 11.39499057 | D81: 113.9490364 | E81: 114.0119745 | F81: 113.9490364 | G81: 0.3271044664 | H81: 0.336466048
A82: 9 | B82: 307 | C82: 11.71732487 | D82: 44.22070979 | E82: 44.28364795 | F82: 44.22070979 | G82: 0.3271044664 | H82: 0.336466048
A83: 10 | B83: 306.8365288 | C83: 13.27055509 | D83: 58.74338511 | E83: 58.7582217 | F83: 58.74338511 | G83: 0.3313327047 | H83: 0.3442074467
A84: 11 | B84: 306.6596083 | C84: 14.8093243 | D84: 76.87527095 | E84: 76.89643267 | F84: 76.87527095 | G84: 0.3342534296 | H84: 0.3437159463
A85: 12 | B85: 306.4582685 | C85: 16.32625175 | D85: 102.7779226 | E85: 102.809845 | F85: 102.7779226 | G85: 0.3348998009 | H85: 0.3368181361
A86: 13 | B86: 306.2205273 | C86: 17.81555375 | D86: 131.964697 | E86: 132.0139863 | F86: 131.964697 | G86: 0.3360223126 | H86: 0.3399751103
A87: 14 | B87: 305.9374137 | C87: 19.27273105 | D87: 163.9125919 | E87: 163.9866401 | F87: 163.9125919 | G87: 0.3374188134 | H87: 0.3431872312
A88: 15 | B88: 305.601244 | C88: 20.69433403 | D88: 198.1420719 | E88: 198.2497767 | F88: 198.1420719 | G88: 0.3389627846 | H88: 0.346356304
A89: 16 | B89: 305.2058621 | C89: 22.07777325 | D89: 234.2147845 | E89: 234.3662468 | F89: 234.2147845 | G89: 0.3405786018 | H89: 0.3494540463
A90: 17 | B90: 304.746694 | C90: 23.42116696 | D90: 271.7195328 | E90: 271.9256641 | F90: 271.7195328 | G90: 0.3422234381 | H90: 0.3524953374
A91: 18 | B91: 304.2207124 | C91: 24.72321709 | D91: 310.2648912 | E91: 310.5369659 | F91: 310.2648912 | G91: 0.3438742313 | H91: 0.3555112419
A92: 19 | B92: 303.6263474 | C92: 25.98310735 | D92: 349.4797153 | E92: 349.8289054 | F92: 349.4797153 | G92: 0.3455191084 | H92: 0.3585332587
A93: 20 | B93: 302.9633576 | C93: 27.20041912 | D93: 389.0174538 | E93: 389.4543869 | F93: 389.0174538 | G93: 0.3471522006 | H93: 0.3615873359
A94: 21 | B94: 302.2326716 | C94: 28.3750615 | D94: 428.5608934 | E94: 429.0952674 | F94: 428.5608934 | G94: 0.3487706951 | H94: 0.3646929979
A95: 22 | B95: 301.4365561 | C95: 29.50721162 | D95: 467.7167239 | E95: 468.3566458 | F95: 467.7167239 | G95: 0.3503815779 | H95: 0.3680127032
A96: 23 | B96: 300.5761559 | C96: 30.59727471 | D96: 507.4548595 | E96: 508.2094465 | F96: 507.4548595 | G96: 0.3518966469 | H96: 0.3697289655
A97: 24 | B97: 299.6517447 | C97: 31.64584282 | D97: 547.4323338 | E97: 548.3119932 | F97: 547.4323338 | G97: 0.3533446727 | H97: 0.3717252169
A98: 25 | B98: 298.6643935 | C98: 32.65365351 | D98: 587.4837255 | E98: 588.4978473 | F98: 587.4837255 | G98: 0.3547370338 | H98: 0.3737681701
A99: 26 | B99: 297.6156197 | C99: 33.62156145 | D99: 627.459417 | E99: 628.6165908 | F99: 627.459417 | G99: 0.3560825758 | H99: 0.3758566943
A100: 27 | B100: 296.5073242 | C100: 34.55051336 | D100: 667.2262039 | E100: 668.5341195 | F100: 667.2262039 | G100: 0.3573881766 | H100: 0.3779885703
A101: 28 | B101: 295.3417277 | C101: 35.44152696 | D101: 706.667614 | E101: 708.1329967 | F101: 706.667614 | G101: 0.3586591758 | H101: 0.3801605363
A102: 29 | B102: 294.1213085 | C102: 36.29567311 | D102: 745.6839748 | E102: 747.3125531 | F102: 745.6839748 | G102: 0.3598997073 | H102: 0.3823683193
A103: 30 | B103: 292.8487413 | C103: 37.11406077 | D103: 784.192267 | E103: 785.9887724 | F103: 784.192267 | G103: 0.3611129589 | H103: 0.3846066582

Sheet LP1OUT (hidden)
A2: AGE | B2: X1 | C2: X2 | D2: X3 | E2: X4 | F2: X5 | G2: X6 | H2: X7 | I2: X8 | J2: X9 | K2: X10 | L2: X11 | M2: X12 | N2: X13 | O2: X14 | P2: X15 | Q2: X16 | R2: SPH | S2: BA | T2: HT | U2: GCL | V2: VOL | W2: DENS | X2: LAI | Y2: PRNHT | Z2: EXT | AA2: CSHRUB
A3: 0 | B3: 0 | C3: 0 | D3: 0.00347225 | E3: 0 | F3: 0 | G3: 0 | H3: 0 | I3: 0.0017563125 | J3: 0 | K3: 0 | L3: 0 | M3: 0 | N3: 0 | O3: 0.00088825 | P3: 0 | Q3: 0.0005854375 | R3: 807.5 | S3: 0 | T3: 0.2 | U3: 0 | V3: 0 | W3: 0 | X3: 0.005944129375 | Y3: -1 | Z3: 0 | AA3: 0
A4: 1 | B4: 0.08576805118 | C4: 0.08646880294 | D4: 0.02357239379 | E4: 0.00230904625 | F4: 0 | G4: 0.01592951873 | H4: 0 | I4: 0.0189220928 | J4: 0.006619059806 | K4: 0.00098959125 | L4: 0 | M4: 0 | N4: 0 | O4: 0.01866723055 | P4: 0.001332375 | Q4: 0.003781768008 | R4: 807.5 | S4: 0.06164375601 | T4: 0.7304766754 | U4: 0.5304766754 | V4: 0.06164375601 | W4: 0.3069587907 | X4: 0.04426512333 | Y4: 0 | Z4: 0 | AA4: 0.0921
A5: 2 | B5: 0.4623700343 | C5: 0.4420938614 | D5: 0.1260110493 | E5: 0.01567564187 | F5: 0.0008081661875 | G5: 0.1012255294 | H5: 1.57475216e-14 | I5: 0.1129649033 | J5: 0.04248721589 | K5: 0.008991819661 | L5: 0 | M5: 4.632167987e-06 | N5: 3.918567441e-07 | O5: 0.09350884707 | P5: 0.02864038582 | Q5: 0.02090766974 | R5: 807.4110303 | S5: 0.3721075422 | T5: 1.638675201 | U5: 1.438675201 | V5: 0.3721075422 | W5: 0.3035813319 | X5: 0.2425846363 | Y5: 0 | Z5: 0 | AA5: 0.1906
A6: 3 | B6: 1.054849919 | C6: 0.8997907523 | D6: 0.2781114251 | E6: 0.08379734776 | F6: 0.005486474654 | G6: 0.2934839287 | H6: 5.788549564e-11 | I6: 0.3361570875 | J6: 0.1255829156 | K6: 0.05393251754 | L6: 0 | M6: 6.958183997e-05 | N6: 5.900991343e-06 | O6: 0.1865992694 | P6: 0.1540106558 | Q6: 0.05937459965 | R6: 807.0404286 | S6: 1.101244927 | T6: 2.772948473 | U6: 2.507142888 | V6: 1.101244927 | W6: 0.3052518828 | X6: 0.6218641186 | Y6: 0 | Z6: 0 | AA6: 0.2955
A7: 4 | B7: 5.31444469 | C7: 5.070320433 | D7: 1.361320121 | E7: 0.1849440977 | F7: 0.02932907172 | G7: 1.248192843 | H7: 2.034806342e-08 | I7: 1.536948105 | J7: 0.5567061866 | K7: 0.1813343479 | L7: 0 | M7: 0.0003315081819 | N7: 2.806961805e-05 | O7: 1.069887221 | P7: 0.3538240188 | Q7: 0.2484907666 | R7: 806.6699694 | S7: 5.014592294 | T7: 4.055122916 | U7: 3.514853181 | V7: 5.014592294 | W7: 0.3064951276 | X7: 2.556434544 | Y7: 0 | Z7: 0 | AA7: 0.4068
A8: 5 | B8: 11.28840465 | C8: 9.468033422 | D8: 2.665986741 | E8: 0.9052778804 | F8: 0.06473043419 | G8: 3.247675596 | H8: 1.391775337e-05 | I8: 4.313687203 | J8: 1.512026493 | K8: 0.6791294783 | L8: 0 | M8: 0.001130070234 | N8: 9.593611694e-05 | O8: 1.896184322 | P8: 1.77466636 | Q8: 0.6392510127 | R8: 806.298201 | S8: 13.93150141 | T8: 5.43660333 | U8: 4.561349053 | V8: 13.93150141 | W8: 0.3096354855 | X8: 5.719269708 | Y8: 0 | Z8: 0 | AA8: 0.5245
A9: 6 | B9: 18.61857958 | C9: 14.8566417 | D9: 3.989190588 | E9: 1.772881183 | F9: 0.3168472581 | G9: 6.499155835 | H9: 0.001048444746 | I9: 9.338295021 | J9: 3.167629861 | K9: 1.943323892 | L9: 0 | M9: 0.003018291672 | N9: 0.0002564877065 | O9: 2.981699714 | P9: 3.696116336 | Q9: 1.270632338 | R9: 805.9097736 | S9: 29.80531067 | T9: 6.88350425 | U9: 5.62601754 | V9: 29.80531067 | W9: 0.3133097697 | X9: 9.392459222 | Y9: 0 | Z9: 0 | AA9: 0.6486
A10: 6 | B10: 0 | C10: 0 | D10: 3.695813074 | E10: 1.365022569 | F10: 0.1549986717 | G10: 4.214934411 | H10: 0 | I10: 9.338295021 | J10: 3.167629861 | K10: 2.806408607 | L10: 2.285269869 | M10: 0.003018291672 | N10: 0.0002564877065 | O10: 2.981699714 | P10: 3.696116336 | Q10: 1.270632338 | R10: 805.9097736 | S10: 29.80531067 | T10: 6.88350425 | U10: 5.543403862 | V10: 29.80531067 | W10: 0.3133097697 | X10: 8.076955573 | Y10: 1.340100388 | Z10: 0 | AA10: 0.6486
A11: 7 | B11: 23.68682018 | C11: 17.72544155 | D11: 4.53132737 | E11: 2.457715694 | F11: 0.4777578991 | G11: 8.282475511 | H11: 0.00367564069 | I11: 16.32820645 | J11: 5.380251716 | K11: 4.287195399 | L11: 2.004764816 | M11: 0.007106177077 | N11: 0.0006043751134 | O11: 3.402178122 | P11: 6.246685412 | Q11: 2.06974509 | R11: 805.4528019 | S11: 51.26330059 | T11: 8.370832622 | U11: 6.694812204 | V11: 51.26330059 | W11: 0.3185164877 | X11: 11.47249019 | Y11: 0 | Z11: 0 | AA11: 0.7791
A12: 7 | B12: 0 | C12: 0 | D12: 4.400658683 | E12: 2.088473671 | F12: 0.2911575047 | G12: 6.817595183 | H12: 0 | I12: 16.32820645 | J12: 5.380251716 | K12: 4.973706504 | L12: 3.473320785 | M12: 0.007106177077 | N12: 0.0006043751134 | O12: 3.402178122 | P12: 6.246685412 | Q12: 2.06974509 | R12: 805.4528019 | S12: 51.26330059 | T12: 8.370832622 | U12: 6.073987921 | V12: 51.26330059 | W12: 0.3185164877 | X12: 10.42806059 | Y12: 2.296844701 | Z12: 0 | AA12: 0.7791
A13: 8 | B13: 29.23365099 | C13: 21.96668015 | D13: 4.978611433 | E13: 2.926438024 | F13: 0.7309657847 | G13: 11.70673239 | H13: 0.03038066915 | I13: 25.6650814 | J13: 8.23243292 | K13: 6.786999258 | L13: 3.046988629 | M13: 0.01632733097 | N13: 0.001393125481 | O13: 4.215922391 | P13: 8.101676181 | Q13: 3.068271869 | R13: 804.816655 | S13: 79.44724762 | T13: 9.879571648 | U13: 7.582726947 | V13: 79.44724762 | W13: 0.3230455701 | X13: 13.24608118 | Y13: 0 | Z13: 0 | AA13: 0.916
A14: 8 | B14: 0 | C14: 0 | D14: 4.831708034 | E14: 2.542717113 | F14: 0.4978366822 | G14: 9.59745145 | H14: 0 | I14: 25.6650814 | J14: 8.23243292 | K14: 7.55075267 | L14: 5.186650238 | M14: 0.01632733097 | N14: 0.001393125481 | O14: 4.215922391 | P14: 8.101676181 | Q14: 3.068271869 | R14: 804.816655 | S14: 79.44724762 | T14: 9.879571648 | U14: 7.024262944 | V14: 79.44724762 | W14: 0.3230455701 | X14: 12.08650941 | Y14: 2.855308704 | Z14: 0 | AA14: 0.916
A15: 9 | B15: 34.02671979 | C15: 24.97068868 | D15: 5.1760195 | E15: 3.213085843 | F15: 0.8899509896 | G15: 15.03873219 | H15: 0.1351187939 | I15: 37.27435111 | J15: 11.6716255 | K15: 9.424293697 | L15: 4.550015756 | M15: 0.03725933659 | N15: 0.003189337809 | O15: 4.658803423 | P15: 10.21268815 | Q15: 4.260999098 | R15: 803.8492837 | S15: 113.9490364 | T15: 11.39499057 | U15: 8.53968187 | V15: 113.9490364 | W15: 0.3271142284 | X15: 14.22216313 | Y15: 0 | Z15: 0 | AA15: 1.0593
A16: 9 | B16: 0 | C16: 0 | D16: 2.008680929 | E16: 1.246916526 | F16: 0.3453672422 | G16: 5.836147747 | H16: 0.05243615185 | I16: 14.46522336 | J16: 4.529459666 | K16: 15.10238533 | L16: 13.83528284 | M16: 25.45380129 | N16: 7.145355175 | O16: 1.807962583 | P16: 13.06352899 | Q16: 1.653584888 | R16: 307 | S16: 44.22070979 | T16: 11.39499057 | U16: 8.53968187 | V16: 44.22070979 | W16: 0.3271142284 | X16: 5.519258156 | Y16: -1 | Z16: 0 | AA16: 1.0593
A17: 10 | B17: 13.8664008 | C17: 9.81691532 | D17: 1.893957227 | E17: 1.335772818 | F17: 0.4364207842 | G17: 8.033095296 | H17: 0.05555468799 | I17: 19.46422737 | J17: 5.970600059 | K17: 13.52233247 | L17: 12.13707345 | M17: 22.69909406 | N17: 5.79936327 | O17: 1.814306972 | P17: 8.982437791 | Q17: 2.15701923 | R17: 306.8365288 | S17: 58.74338511 | T17: 13.27055509 | U17: 10.41524639 | V17: 58.74338511 | W17: 0.331343305 | X17: 5.878411906 | Y17: 0 | Z17: 0 | AA17: 1.209
A18: 11 | B18: 16.55626411 | C18: 12.50235721 | D18: 2.0831661 | E18: 1.259481556 | F18: 0.4675204862 | G18: 10.5715886 | H18: 0.06065881551 | I18: 25.69664591 | J18: 7.727395028 | K18: 12.40452628 | L18: 10.64731048 | M18: 20.24546718 | N18: 4.707228235 | O18: 2.302223439 | P18: 7.033030598 | Q18: 2.780321202 | R18: 306.6596083 | S18: 76.87527095 | T18: 14.8093243 | U18: 11.95401559 | V18: 76.87527095 | W18: 0.3342641346 | X18: 6.091975127 | Y18: 0 | Z18: 0 | AA18: 1.3651
A19: 12 | B19: 22.39549399 | C19: 17.78302816 | D19: 2.626184671 | E19: 1.385305457 | F19: 0.4408185447 | G19: 13.87138991 | H19: 0.09322699198 | I19: 34.42119 | J19: 10.14081252 | K19: 11.56702618 | L19: 9.340408207 | M19: 18.06188249 | N19: 3.821258819 | O19: 3.153049911 | P19: 6.829189845 | Q19: 3.653321436 | R19: 306.4582685 | S19: 102.7779226 | T19: 16.32625175 | U19: 13.40814434 | V19: 102.7779226 | W19: 0.3349084038 | X19: 7.033532376 | Y19: 0 | Z19: 0 | AA19: 1.5276
A20: 13 | B20: 24.79941634 | C20: 18.7105436 | D20: 2.70643665 | E20: 1.746412807 | F20: 0.4848569098 | G20: 17.33586393 | H20: 0.2047450587 | I20: 44.34416169 | J20: 12.84374568 | K20: 11.12283613 | L20: 8.193921425 | M20: 16.12154403 | N20: 3.102830211 | O20: 3.158710551 | P20: 8.007585993 | Q20: 4.650555547 | R20: 306.2205273 | S20: 131.964697 | T20: 17.81555375 | U20: 14.49108024 | V20: 131.964697 | W20: 0.3360304891 | X20: 7.766720894 | Y20: 0 | Z20: 0 | AA20: 1.6965
A21: 14 | B21: 26.83389246 | C21: 20.34781034 | D21: 2.779136488 | E21: 1.799780372 | F21: 0.6112444823 | G21: 20.79971316 | H21: 0.4933203314 | I21: 55.3086984 | J21: 15.79289602 | K21: 11.07758212 | L21: 7.188159964 | M21: 14.40089335 | N21: 2.520625871 | O21: 3.519163603 | P21: 8.581707103 | Q21: 5.75905168 | R21: 305.9374137 | S21: 163.9125919 | T21: 19.27273105 | U21: 15.54138757 | V21: 163.9125919 | W21: 0.3374280021 | X21: 8.156966463 | Y21: 0 | Z21: 0 | AA21: 1.8718
A22: 15 | B22: 28.54428027 | C22: 21.06902564 | D22: 2.831818966 | E22: 1.848125765 | F22: 0.6299231303 | G22: 24.05270859 | H22: 1.10833305 | I22: 67.16509089 | J22: 18.94928065 | K22: 11.22403758 | L22: 6.305850518 | M22: 12.87953501 | N22: 2.049285425 | O22: 3.643666849 | P22: 9.397964815 | Q22: 6.965380423 | R22: 305.601244 | S22: 198.1420719 | T22: 20.69433403 | U22: 16.55811127 | V22: 198.1420719 | W22: 0.3389744049 | X22: 8.335310543 | Y22: 0 | Z22: 0 | AA22: 2.0535
A23: 16 | B23: 29.96537141 | C23: 21.76029194 | D23: 2.87049767 | E23: 1.883159613 | F23: 0.6468440176 | G23: 26.86285279 | H23: 2.219016305 | I23: 79.77219058 | J23: 22.27766935 | K23: 11.40352758 | L23: 5.531839992 | M23: 11.53979063 | N23: 1.6682729 | O23: 3.834230825 | P23: 9.976523384 | Q23: 8.256034919 | R23: 305.2058621 | S23: 234.2147845 | T23: 22.07777325 | U23: 17.54074809 | V23: 234.2147845 | W23: 0.3405941719 | X23: 8.470576211 | Y23: 0 | Z23: 0 | AA23: 2.2416
A24: 17 | B24: 31.11704116 | C24: 21.92889642 | D24: 2.896865765 | E24: 1.90888095 | F24: 0.6591058644 | G24: 29.04753462 | H24: 3.937698319 | I24: 92.99455684 | J24: 25.74519665 | K24: 11.59441408 | L24: 4.852835254 | M24: 10.36626351 | N24: 1.360954873 | O24: 3.943415338 | P24: 10.54007746 | Q24: 9.617402033 | R24: 304.746694 | S24: 271.7195328 | T24: 23.42116696 | U24: 18.48914941 | V24: 271.7195328 | W24: 0.3422446516 | X24: 8.566605305 | Y24: 0 | Z24: 0 | AA24: 2.4361
A25: 18 | B25: 32.0113182 | C25: 21.93679208 | D25: 2.911249447 | E25: 1.926415734 | F25: 0.6681083326 | G25: 30.55694383 | H25: 6.23852844 | I25: 106.7010312 | J25: 29.32058392 | K25: 11.77997983 | L25: 4.257174834 | M25: 9.345424998 | N25: 1.113850054 | O25: 4.046944566 | P25: 10.97436019 | Q25: 11.03583379 | R25: 304.2207124 | S25: 310.2648912 | T25: 24.72321709 | U25: 19.40344441 | V25: 310.2648912 | W25: 0.343903014 | X25: 8.627870636 | Y25: 0 | Z25: 0 | AA25: 2.637
A26: 19 | B26: 32.65920039 | C26: 21.82555693 | D26: 2.913643415 | E26: 1.935980883 | F26: 0.6742455068 | G26: 31.49002378 | H26: 8.951489161 | I26: 120.7653943 | J26: 32.97404791 | K26: 11.94939422 | L26: 3.734628649 | M26: 8.465234993 | N26: 0.9160193451 | O26: 4.108758662 | P26: 11.33810974 | Q26: 12.49788008 | R26: 303.6263474 | S26: 349.4797153 | T26: 25.98310735 | U26: 20.28397889 | V26: 349.4797153 | W26: 0.3455576648 | X26: 8.655363896 | Y26: 0 | Z26: 0 | AA26: 2.8443
A27: 20 | B27: 33.07402288 | C27: 21.73556088 | D27: 2.904202493 | E27: 1.937572871 | F27: 0.6775933089 | G27: 32.02078225 | H27: 11.84724963 | I27: 135.068047 | J27: 36.67755915 | K27: 12.09473281 | L27: 3.276222304 | M27: 7.714808205 | N27: 0.7585712515 | O27: 4.149148064 | P27: 11.60543067 | Q27: 13.99058369 | R27: 302.9633576 | S27: 389.0174538 | T27: 27.20041912 | U27: 21.13126629 | V27: 389.0174538 | W27: 0.3472030514 | X27: 8.649448358 | Y27: 0 | Z27: 0 | AA27: 3.058
A28: 21 | B28: 33.27219629 | C28: 21.63875257 | D28: 2.883379444 | E28: 1.931294658 | F28: 0.6781505048 | G28: 32.31047581 | H28: 14.72967363 | I28: 149.497771 | J28: 40.40517436 | K28: 12.20992487 | L28: 2.874082967 | M28: 7.084134485 | N28: 0.6342621285 | O28: 4.160832244 | P28: 11.79432882 | Q28: 15.50175028 | R28: 302.2326716 | S28: 428.5608934 | T28: 28.3750615 | U28: 21.94594848 | V28: 428.5608934 | W28: 0.3488367075 | X28: 8.610932901 | Y28: 0 | Z28: 0 | AA28: 3.2781
A29: 22 | B29: 33.19488047 | C29: 21.44111876 | D29: 2.844903318 | E29: 1.91744733 | F29: 0.6759531301 | G29: 32.46930345 | H29: 17.46199592 | I29: 163.9188966 | J29: 44.12454915 | K29: 12.29042428 | L29: 2.521304153 | M29: 6.563725376 | N29: 0.5371623248 | O29: 4.136251543 | P29: 11.9025262 | Q29: 17.01655998 | R29: 301.4365561 | S29: 467.7167239 | T29: 29.50721162 | U29: 22.72876071 | V29: 467.7167239 | W29: 0.3504661865 | X29: 8.531234324 | Y29: 0 | Z29: 0 | AA29: 3.5046
A30: 23 | B30: 33.81004124 | C30: 22.00799096 | D30: 2.874802223 | E30: 1.891860706 | F30: 0.6711065656 | G30: 32.56425423 | H30: 20.07898375 | I30: 178.6246924 | J30: 47.91264658 | K30: 12.33112532 | L30: 2.211827113 | M30: 6.145480697 | N30: 0.4624921583 | O30: 4.260235511 | P30: 11.91758989 | Q30: 18.56532067 | R30: 300.5761559 | S30: 507.4548595 | T30: 30.59727471 | U30: 23.48053055 | V30: 507.4548595 | W30: 0.3520011466 | X30: 8.528755189 | Y30: 0 | Z30: 0 | AA30: 3.7375
A31: 24 | B31: 34.19221489 | C31: 22.14545792 | D31: 2.884269835 | E31: 1.911743479 | F31: 0.6621512472 | G31: 32.62621841 | H31: 22.53447227 | I31: 193.5014963 | J31: 51.7422398 | K31: 12.34995355 | L31: 1.940336778 | M31: 5.822719553 | N31: 0.4064216063 | O31: 4.266871192 | P31: 12.11079641 | Q31: 20.13567396 | R31: 299.6517447 | S31: 547.4323338 | T31: 31.64584282 | U31: 24.2021565 | V31: 547.4323338 | W31: 0.3534710765 | X31: 8.557532174 | Y31: 0 | Z31: 0 | AA31: 3.9768
A32: 25 | B32: 34.4639335 | C32: 22.34660211 | D32: 2.888265055 | E32: 1.91803944 | F32: 0.6691102175 | G32: 32.67235607 | H32: 24.81443794 | I32: 208.4907316 | J32: 55.60003344 | K32: 12.37132394 | L32: 1.702170478 | M32: 5.589121194 | N32: 0.3658094489 | O32: 4.311976163 | P32: 12.21348907 | Q32: 21.72105768 | R32: 298.6643935 | S32: 587.4837255 | T32: 32.65365351 | U32: 24.89457317 | V32: 587.4837255 | W32: 0.3548876719 | X32: 8.583832869 | Y32: 0 | Z32: 0 | AA32: 4.2225
A33: 26 | B33: 34.63430499 | C33: 22.39184155 | D33: 2.886411537 | E33: 1.920696261 | F33: 0.6713138041 | G33: 32.71154966 | H33: 26.91508145 | I33: 223.538745 | J33: 59.47385702 | K33: 12.40020283 | L33: 1.493237858 | M33: 5.438764542 | N33: 0.3380806033 | O33: 4.31927489 | P33: 12.330439 | Q33: 23.31544572 | R33: 297.6156197 | S33: 627.459417 | T33: 33.62156145 | U33: 25.55873994 | V33: 627.459417 | W33: 0.3562600845 | X33: 8.588631582 | Y33: 0 | Z33: 0 | AA33: 4.4746
A34: 27 | B34: 34.71307417 | C34: 22.41523668 | D34: 2.879213241 | E34: 1.919463672 | F34: 0.6722436915 | G34: 32.74828772 | H34: 28.8381993 | I34: 238.5970794 | J34: 63.35272948 | K34: 12.42615766 | L34: 1.309950637 | M34: 5.36604054 | N34: 0.3211154479 | O34: 4.328668985 | P34: 12.39752305 | Q34: 24.91338234 | R34: 296.5073242 | S34: 667.2262039 | T34: 34.55051336 | U34: 26.19562934 | V34: 667.2262039 | W34: 0.3575954872 | X34: 8.577889224 | Y34: 0 | Z34: 0 | AA34: 4.7331
A35: 28 | B35: 34.71043367 | C35: 22.36133989 | D35: 2.867218038 | E35: 1.914676805 | F35: 0.6718122853 | G35: 32.78479662 | H35: 30.58866106 | I35: 253.6226548 | J35: 67.22690325 | K35: 12.44450391 | L35: 1.149160973 | M35: 5.365586989 | N35: 0.3131611735 | O35: 4.322064548 | P35: 12.44381454 | Q35: 26.51000437 | R35: 295.3417277 | S35: 706.667614 | T35: 35.44152696 | U35: 26.80621779 | V35: 706.667614 | W35: 0.3588995021 | X35: 8.552752619 | Y35: 0 | Z35: 0 | AA35: 4.998
A36: 29 | B36: 34.63686135 | C36: 22.26626277 | D36: 2.851037741 | E36: 1.906699995 | F36: 0.6701368818 | G36: 32.82215875 | H36: 32.17308663 | I36: 268.577867 | J36: 71.08789053 | K36: 12.45186966 | L36: 1.008107409 | M36: 5.432243414 | N36: 0.3127610083 | O36: 4.310426366 | P36: 12.4561278 | Q36: 28.10105344 | R36: 294.1213085 | S36: 745.6839748 | T36: 36.29567311 | U36: 27.39147806 | V36: 745.6839748 | W36: 0.3601765306 | X36: 8.514830201 | Y36: 0 | Z36: 0 | AA36: 5.2693
A37: 30 | B37: 34.50298292 | C37: 22.1229849 | D37: 2.831328793 | E37: 1.895940098 | F37: 0.6673449983 | G37: 32.86088389 | H37: 33.59916248 | I37: 283.4306191 | J37: 74.92847434 | K37: 12.44615012 | L37: 0.8843674407 | M37: 5.561023293 | N37: 0.3186979042 | O37: 4.290223748 | P37: 12.44458089 | Q37: 29.68287976 | R37: 292.8487413 | S37: 784.192267 | T37: 37.11406077 | U37: 27.95237335 | V37: 784.192267 | W37: 0.3614300103 | X37: 8.465872015 | Y37: 0 | Z37: 0 | AA37: 5.547
A38: 30 | B38: 0 | C38: 0 | D38: 0 | E38: 0 | F38: 0 | G38: 0 | H38: 0 | I38: 0 | J38: 0 | K38: 17.84076401 | L38: 67.34441381 | M38: 52.52804812 | N38: 75.24717224 | O38: 0 | P38: 16.73480464 | Q38: 0 | R38: 0 | S38: 0 | T38: 0 | U38: 0 | V38: 0 | W38: 0.3614300103 | X38: 0 | Y38: -1 | Z38: 266.146474 | AA38: 5.547
A39: 0 | B39: 0 | C39: 0 | D39: 0.00347225 | E39: 0 | F39: 0 | G39: 0 | H39: 0 | I39: 0.0017563125 | J39: 0 | K39: 17.84076401 | L39: 67.34441381 | M39: 52.52804812 | N39: 75.24717224 | O39: 0.00088825 | P39: 16.73480464 | Q39: 0.0005854375 | R39: 807.5 | S39: 0 | T39: 0.2 | U39: 0 | V39: 0 | W39: 0 | X39: 0.005944129375 | Y39: -1 | Z39: 0 | AA39: 5.547
A40: 1 | B40: 0.08576805118 | C40: 0.08646880294 | D40: 0.02357239379 | E40: 0.00230904625 | F40: 0 | G40: 0.01592951873 | H40: 0 | I40: 0.0189220928 | J40: 0.006619059806 | K40: 13.93348332 | L40: 59.07823544 | M40: 46.83209658 | N40: 61.06746072 | O40: 0.01866723055 | P40: 8.034038603 | Q40: 0.003781768008 | R40: 807.5 | S40: 0.06164375601 | T40: 0.7304766754 | U40: 0.5304766754 | V40: 0.06164375601 | W40: 0.3069587907 | X40: 0.04426512333 | Y40: 0 | Z40: 0 | AA40: 4.725343863
A41: 2 | B41: 0.4623700343 | C41: 0.4420938614 | D41: 0.1260110493 | E41: 0.01567564187 | F41: 0.0008081661875 | G41: 0.1012255294 | H41: 1.57475216e-14 | I41: 0.1129649033 | J41: 0.04248721589 | K41: 10.88937685 | L41: 51.8266877 | M41: 41.75379806 | N41: 49.55979975 | O41: 0.09350884707 | P41: 3.884339375 | Q41: 0.02090766974 | R41: 807.4110303 | S41: 0.3721075422 | T41: 1.638675201 | U41: 1.438675201 | V41: 0.3721075422 | W41: 0.3035813319 | X41: 0.2425846363 | Y41: 0 | Z41: 0 | AA41: 4.060610581
A42: 3 | B42: 1.054849919 | C42: 0.8997907523 | D42: 0.2781114251 | E42: 0.08379734776 | F42: 0.005486474654 | G42: 0.2934839287 | H42: 5.788549564e-11 | I42: 0.3361570875 | J42: 0.1255829156 | K42: 8.550816181 | L42: 45.46522992 | M42: 37.22623267 | N42: 40.22066815 | O42: 0.1865992694 | P42: 2.004746171 | Q42: 0.05937459965 | R42: 807.0404286 | S42: 1.101244927 | T42: 2.772948473 | U42: 2.507142888 | V42: 1.101244927 | W42: 0.3052518828 | X42: 0.6218641186 | Y42: 0 | Z42: 0 | AA42: 3.528004556
A43: 4 | B43: 5.31444469 | C43: 5.070320433 | D43: 1.361320121 | E43: 0.1849440977 | F43: 0.02932907172 | G43: 1.248192843 | H43: 2.034806342e-08 | I43: 1.536948105 | J43: 0.5567061866 | K43: 6.816856142 | L43: 39.88460818 | M43: 33.18982412 | N43: 32.6414369 | O43: 1.069887221 | P43: 1.242177066 | Q43: 0.2484907666 | R43: 806.6699694 | S43: 5.014592294 | T43: 4.055122916 | U43: 3.514853181 | V43: 5.014592294 | W43: 0.3064951276 | X43: 2.556434544 | Y43: 0 | Z43: 0 | AA43: 3.106814764
A44: 5 | B44: 11.28840465 | C44: 9.468033422 | D44: 2.665986741 | E44: 0.9052778804 | F44: 0.06473043419 | G44: 3.247675596 | H44: 1.391775337e-05 | I44: 4.313687203 | J44: 1.512026493 | K44: 5.861046899 | L44: 34.98897888 | M44: 29.59167415 | N44: 26.49049939 | O44: 1.896184322 | P44: 2.201075823 | Q44: 0.6392510127 | R44: 806.298201 | S44: 13.93150141 | T44: 5.43660333 | U44: 4.561349053 | V44: 13.93150141 | W44: 0.3096354855 | X44: 5.719269708 | Y44: 0 | Z44: 0 | AA44: 2.779741903
A45: 6 | B45: 18.61857958 | C45: 14.8566417 | D45: 3.989190588 | E45: 1.772881183 | F45: 0.3168472581 | G45: 6.499155835 | H45: 0.001048444746 | I45: 9.338295021 | J45: 3.167629861 | K45: 5.990069422 | L45: 30.69426275 | M45: 26.38487081 | N45: 21.498761 | O45: 2.981699714 | P45: 3.900792878 | Q45: 1.270632338 | R45: 805.9097736 | S45: 29.80531067 | T45: 6.88350425 | U45: 5.62601754 | V45: 29.80531067 | W45: 0.3133097697 | X45: 9.392459222 | Y45: 0 | Z45: 0 | AA45: 2.532336381
A46: 6 | B46: 0 | C46: 0 | D46: 3.695813074 | E46: 1.365022569 | F46: 0.1549986717 | G46: 4.214934411 | H46: 0 | I46: 9.338295021 | J46: 3.167629861 | K46: 6.853154137 | L46: 32.97953262 | M46: 26.38487081 | N46: 21.498761 | O46: 2.981699714 | P46: 3.900792878 | Q46: 1.270632338 | R46: 805.9097736 | S46: 29.80531067 | T46: 6.88350425 | U46: 5.543403862 | V46: 29.80531067 | W46: 0.3133097697 | X46: 8.076955573 | Y46: 1.340100388 | Z46: 0 | AA46: 2.532336381
A47: 7 | B47: 23.68682018 | C47: 17.72544155 | D47: 4.53132737 | E47: 2.457715694 | F47: 0.4777578991 | G47: 8.282475511 | H47: 0.00367564069 | I47: 16.32820645 | J47: 5.380251716 | K47: 7.447444406 | L47: 28.93146562 | M47: 23.52820603 | N47: 17.4478923 | O47: 3.402178122 | P47: 6.344930152 | Q47: 2.06974509 | R47: 805.4528019 | S47: 51.26330059 | T47: 8.370832622 | U47: 6.694812204 | V47: 51.26330059 | W47: 0.3185164877 | X47: 11.47249019 | Y47: 0 | Z47: 0 | AA47: 2.352528885
A48: 7 | B48: 0 | C48: 0 | D48: 4.400658683 | E48: 2.088473671 | F48: 0.2911575047 | G48: 6.817595183 | H48: 0 | I48: 16.32820645 | J48: 5.380251716 | K48: 8.133955511 | L48: 30.40002159 | M48: 23.52820603 | N48: 17.4478923 | O48: 3.402178122 | P48: 6.344930152 | Q48: 2.06974509 | R48: 805.4528019 | S48: 51.26330059 | T48: 8.370832622 | U48: 6.073987921 | V48: 51.26330059 | W48: 0.3185164877 | X48: 10.42806059 | Y48: 2.296844701 | Z48: 0 | AA48: 2.352528885
A49: 8 | B49: 29.23365099 | C49: 21.96668015 | D49: 4.978611433 | E49: 2.926438024 | F49: 0.7309657847 | G49: 11.70673239 | H49: 0.03038066915 | I49: 25.6650814 | J49: 8.23243292 | K49: 9.254951273 | L49: 26.66857622 | M49: 20.98688419 | N49: 14.16088296 | O49: 4.215922391 | P49: 8.148833656 | Q49: 3.068271869 | R49: 804.816655 | S49: 79.44724762 | T49: 9.879571648 | U49: 7.582726947 | V49: 79.44724762 | W49: 0.3230455701 | X49: 13.24608118 | Y49: 0 | Z49: 0 | AA49: 2.230238277
A50: 8 | B50: 0 | C50: 0 | D50: 4.831708034 | E50: 2.542717113 | F50: 0.4978366822 | G50: 9.59745145 | H50: 0 | I50: 25.6650814 | J50: 8.23243292 | K50: 10.01870468 | L50: 28.80823783 | M50: 20.98688419 | N50: 14.16088296 | O50: 4.215922391 | P50: 8.148833656 | Q50: 3.068271869 | R50: 804.816655 | S50: 79.44724762 | T50: 9.879571648 | U50: 7.024262944 | V50: 79.44724762 | W50: 0.3230455701 | X50: 12.08650941 | Y50: 2.855308704 | Z50: 0 | AA50: 2.230238277
A51: 9 | B51: 34.02671979 | C51: 24.97068868 | D51: 5.1760195 | E51: 3.213085843 | F51: 0.8899509896 | G51: 15.03873219 | H51: 0.1351187939 | I51: 37.27435111 | J51: 11.6716255 | K51: 11.35160611 | L51: 25.27217568 | M51: 18.73384486 | N51: 11.49443962 | O51: 4.658803423 | P51: 10.23532374 | Q51: 4.260999098 | R51: 803.8492837 | S51: 113.9490364 | T51: 11.39499057 | U51: 8.53968187 | V51: 113.9490364 | W51: 0.3271142284 | X51: 14.22216313 | Y51: 0 | Z51: 0 | AA51: 2.157044084
A52: 9 | B52: 0 | C52: 0 | D52: 2.008680929 | E52: 1.246916526 | F52: 0.3453672422 | G52: 5.836147747 | H52: 0.05243615185 | I52: 14.46522336 | J52: 4.529459666 | K52: 17.02969775 | L52: 34.55744277 | M52: 44.15038682 | N52: 18.63660545 | O52: 1.807962583 | P52: 13.08616458 | Q52: 1.653584888 | R52: 307 | S52: 44.22070979 | T52: 11.39499057 | U52: 8.53968187 | V52: 44.22070979 | W52: 0.3271142284 | X52: 5.519258156 | Y52: -1 | Z52: 0 | AA52: 2.157044084
A53: 10 | B53: 13.8664008 | C53: 9.81691532 | D53: 1.893957227 | E53: 1.335772818 | F53: 0.4364207842 | G53: 8.033095296 | H53: 0.05555468799 | I53: 19.46422737 | J53: 5.970600059 | K53: 15.02743999 | L53: 30.31569546 | M53: 39.36828947 | N53: 15.12518182 | O53: 1.814306972 | P53: 8.993302873 | Q53: 2.15701923 | R53: 306.8365288 | S53: 58.74338511 | T53: 13.27055509 | U53: 10.41524639 | V53: 58.74338511 | W53: 0.331343305 | X53: 5.878411906 | Y53: 0 | Z53: 0 | AA53: 2.125912933
A54: 11 | B54: 16.55626411 | C54: 12.50235721 | D54: 2.0831661 | E54: 1.259481556 | F54: 0.4675204862 | G54: 10.5715886 | H54: 0.06065881551 | I54: 25.69664591 | J54: 7.727395028 | K54: 13.57991884 | L54: 26.59460069 | M54: 35.10711534 | N54: 12.27567289 | O54: 2.302223439 | P54: 7.038245838 | Q54: 2.780321202 | R54: 306.6596083 | S54: 76.87527095 | T54: 14.8093243 | U54: 11.95401559 | V54: 76.87527095 | W54: 0.3342641346 | X54: 6.091975127 | Y54: 0 | Z54: 0 | AA54: 2.130970059
A55: 12 | B55: 22.39549399 | C55: 17.78302816 | D55: 2.626184671 | E55: 1.385305457 | F55: 0.4408185447 | G55: 13.87138991 | H55: 0.09322699198 | I55: 34.42119 | J55: 10.14081252 | K55: 12.48493246 | L55: 23.33025105 | M55: 31.31198728 | N55: 9.963492242 | O55: 3.153049911 | P55: 6.83169316 | Q55: 3.653321436 | R55: 306.4582685 | S55: 102.7779226 | T55: 16.32625175 | U55: 13.40814434 | V55: 102.7779226 | W55: 0.3349084038 | X55: 7.033532376 | Y55: 0 | Z55: 0 | AA55: 2.167308446
A56: 13 | B56: 24.79941634 | C56: 18.7105436 | D56: 2.70643665 | E56: 1.746412807 | F56: 0.4848569098 | G56: 17.33586393 | H56: 0.2047450587 | I56: 44.34416169 | J56: 12.84374568 | K56: 11.83966214 | L56: 20.46658344 | M56: 27.93485538 | N56: 8.087610198 | O56: 3.158710551 | P56: 8.008787584 | Q56: 4.650555547 | R56: 306.2205273 | S56: 131.964697 | T56: 17.81555375 | U56: 14.49108024 | V56: 131.964697 | W56: 0.3360304891 | X56: 7.766720894 | Y56: 0 | Z56: 0 | AA56: 2.230829409
A57: 14 | B57: 26.83389246 | C57: 20.34781034 | D57: 2.779136488 | E57: 1.799780372 | F57: 0.6112444823 | G57: 20.79971316 | H57: 0.4933203314 | I57: 55.3086984 | J57: 15.79289602 | K57: 11.63737731 | L57: 17.95441621 | M57: 24.93321195 | N57: 6.566065015 | O57: 3.519163603 | P57: 8.582283867 | Q57: 5.75905168 | R57: 305.9374137 | S57: 163.9125919 | T57: 19.27273105 | U57: 15.54138757 | V57: 163.9125919 | W57: 0.3374280021 | X57: 8.156966463 | Y57: 0 | Z57: 0 | AA57: 2.318109439
A58: 15 | B58: 28.54428027 | C58: 21.06902564 | D58: 2.831818966 | E58: 1.848125765 | F58: 0.6299231303 | G58: 24.05270859 | H58: 1.10833305 | I58: 67.16509089 | J58: 18.94928065 | K58: 11.66120176 | L58: 15.75060452 | M58: 22.26976707 | N58: 5.332394791 | O58: 3.643666849 | P58: 9.398241661 | Q58: 6.965380423 | R58: 305.601244 | S58: 198.1420719 | T58: 20.69433403 | U58: 16.55811127 | V58: 198.1420719 | W58: 0.3389744049 | X58: 8.335310543 | Y58: 0 | Z58: 0 | AA58: 2.426288979
A59: 16 | B59: 29.96537141 | C59: 21.76029194 | D59: 2.87049767 | E59: 1.883159613 | F59: 0.6468440176 | G59: 26.86285279 | H59: 2.219016305 | I59: 79.77219058 | J59: 22.27766935 | K59: 11.74492479 | L59: 13.8172993 | M59: 19.9117799 | N59: 4.332707275 | O59: 3.834230825 | P59: 9.976656271 | Q59: 8.256034919 | R59: 305.2058621 | S59: 234.2147845 | T59: 22.07777325 | U59: 17.54074809 | V59: 234.2147845 | W59: 0.3405941719 | X59: 8.470576211 | Y59: 0 | Z59: 0 | AA59: 2.552979529
A60: 17 | B60: 31.11704116 | C60: 21.92889642 | D60: 2.896865765 | E60: 1.90888095 | F60: 0.6591058644 | G60: 29.04753462 | H60: 3.937698319 | I60: 92.99455684 | J60: 25.74519665 | K60: 11.86102343 | L60: 12.1212973 | M60: 17.83042455 | N60: 3.523298475 | O60: 3.943415338 | P60: 10.54014125 | Q60: 9.617402033 | R60: 304.746694 | S60: 271.7195328 | T60: 23.42116696 | U60: 18.48914941 | V60: 271.7195328 | W60: 0.3422446516 | X60: 8.566605305 | Y60: 0 | Z60: 0 | AA60: 2.696186045
A61: 18 | B61: 32.0113182 | C61: 21.93679208 | D61: 2.911249447 | E61: 1.926415734 | F61: 0.6681083326 | G61: 30.55694383 | H61: 6.23852844 | I61: 106.7010312 | J61: 29.32058392 | K61: 11.98818466 | L61: 10.63347077 | M61: 16.00019941 | N61: 2.868717766 | O61: 4.046944566 | P61: 10.97439081 | Q61: 11.03583379 | R61: 304.2207124 | S61: 310.2648912 | T61: 24.72321709 | U61: 19.40344441 | V61: 310.2648912 | W61: 0.343903014 | X61: 8.627870636 | Y61: 0 | Z61: 0 | AA61: 2.854242126
A62: 19 | B62: 32.65920039 | C62: 21.82555693 | D62: 2.913643415 | E62: 1.935980883 | F62: 0.6742455068 | G62: 31.49002378 | H62: 8.951489161 | I62: 120.7653943 | J62: 32.97404791 | K62: 12.11198885 | L62: 9.328267248 | M62: 14.39838974 | N62: 2.340196651 | O62: 4.108758662 | P62: 11.33812444 | Q62: 12.49788008 | R62: 303.6263474 | S62: 349.4797153 | T62: 25.98310735 | U62: 20.28397889 | V62: 349.4797153 | W62: 0.3455576648 | X62: 8.655363896 | Y62: 0 | Z62: 0 | AA62: 3.025755877
A63: 20 | B63: 33.07402288 | C63: 21.73556088 | D63: 2.904202493 | E63: 1.937572871 | F63: 0.6775933089 | G63: 32.02078225 | H63: 11.84724963 | I63: 135.068047 | J63: 36.67755915 | K63: 12.2217088 | L63: 8.183270706 | M63: 13.00459311 | N63: 1.914374043 | O63: 4.149148064 | P63: 11.60543772 | Q63: 13.99058369 | R63: 302.9633576 | S63: 389.0174538 | T63: 27.20041912 | U63: 21.13126629 | V63: 389.0174538 | W63: 0.3472030514 | X63: 8.649448358 | Y63: 0 | Z63: 0 | AA63: 3.209564688
A64: 21 | B64: 33.27219629 | C64: 21.63875257 | D64: 2.883379444 | E64: 1.931294658 | F64: 0.6781505048 | G64: 32.31047581 | H64: 14.72967363 | I64: 149.497771 | J64: 40.40517436 | K64: 12.30908499 | L64: 7.178816565 | M64: 11.80031425 | N64: 1.572263377 | O64: 4.160832244 | P64: 11.7943322 | Q64: 15.50175028 | R64: 302.2326716 | S64: 428.5608934 | T64: 28.3750615 | U64: 21.94594848 | V64: 428.5608934 | W64: 0.3488367075 | X64: 8.610932901 | Y64: 0 | Z64: 0 | AA64: 3.404697469
A65: 22 | B65: 33.19488047 | C65: 21.44111876 | D65: 2.844903318 | E65: 1.91744733 | F65: 0.6759531301 | G65: 32.46930345 | H65: 17.46199592 | I65: 163.9188966 | J65: 44.12454915 | K65: 12.36786197 | L65: 6.297653973 | M65: 10.76849966 | N65: 1.298404943 | O65: 4.136251543 | P65: 11.90252782 | Q65: 17.01655998 | R65: 301.4365561 | S65: 467.7167239 | T65: 29.50721162 | U65: 22.72876071 | V65: 467.7167239 | W65: 0.3504661865 | X65: 8.531234324 | Y65: 0 | Z65: 0 | AA65: 3.610343095
A66: 23 | B66: 33.81004124 | C66: 22.00799096 | D66: 2.874802223 | E66: 1.891860706 | F66: 0.6711065656 | G66: 32.56425423 | H66: 20.07898375 | I66: 178.6246924 | J66: 47.91264658 | K66: 12.3915992 | L66: 5.524649531 | M66: 9.894304469 | N66: 1.080284858 | O66: 4.260235511 | P66: 11.91759067 | Q66: 18.56532067 | R66: 300.5761559 | S66: 507.4548595 | T66: 30.59727471 | U66: 23.48053055 | V66: 507.4548595 | W66: 0.3520011466 | X66: 8.528755189 | Y66: 0 | Z66: 0 | AA66: 3.825824057
A67: 24 | B67: 34.19221489 | C67: 22.14545792 | D67: 2.884269835 | E67: 1.911743479 | F67: 0.6621512472 | G67: 32.62621841 | H67: 22.53447227 | I67: 193.5014963 | J67: 51.7422398 | K67: 12.39717978 | L67: 4.846527384 | M67: 9.165034435 | N67: 0.9077963464 | O67: 4.266871192 | P67: 12.11079679 | Q67: 20.13567396 | R67: 299.6517447 | S67: 547.4323338 | T67: 31.64584282 | U67: 24.2021565 | V67: 547.4323338 | W67: 0.3534710765 | X67: 8.557532174 | Y67: 0 | Z67: 0 | AA67: 4.050574454
A68: 25 | B68: 34.4639335 | C68: 22.34660211 | D68: 2.888265055 | E68: 1.91803944 | F68: 0.6691102175 | G68: 32.67235607 | H68: 24.81443794 | I68: 208.4907316 | J68: 55.60003344 | K68: 12.4082046 | L68: 4.251641223 | M68: 8.56900754 | N68: 0.7727042375 | O68: 4.311976163 | P68: 12.21348925 | Q68: 21.72105768 | R68: 298.6643935 | S68: 587.4837255 | T68: 32.65365351 | U68: 24.89457317 | V68: 587.4837255 | W68: 0.3548876719 | X68: 8.583832869 | Y68: 0 | Z68: 0 | AA68: 4.284121604
A69: 26 | B69: 34.63430499 | C69: 22.39184155 | D69: 2.886411537 | E69: 1.920696261 | F69: 0.6713138041 | G69: 32.71154966 | H69: 26.91508145 | I69: 223.538745 | J69: 59.47385702 | K69: 12.42900426 | L69: 3.72977426 | M69: 8.095522791 | N69: 0.6682994112 | O69: 4.31927489 | P69: 12.33043908 | Q69: 23.31544572 | R69: 297.6156197 | S69: 627.459417 | T69: 33.62156145 | U69: 25.55873994 | V69: 627.459417 | W69: 0.3562600845 | X69: 8.588631582 | Y69: 0 | Z69: 0 | AA69: 4.52607069
A70: 27 | B70: 34.71307417 | C70: 22.41523668 | D70: 2.879213241 | E70: 1.919463672 | F70: 0.6722436915 | G70: 32.74828772 | H70: 28.8381993 | I70: 238.5970794 | J70: 63.35272948 | K70: 12.44864974 | L70: 3.271963767 | M70: 7.734709534 | N70: 0.5891072339 | O70: 4.328668985 | P70: 12.39752309 | Q70: 24.91338234 | R70: 296.5073242 | S70: 667.2262039 | T70: 34.55051336 | U70: 26.19562934 | V70: 667.2262039 | W70: 0.3575954872 | X70: 8.577889224 | Y70: 0 | Z70: 0 | AA70: 4.776091934
A71: 28 | B71: 34.71043367 | C71: 22.36133989 | D71: 2.867218038 | E71: 1.914676805 | F71: 0.6718122853 | G71: 32.78479662 | H71: 30.58866106 | I71: 253.6226548 | J71: 67.22690325 | K71: 12.46206878 | L71: 2.870347143 | M71: 7.477406085 | N71: 0.5306521088 | O71: 4.322064548 | P71: 12.44381456 | Q71: 26.51000437 | R71: 295.3417277 | S71: 706.667614 | T71: 35.44152696 | U71: 26.80621779 | V71: 706.667614 | W71: 0.3588995021 | X71: 8.552752619 | Y71: 0 | Z71: 0 | AA71: 5.033909882
A72: 29 | B72: 34.63686135 | C72: 22.26626277 | D72: 2.851037741 | E72: 1.906699995 | F72: 0.6701368818 | G72: 32.82215875 | H72: 32.17308663 | I72: 268.577867 | J72: 71.08789053 | K72: 12.46558669 | L72: 2.518026881 | M72: 7.315064486 | N72: 0.4892675633 | O72: 4.310426366 | P72: 12.45612781 | Q72: 28.10105344 | R72: 294.1213085 | S72: 745.6839748 | T72: 36.29567311 | U72: 27.39147806 | V72: 745.6839748 | W72: 0.3601765306 | X72: 8.514830201 | Y72: 0 | Z72: 0 | AA72: 5.299294455
A73: 30 | B73: 34.50298292 | C73: 22.1229849 | D73: 2.831328793 | E73: 1.895940098 | F73: 0.6673449983 | G73: 32.86088389 | H73: 33.59916248 | I73: 283.4306191 | J73: 74.92847434 | K73: 12.45686224 | L73: 2.20895211 | M73: 7.239678057 | N73: 0.4619432487 | O73: 4.290223748 | P73: 12.4445809 | Q73: 29.68287976 | R73: 292.8487413 | S73: 784.192267 | T73: 37.11406077 | U73: 27.95237335 | V73: 784.192267 | W73: 0.3614300103 | X73: 8.465872015 | Y73: 0 | Z73: 0 | AA73: 5.572053474
A74: 30 | B74: 0 | C74: 0 | D74: 0 | E74: 0 | F74: 0 | G74: 0 | H74: 0 | I74: 0 | J74: 0 | K74: 17.85147613 | L74: 68.66899848 | M74: 54.20670289 | N74: 75.39041758 | O74: 0 | P74: 16.73480465 | Q74: 0 | R74: 0 | S74: 0 | T74: 0 | U74: 0 | V74: 0 | W74: 0.3614300103 | X74: 0 | Y74: -1 | Z74: 266.146474 | AA74: 5.572053474

Sheet LP2OUT (hidden)
A1: CARDTYPE A: | B1: 2 | C1: SIMULATION RUNS SPECIFIED
A2: CARDTYPE B: THE TITLE IS
A3: Rotation 1
A4: CARDTYPE C: MATRICES TO BE OUTPUT. YESF/YESA/YESX | B4: 0 | C4: 0 | D4: 1
A5: NUTRIENT SIMULATED IF YESN=1.0. YESN= | B5: 0
A6: INPNAP/INPX/INDEAD | B6: 1 | C6: 2 | D6: 0
A7: GROWTH ADJUSTED WHEN NLIMITED=1. NLIMITED= | B7: 0
A8: CARDTYPE D: CEASE AT AGE AGEND= | B8: 30
A9: DENSITY_REGION/HT/PHYSIOL_AGE/NDIST | B9: 6 | C9: 0.2 | D9: 0 | E9: 6
A10: CARDTYPE E: ONE CARD FOR EACH OF | B10: 6 | C10: DISTURBANCES
A11: ADIST | B11: SPHAN | C11: BAN | D11: PRNHT | E11: XTRACT | F11: XTRACC
A12: 0 | B12: 807.5 | C12: -1 | D12: -1 | E12: 0 | F12: 0
A13: 6 | B13: 0 | C13: -1 | D13: 1.340100388 | E13: 0 | F13: 0
A14: 7 | B14: 0 | C14: -1 | D14: 2.296844701 | E14: 0 | F14: 0
A15: 8 | B15: 0 | C15: -1 | D15: 2.855308704 | E15: 0 | F15: 0
A16: 9 | B16: 307 | C16: 30 | D16: -1 | E16: 0 | F16: 0
A17: 30 | B17: 0 | C17: -2 | D17: -1 | E17: 0.85 | F17: 0
A18: CARDTYPE G: HT GROWTH COEFF: | B18: -0.001825 | C18: 1.77250004 | D18: HT AGE 20:= | E18: 30
A19: FRACTION CONSUMPTION 1 YR FAS: | B19: 0.05 | C19: FRACTION RETENTION OLDER FAS: | D19: 0.7 | E19: RADIATION: | F19: 7.2 | G19: ROTATION NO | H19: 1
A20: SOIL C= | B20: 6 | C20: SOIL Kjeldahl N= | D20: 0.3
A21: CRDTYPE K: AVERAGE TREE COMPONENT WEIGHTS(KG),STARTING AT 'X3':=
A22: 0.0043 | B22: 0 | C22: 0 | D22: 0 | E22: 0 | F22: 0.0029 | G22: 0 | H22: 0.0011
A23: INITIAL VEGETATION DM, AND SITE PRP LOSS, RESP | B23: 0 | C23: 0
A24: DRYMAT VERS | B24: 2
A25: Rotation 1
A26: CARDTYPES N AND O: NYRS OF DATA = | B26: 35
A27: AGE | B27: SPH | C27: HT | D27: LIVEVOL | E27: GROSSVOL | F27: BA | G27: STEMDENS | H27: RINGDENS
A28: 0 | B28: 807.5 | C28: 0.2335400574 | D28: 0.005168 | E28: 0.005168 | F28: 0.005168 | G28: 0.3050240517 | H28: 0.3050240517
A29: 1 | B29: 807.5 | C29: 0.7304766754 | D29: 0.06164375601 | E29: 0.06164375601 | F29: 0.06164375601 | G29: 0.3040396272 | H29: 0.3039495442
A30: 2 | B30: 807.4110303 | C30: 1.638675201 | D30: 0.3721075422 | E30: 0.3721204706 | F30: 0.3721075422 | G30: 0.3030977464 | H30: 0.3029107325
A31: 3 | B31: 807.0404286 | C31: 2.772948473 | D31: 1.101244927 | E31: 1.101427923 | F31: 1.101244927 | G31: 0.3050883119 | H31: 0.3061041759
A32: 4 | B32: 806.6699694 | C32: 4.055122916 | D32: 5.014592294 | E32: 5.015351959 | F32: 5.014592294 | G32: 0.3064591477 | H32: 0.3068449111
A33: 5 | B33: 806.298201 | C33: 5.43660333 | D33: 13.93150141 | E33: 13.93386416 | F33: 13.93150141 | G33: 0.309622233 | H33: 0.3114010538
A34: 6 | B34: 805.9097736 | C34: 6.88350425 | D34: 29.80531067 | E34: 29.81101218 | F34: 29.80531067 | G34: 0.3133029573 | H34: 0.3165333108
A35: 6 | B35: 805.9097736 | C35: 7.368445917 | D35: 29.80531067 | E35: 29.81101218 | F35: 29.80531067 | G35: 0.3133029573 | H35: 0.3165333108
A36: 7 | B36: 805.4528019 | C36: 8.370832622 | D36: 51.26330059 | E36: 51.27574037 | F36: 51.26330059 | G36: 0.3185107715 | H36: 0.3257444649
A37: 7 | B37: 805.4528019 | C37: 8.960483025 | D37: 51.26330059 | E37: 51.27574037 | F37: 51.26330059 | G37: 0.3185107715 | H37: 0.3257444649
A38: 8 | B38: 804.816655 | C38: 9.879571648 | D38: 79.44724762 | E38: 79.47518976 | F38: 79.44724762 | G38: 0.3230389849 | H38: 0.3312752751
A39: 8 | B39: 804.816655 | C39: 10.57537857 | D39: 79.44724762 | E39: 79.47518976 | F39: 79.44724762 | G39: 0.3230389849 | H39: 0.3312752751
A40: 9 | B40: 803.8492837 | C40: 11.39499057 | D40: 113.9490364 | E40: 114.0119745 | F40: 113.9490364 | G40: 0.3271044664 | H40: 0.336466048
A41: 9 | B41: 307 | C41: 11.71732487 | D41: 44.22070979 | E41: 44.28364795 | F41: 44.22070979 | G41: 0.3271044664 | H41: 0.336466048
A42: 10 | B42: 306.8365288 | C42: 13.27055509 | D42: 58.74338511 | E42: 58.7582217 | F42: 58.74338511 | G42: 0.3313327047 | H42: 0.3442074467
A43: 11 | B43: 306.6596083 | C43: 14.8093243 | D43: 76.87527095 | E43: 76.89643267 | F43: 76.87527095 | G43: 0.3342534296 | H43: 0.3437159463
A44: 12 | B44: 306.4582685 | C44: 16.32625175 | D44: 102.7779226 | E44: 102.809845 | F44: 102.7779226 | G44: 0.3348998009 | H44: 0.3368181361
A45: 13 | B45: 306.2205273 | C45: 17.81555375 | D45: 131.964697 | E45: 132.0139863 | F45: 131.964697 | G45: 0.3360223126 | H45: 0.3399751103
A46: 14 | B46: 305.9374137 | C46: 19.27273105 | D46: 163.9125919 | E46: 163.9866401 | F46: 163.9125919 | G46: 0.3374188134 | H46: 0.3431872312
A47: 15 | B47: 305.601244 | C47: 20.69433403 | D47: 198.1420719 | E47: 198.2497767 | F47: 198.1420719 | G47: 0.3389627846 | H47: 0.346356304
A48: 16 | B48: 305.2058621 | C48: 22.07777325 | D48: 234.2147845 | E48: 234.3662468 | F48: 234.2147845 | G48: 0.3405786018 | H48: 0.3494540463
A49: 17 | B49: 304.746694 | C49: 23.42116696 | D49: 271.7195328 | E49: 271.9256641 | F49: 271.7195328 | G49: 0.3422234381 | H49: 0.3524953374
A50: 18 | B50: 304.2207124 | C50: 24.72321709 | D50: 310.2648912 | E50: 310.5369659 | F50: 310.2648912 | G50: 0.3438742313 | H50: 0.3555112419
A51: 19 | B51: 303.6263474 | C51: 25.98310735 | D51: 349.4797153 | E51: 349.8289054 | F51: 349.4797153 | G51: 0.3455191084 | H51: 0.3585332587
A52: 20 | B52: 302.9633576 | C52: 27.20041912 | D52: 389.0174538 | E52: 389.4543869 | F52: 389.0174538 | G52: 0.3471522006 | H52: 0.3615873359
A53: 21 | B53: 302.2326716 | C53: 28.3750615 | D53: 428.5608934 | E53: 429.0952674 | F53: 428.5608934 | G53: 0.3487706951 | H53: 0.3646929979
A54: 22 | B54: 301.4365561 | C54: 29.50721162 | D54: 467.7167239 | E54: 468.3566458 | F54: 467.7167239 | G54: 0.3503815779 | H54: 0.3680127032
A55: 23 | B55: 300.5761559 | C55: 30.59727471 | D55: 507.4548595 | E55: 508.2094465 | F55: 507.4548595 | G55: 0.3518966469 | H55: 0.3697289655
A56: 24 | B56: 299.6517447 | C56: 31.64584282 | D56: 547.4323338 | E56: 548.3119932 | F56: 547.4323338 | G56: 0.3533446727 | H56: 0.3717252169
A57: 25 | B57: 298.6643935 | C57: 32.65365351 | D57: 587.4837255 | E57: 588.4978473 | F57: 587.4837255 | G57: 0.3547370338 | H57: 0.3737681701
A58: 26 | B58: 297.6156197 | C58: 33.62156145 | D58: 627.459417 | E58: 628.6165908 | F58: 627.459417 | G58: 0.3560825758 | H58: 0.3758566943
A59: 27 | B59: 296.5073242 | C59: 34.55051336 | D59: 667.2262039 | E59: 668.5341195 | F59: 667.2262039 | G59: 0.3573881766 | H59: 0.3779885703
A60: 28 | B60: 295.3417277 | C60: 35.44152696 | D60: 706.667614 | E60: 708.1329967 | F60: 706.667614 | G60: 0.3586591758 | H60: 0.3801605363
A61: 29 | B61: 294.1213085 | C61: 36.29567311 | D61: 745.6839748 | E61: 747.3125531 | F61: 745.6839748 | G61: 0.3598997073 | H61: 0.3823683193
A62: 30 | B62: 292.8487413 | C62: 37.11406077 | D62: 784.192267 | E62: 785.9887724 | F62: 784.192267 | G62: 0.3611129589 | H62: 0.3846066582
A63: CARDTYPE B: THE TITLE IS
A64: Rotation 2
A65: CARDTYPE C: MATRICES TO BE OUTPUT. YESF/YESA/YESX | B65: 0 | C65: 0 | D65: 1
A66: NUTRIENT SIMULATED IF YESN=1.0. YESN= | B66: 0
A67: INPNAP/INPX/INDEAD | B67: 1 | C67: 2 | D67: 0
A68: GROWTH ADJUSTED WHEN NLIMITED=1. NLIMITED= | B68: 0
A69: CARDTYPE D: CEASE AT AGE AGEND= | B69: 30
A70: DENSITY_REGION/HT/PHYSIOL_AGE/NDIST | B70: 6 | C70: 0.2 | D70: 0 | E70: 6
A71: CARDTYPE E: ONE CARD FOR EACH OF | B71: 6 | C71: DISTURBANCES
A72: ADIST | B72: SPHAN | C72: BAN | D72: PRNHT | E72: XTRACT | F72: XTRACC
A73: 0 | B73: 807.5 | C73: -1 | D73: -1 | E73: 0 | F73: 0
A74: 6 | B74: 0 | C74: -1 | D74: 1.340100388 | E74: 0 | F74: 0
A75: 7 | B75: 0 | C75: -1 | D75: 2.296844701 | E75: 0 | F75: 0
A76: 8 | B76: 0 | C76: -1 | D76: 2.855308704 | E76: 0 | F76: 0
A77: 9 | B77: 307 | C77: 30 | D77: -1 | E77: 0 | F77: 0
A78: 30 | B78: 0 | C78: -2 | D78: -1 | E78: 0.85 | F78: 0
A79: CARDTYPE G: HT GROWTH COEFF: | B79: -0.001825 | C79: 1.77250004 | D79: HT AGE 20:= | E79: 30
A80: FRACTION CONSUMPTION 1 YR FAS: | B80: 0.05 | C80: FRACTION RETENTION OLDER FAS: | D80: 0.7 | E80: RADIATION: | F80: 7.2 | G80: ROTATION NO | H80: 2
A81: SOIL C= | B81: 6 | C81: SOIL Kjeldahl N= | D81: 0.3
A82: CRDTYPE K: AVERAGE TREE COMPONENT WEIGHTS(KG),STARTING AT 'X3':=
A83: 0.0043 | B83: 0 | C83: 0 | D83: 0 | E83: 0 | F83: 0.0029 | G83: 0 | H83: 0.0011
A84: INITIAL VEGETATION DM, AND SITE PRP LOSS, RESP | B84: 11.094 | C84: 0
A85: CARDTYPES N AND O: NYRS OF DATA = | B85: 35
A86: AGE | B86: SPH | C86: HT | D86: LIVEVOL | E86: GROSSVOL | F86: BA | G86: STEMDENS | H86: RINGDENS
A87: 0 | B87: 807.5 | C87: 0.2335400574 | D87: 0.005168 | E87: 0.005168 | F87: 0.005168 | G87: 0.3050240517 | H87: 0.3050240517
A88: 1 | B88: 807.5 | C88: 0.7304766754 | D88: 0.06164375601 | E88: 0.06164375601 | F88: 0.06164375601 | G88: 0.3040396272 | H88: 0.3039495442
A89: 2 | B89: 807.4110303 | C89: 1.638675201 | D89: 0.3721075422 | E89: 0.3721204706 | F89: 0.3721075422 | G89: 0.3030977464 | H89: 0.3029107325
A90: 3 | B90: 807.0404286 | C90: 2.772948473 | D90: 1.101244927 | E90: 1.101427923 | F90: 1.101244927 | G90: 0.3050883119 | H90: 0.3061041759
A91: 4 | B91: 806.6699694 | C91: 4.055122916 | D91: 5.014592294 | E91: 5.015351959 | F91: 5.014592294 | G91: 0.3064591477 | H91: 0.3068449111
A92: 5 | B92: 806.298201 | C92: 5.43660333 | D92: 13.93150141 | E92: 13.93386416 | F92: 13.93150141 | G92: 0.309622233 | H92: 0.3114010538
A93: 6 | B93: 805.9097736 | C93: 6.88350425 | D93: 29.80531067 | E93: 29.81101218 | F93: 29.80531067 | G93: 0.3133029573 | H93: 0.3165333108
A94: 6 | B94: 805.9097736 | C94: 7.368445917 | D94: 29.80531067 | E94: 29.81101218 | F94: 29.80531067 | G94: 0.3133029573 | H94: 0.3165333108
A95: 7 | B95: 805.4528019 | C95: 8.370832622 | D95: 51.26330059 | E95: 51.27574037 | F95: 51.26330059 | G95: 0.3185107715 | H95: 0.3257444649
A96: 7 | B96: 805.4528019 | C96: 8.960483025 | D96: 51.26330059 | E96: 51.27574037 | F96: 51.26330059 | G96: 0.3185107715 | H96: 0.3257444649
A97: 8 | B97: 804.816655 | C97: 9.879571648 | D97: 79.44724762 | E97: 79.47518976 | F97: 79.44724762 | G97: 0.3230389849 | H97: 0.3312752751
A98: 8 | B98: 804.816655 | C98: 10.57537857 | D98: 79.44724762 | E98: 79.47518976 | F98: 79.44724762 | G98: 0.3230389849 | H98: 0.3312752751
A99: 9 | B99: 803.8492837 | C99: 11.39499057 | D99: 113.9490364 | E99: 114.0119745 | F99: 113.9490364 | G99: 0.3271044664 | H99: 0.336466048
A100: 9 | B100: 307 | C100: 11.71732487 | D100: 44.22070979 | E100: 44.28364795 | F100: 44.22070979 | G100: 0.3271044664 | H100: 0.336466048
A101: 10 | B101: 306.8365288 | C101: 13.27055509 | D101: 58.74338511 | E101: 58.7582217 | F101: 58.74338511 | G101: 0.3313327047 | H101: 0.3442074467
A102: 11 | B102: 306.6596083 | C102: 14.8093243 | D102: 76.87527095 | E102: 76.89643267 | F102: 76.87527095 | G102: 0.3342534296 | H102: 0.3437159463
A103: 12 | B103: 306.4582685 | C103: 16.32625175 | D103: 102.7779226 | E103: 102.809845 | F103: 102.7779226 | G103: 0.3348998009 | H103: 0.3368181361
A104: 13 | B104: 306.2205273 | C104: 17.81555375 | D104: 131.964697 | E104: 132.0139863 | F104: 131.964697 | G104: 0.3360223126 | H104: 0.3399751103
A105: 14 | B105: 305.9374137 | C105: 19.27273105 | D105: 163.9125919 | E105: 163.9866401 | F105: 163.9125919 | G105: 0.3374188134 | H105: 0.3431872312
A106: 15 | B106: 305.601244 | C106: 20.69433403 | D106: 198.1420719 | E106: 198.2497767 | F106: 198.1420719 | G106: 0.3389627846 | H106: 0.346356304
A107: 16 | B107: 305.2058621 | C107: 22.07777325 | D107: 234.2147845 | E107: 234.3662468 | F107: 234.2147845 | G107: 0.3405786018 | H107: 0.3494540463
A108: 17 | B108: 304.746694 | C108: 23.42116696 | D108: 271.7195328 | E108: 271.9256641 | F108: 271.7195328 | G108: 0.3422234381 | H108: 0.3524953374
A109: 18 | B109: 304.2207124 | C109: 24.72321709 | D109: 310.2648912 | E109: 310.5369659 | F109: 310.2648912 | G109: 0.3438742313 | H109: 0.3555112419
A110: 19 | B110: 303.6263474 | C110: 25.98310735 | D110: 349.4797153 | E110: 349.8289054 | F110: 349.4797153 | G110: 0.3455191084 | H110: 0.3585332587
A111: 20 | B111: 302.9633576 | C111: 27.20041912 | D111: 389.0174538 | E111: 389.4543869 | F111: 389.0174538 | G111: 0.3471522006 | H111: 0.3615873359
A112: 21 | B112: 302.2326716 | C112: 28.3750615 | D112: 428.5608934 | E112: 429.0952674 | F112: 428.5608934 | G112: 0.3487706951 | H112: 0.3646929979
A113: 22 | B113: 301.4365561 | C113: 29.50721162 | D113: 467.7167239 | E113: 468.3566458 | F113: 467.7167239 | G113: 0.3503815779 | H113: 0.3680127032
A114: 23 | B114: 300.5761559 | C114: 30.59727471 | D114: 507.4548595 | E114: 508.2094465 | F114: 507.4548595 | G114: 0.3518966469 | H114: 0.3697289655
A115: 24 | B115: 299.6517447 | C115: 31.64584282 | D115: 547.4323338 | E115: 548.3119932 | F115: 547.4323338 | G115: 0.3533446727 | H115: 0.3717252169
A116: 25 | B116: 298.6643935 | C116: 32.65365351 | D116: 587.4837255 | E116: 588.4978473 | F116: 587.4837255 | G116: 0.3547370338 | H116: 0.3737681701
A117: 26 | B117: 297.6156197 | C117: 33.62156145 | D117: 627.459417 | E117: 628.6165908 | F117: 627.459417 | G117: 0.3560825758 | H117: 0.3758566943
A118: 27 | B118: 296.5073242 | C118: 34.55051336 | D118: 667.2262039 | E118: 668.5341195 | F118: 667.2262039 | G118: 0.3573881766 | H118: 0.3779885703
A119: 28 | B119: 295.3417277 | C119: 35.44152696 | D119: 706.667614 | E119: 708.1329967 | F119: 706.667614 | G119: 0.3586591758 | H119: 0.3801605363
A120: 29 | B120: 294.1213085 | C120: 36.29567311 | D120: 745.6839748 | E120: 747.3125531 | F120: 745.6839748 | G120: 0.3598997073 | H120: 0.3823683193
A121: 30 | B121: 292.8487413 | C121: 37.11406077 | D121: 784.192267 | E121: 785.9887724 | F121: 784.192267 | G121: 0.3611129589 | H121: 0.3846066582

Sheet 300 Index (hidden)
A1: 300 Index Growth Model Version 1.04 (CTRL+A) | H1: Model last updated June 2007 | S1: Crop elements | Z1: 26 | AA1: 27 | AB1: 28 | AC1: 29 | AD1: 30 | AE1: 31 | AF1: 32 | AG1: 33 | AH1: 34 | AI1: 35 | AJ1: 36 | AK1: 37 | AL1: 38 | AM1: 39 | AN1: 40 | AO1: 41 | AP1: 42 | AQ1: 43 | AR1: 44
A2: Site Productivity Indices | E2: Site Location | H2: Stocking | J2: MTH | L2: Volume | N2: BA | P2: DBH | R2: Mean | S2: Element 1 | V2: Element 2 | Y2: Element 3 | AB2: Element 4 | AE2: DBH20 | AK2: Pruning | AL2: Lift | AM2: Volume | AN2: Density | AO2: Density | AP2: DBH20
B3: 300Index | C3: 26 | E3: Latitude | F3: 40 | G3: Age | H3: b4 thin | I3: aft thin | K3: Crown Lth | L3: b4 thin | M3: aft thin | N3: b4 thin | O3: aft thin | P3: b4 thin | Q3: aft thin | R3: Height | S3: stocking | T3: dia | U3: vol | V3: stocking | W3: dia | X3: vol | Y3: stocking | Z3: dia | AA3: vol | AB3: stocking | AC3: dia | AD3: vol | AK3: stems | AL3: height | AM3: Mortality | AN3: Sheath | AO3: Tree
B4: SI | C4: 28.3 | E4: Altitude | F4: 300 | G4: yrs | H4: sph | I4: sph | J4: m | K4: m | L4: m3/ha | M4: m3/ha | N4: m2/ha | O4: m2/ha | P4: cm | R4: m | S4: sph | T4: cm | U4: m3/ha | V4: sph | W4: cm | X4: m3/ha | Y4: sph | Z4: cm | AA4: m3/ha | AB4: sph | AC4: cm | AD4: m3/ha | AE4: cm | AK4: sph | AL4: m | AM4: m3/ha | AN4: kg/m3 | AO4: kg/m3 | AP4: cm
G5: 0 | H5: 807.5 | J5: 0.25 | L5: 0.005168 | N5: 0 | P5: 0 | R5: 0.25 | S5: 807.5 | T5: 0 | U5: 0 | AM5: 0 | AN5: 0.3050240517 | AO5: 0.3050240517 | AQ5: 34.0825557 | AR5: 0.2889389767
A6: Data used to estimate 300 Index (CTRL+I) | G6: 1 | H6: 807.5 | J6: 0.7819607947 | L6: 0.06164375601 | N6: 0 | P6: 0 | R6: 0.7304766754 | S6: 807.5 | T6: 0 | U6: 0 | AM6: 0 | AN6: 0.3039495442 | AO6: 0.3040396272 | AQ6: 34.0427217 | AR6: 0.2889389767
B7: Age | G7: 2 | H7: 807.4110303 | J7: 1.754166532 | L7: 0.3721075422 | N7: 0.006047941728 | P7: 0.308795286 | R7: 1.638675201 | S7: 807.4110303 | T7: 0.308795286 | U7: 0.03671335667 | AM7: 1.292839517e-05 | AN7: 0.3029107325 | AO7: 0.3030977464 | AQ7: 34.01017593 | AR7: 0.2889389767
B8: Sph | G8: 3 | H8: 807.0404286 | J8: 2.968362086 | L8: 1.101244927 | N8: 0.4236798696 | P8: 2.585148355 | R8: 2.772948473 | S8: 807.0404286 | T8: 2.585148355 | U8: 1.101244927 | AM8: 0.0001829954333 | AN8: 0.3061041759 | AO8: 0.3050883119 | AQ8: 33.9877093 | AR8: 0.29430043
B9: DBH | G9: 4 | H9: 806.6699694 | J9: 4.340864533 | L9: 5.014592294 | N9: 1.970509434 | P9: 5.576420517 | R9: 4.055122916 | S9: 806.6699694 | T9: 5.576420517 | U9: 5.014592294 | AM9: 0.0007596647131 | AN9: 0.3068449111 | AO9: 0.3064591477 | AQ9: 33.97173005 | AR9: 0.296464046
B10: BA | G10: 5 | H10: 806.298201 | J10: 5.819651472 | L10: 13.93150141 | N10: 4.937998861 | P10: 8.829616663 | R10: 5.43660333 | S10: 806.298201 | T10: 8.829616663 | U10: 13.93150141 | AM10: 0.00236274983 | AN10: 0.3114010538 | AO10: 0.309622233 | AQ10: 33.96191882 | AR10: 0.3034935644
B11: Vol | G11: 5.5 | H11: 806.1084108 | J11: 6.587147924 | K11: 3.840152185 | L11: 20.90103441 | N11: 6.953432513 | P11: 10.47893382 | R11: 6.153604199 | S11: 450 | T11: 11.15990863 | U11: 13.2334757 | V11: 356.1084108 | W11: 9.549208436 | X11: 7.667558711 | AK11: 450 | AL11: 2.4 | AM11: 0.002218243771 | AN11: 0.3163963868 | AO11: 0.3118811015 | AQ11: 33.95954203 | AR11: 0.3110740424
C12: 18 | G12: 6 | H12: 805.9110104 | J12: 7.368445917 | L12: 28.39410784 | N12: 8.850840075 | P12: 11.8239587 | R12: 6.883504098 | S12: 449.8898037 | T12: 12.30640199 | U12: 17.170529 | V12: 356.0212067 | W12: 11.18459034 | X12: 11.22357884 | AM12: 0.003265937385 | AN12: 0.3228948488 | AO12: 0.3147875783 | AQ12: 33.96034159 | AR12: 0.3196732115
A13: Data used to estimate Site Index (CTRL+J) | G13: 6.8 | H13: 805.560119 | J13: 8.639669382 | K13: 3.657934405 | L13: 45.54364353 | N13: 12.80705378 | P13: 14.22623046 | R13: 8.071114815 | S13: 350 | T13: 14.98074221 | U13: 21.942436 | V13: 99.69392291 | W13: 13.0796068 | X13: 4.764399791 | Y13: 355.8661961 | Z13: 13.76528531 | AA13: 18.83680774 | AK13: 350 | AL13: 4.6 | AM13: 0.008710937917 | AN13: 0.323440055 | AO13: 0.318045683 | AQ13: 33.96155327 | AR13: 0.3213437745
B14: Age | G14: 7 | H14: 805.4598073 | J14: 8.960483025 | L14: 50.32210939 | N14: 13.79985393 | P14: 14.76826612 | R14: 8.370831571 | S14: 349.9564165 | T14: 15.42234769 | U14: 23.84354824 | V14: 99.68150861 | W14: 13.70305863 | X14: 5.361737875 | Y14: 355.8218821 | Z14: 14.39361872 | AA14: 21.11682328 | AM14: 0.003229432231 | AN14: 0.326674763 | AO14: 0.3188650796 | AQ14: 33.96248705 | AR14: 0.3256673733
B15: MTH | G15: 8 | H15: 804.8364295 | J15: 10.57537857 | K15: 4.142832375 | L15: 78.29364652 | N15: 19.03904799 | P15: 17.3533371 | R15: 9.87956814 | S15: 320 | T15: 17.65286327 | U15: 32.21314902 | V15: 29.68557117 | W15: 15.55482949 | X15: 2.320218086 | Y15: 99.60436107 | Z15: 16.75472151 | AA15: 9.03245215 | AB15: 355.5464972 | AC15: 17.38858168 | AD15: 34.72782726 | AK15: 320 | AL15: 6 | AM15: 0.02694188375 | AN15: 0.3311550567 | AO15: 0.3232558516 | AQ15: 33.97041956 | AR15: 0.3325339763
G16: 8.8 | H16: 804.1138833 | I16: 307 | J16: 11.87300152 | L16: 105.3142478 | M16: 40.22550896 | N16: 23.42711066 | O16: 8.94814775 | P16: 19.2581598 | Q16: 19.26245279 | R16: 11.40577438 | S16: 307 | T16: 19.26245279 | U16: 40.22550896 | AM16: 0.04461872055 | AN16: 0.3359605007 | AO16: 0.3265154985 | AQ16: 42.98583731 | AR16: 0.3397662203
A17: Stocking history | E17: thinning | G17: 9 | H17: 306.9688238 | J17: 12.19731439 | L17: 42.82885513 | N17: 9.326748808 | P17: 19.66673233 | R17: 11.71737137 | S17: 306.9688238 | T17: 19.66673233 | U17: 42.82885513 | AM17: 0.002281646172 | AN17: 0.3410048839 | AO17: 0.3273962338 | AQ17: 42.98678549 | AR17: 0.346670188
B18: Age | C18: b4 thin | D18: aft thin | E18: coeff. | F18: dbh ratio | G18: 10 | H18: 306.8070584 | J18: 13.81388373 | L18: 57.28288773 | N18: 11.28108845 | P18: 21.63500653 | R18: 13.27060491 | S18: 306.8070584 | T18: 21.63500653 | U18: 57.28288773 | AM18: 0.01427644258 | AN18: 0.343531391 | AO18: 0.3314675734 | AQ18: 42.9917073 | AR18: 0.3507023339
B19: 0 | C19: 807.5 | G19: 11 | H19: 306.6321296 | J19: 15.41530636 | L19: 75.71355596 | N19: 13.60781094 | P19: 23.76837581 | R19: 14.80937617 | S19: 306.6321296 | T19: 23.76837581 | U19: 75.71355596 | AM19: 0.02052079997 | AN19: 0.3423435551 | AO19: 0.334115073 | AQ19: 42.99703323 | AR19: 0.3495539385
B20: 8.8 | D20: 307 | E20: 0.78 | G20: 12 | H20: 306.4328137 | J20: 16.99386861 | L20: 101.5861821 | N20: 16.8002078 | P20: 26.41824078 | R20: 16.32630477 | S20: 306.4328137 | T20: 26.41824078 | U20: 101.5861821 | AM20: 0.03119012664 | AN20: 0.336490713 | AO20: 0.3347201164 | AQ20: 43.00310626 | AR20: 0.3421492029
E21: 0.784 | G21: 13 | H21: 306.197528 | J21: 18.54350886 | L21: 130.7465051 | N21: 20.04351082 | P21: 28.86690741 | R21: 17.81560607 | S21: 306.197528 | T21: 28.86690741 | U21: 130.7465051 | AM21: 0.0482830601 | AN21: 0.3397098291 | AO21: 0.3358329693 | AQ21: 43.01028158 | AR21: 0.346820277
E22: 0.784 | G22: 14 | H22: 305.9172464 | J22: 20.05950186 | L22: 162.6711152 | N22: 23.26843315 | P22: 31.1168618 | R22: 19.27278073 | S22: 305.9172464 | T22: 31.1168618 | U22: 162.6711152 | AM22: 0.07270307923 | AN22: 0.3429652822 | AO22: 0.3372327034 | AQ22: 43.01883806 | AR22: 0.3514252647
E23: 0.784 | G23: 15 | H23: 305.5842225 | J23: 21.53821286 | L23: 196.8810922 | N23: 26.43089307 | P23: 33.18216029 | R23: 20.69437912 | S23: 305.5842225 | T23: 33.18216029 | U23: 196.8810922 | AM23: 0.1059656611 | AN23: 0.3461646838 | AO23: 0.3387847206 | AQ23: 43.02901735 | AR23: 0.3558367628
E24: 0.784 | G24: 16 | H24: 305.192235 | J24: 22.97690271 | L24: 232.939552 | N24: 29.50305592 | P24: 35.08011135 | R24: 22.07781182 | S24: 305.192235 | T24: 35.08011135 | U24: 232.939552 | AM24: 0.1492881531 | AN24: 0.3492830241 | AO24: 0.3404098318 | AQ24: 43.04101666 | AR24: 0.3600182787
G25: 17 | H25: 304.7366435 | J25: 24.37357102 | L25: 270.4368954 | N25: 32.46622393 | P25: 36.82711957 | R25: 23.42119719 | S25: 304.7366435 | T25: 36.82711957 | U25: 270.4368954 | AM25: 0.203498931 | AN25: 0.3523377043 | AO25: 0.3420636872 | AQ25: 43.05498715 | AR25: 0.3639903829
G26: 18 | H26: 304.2143548 | J26: 25.72682862 | L26: 308.9828599 | N26: 35.3069599 | P26: 38.43744507 | R26: 24.72323731 | S26: 304.2143548 | T26: 38.43744507 | U26: 308.9828599 | AM26: 0.2689803222 | AN26: 0.355361906 | AO26: 0.3437226552 | AQ26: 43.071035 | AR26: 0.3677946795
G27: 19 | H27: 303.6237354 | J27: 27.03579269 | L27: 348.2068213 | N27: 38.0154117 | P27: 39.92327786 | R27: 25.9831161 | S27: 303.6237354 | T27: 39.92327786 | U27: 348.2068213 | AM27: 0.3456497399 | AN27: 0.3583887937 | AO27: 0.3453747309 | AQ27: 43.08922397 | AR27: 0.3714725132
G28: 20 | H28: 302.964485 | J28: 28.3 | L28: 387.7621447 | N28: 40.58465033 | P28: 41.29516878 | R28: 27.20041516 | S28: 302.964485 | T28: 41.29516878 | U28: 387.7621447 | AM28: 0.4329809496 | AN28: 0.3614455241 | AO28: 0.3470141004 | AQ28: 43.10957897 | AR28: 0.3750569794
G29: 21 | H29: 302.2374795 | J29: 29.51933459 | L29: 427.331071 | N29: 43.01034201 | P29: 42.56243739 | R29: 28.37504381 | S29: 302.2374795 | T29: 42.56243739 | U29: 427.331071 | AM29: 0.5300592028 | AN29: 0.3645524483 | AO29: 0.3486380722 | AQ29: 43.13209058 | AR29: 0.3785719506
G30: 22 | H30: 301.4449228 | J30: 30.69396722 | L30: 466.4936993 | N30: 45.27740231 | P30: 43.72712924 | R30: 29.50717951 | S30: 301.4449228 | T30: 43.72712924 | U30: 466.4936993 | AM30: 0.6353019627 | AN30: 0.3679069969 | AO30: 0.3502557183 | AQ30: 43.15670977 | AR30: 0.3822624327
G31: 23 | H31: 300.5881065 | J31: 31.82430441 | L31: 506.2222723 | N31: 47.50190649 | P31: 44.85220781 | R31: 30.597227 | S31: 300.5881065 | T31: 44.85220781 | U31: 506.2222723 | AM31: 0.7495238584 | AN31: 0.3696554033 | AO31: 0.3517782151 | AQ31: 43.18341715 | AR31: 0.3838231015
G32: 24 | H32: 299.6672553 | J32: 32.9109455 | L32: 546.1951981 | N32: 49.6663567 | P32: 45.9330949 | R32: 31.64577854 | S32: 299.6672553 | T32: 45.9330949 | U32: 546.1951981 | AM32: 0.8741773923 | AN32: 0.3716522959 | AO32: 0.3532326863 | AQ32: 43.21222819 | AR32: 0.3855911641
G33: 25 | H33: 298.6834155 | J33: 33.9546463 | L33: 586.2466444 | N33: 51.76835545 | P33: 46.97219247 | R33: 32.65357186 | S33: 298.6834155 | T33: 46.97219247 | U33: 586.2466444 | AM33: 1.00825074 | AN33: 0.37369595 | AO33: 0.3546307042 | AQ33: 43.24313447 | AR33: 0.3873143247
G34: 26 | H34: 297.6380826 | J34: 34.9562883 | L34: 626.2265174 | N34: 53.80634685 | P34: 47.97187642 | R34: 33.62146177 | S34: 297.6380826 | T34: 47.97187642 | U34: 626.2265174 | AM34: 1.150948585 | AN34: 0.3757853084 | AO34: 0.3559812672 | AQ34: 43.27611494 | AR34: 0.388991611
G35: 27 | H35: 296.5331386 | J35: 35.91685253 | L35: 666.0010933 | N35: 55.77955341 | P35: 48.93449391 | R35: 34.55039513 | S35: 296.5331386 | T35: 48.93449391 | U35: 666.0010933 | AM35: 1.301374928 | AN35: 0.3779182094 | AO35: 0.3572913741 | AQ35: 43.31113759 | AR35: 0.3906208929
G36: 28 | H36: 295.3707885 | J36: 36.83739738 | L36: 705.453354 | N36: 57.68791689 | P36: 49.86236335 | R36: 35.44138982 | S36: 295.3707885 | T36: 49.86236335 | U36: 705.453354 | AM36: 1.458567093 | AN36: 0.3800914394 | AO36: 0.3585664607 | AQ36: 43.34816109 | AR36: 0.3921990173
G37: 29 | H37: 294.1534976 | J37: 37.71903982 | L37: 744.4830668 | N37: 59.53204252 | P37: 50.75777603 | R37: 36.29551682 | S37: 294.1534976 | T37: 50.75777603 | U37: 744.4830668 | AM37: 1.621529093 | AN37: 0.3823007684 | AO37: 0.3598107377 | AQ37: 43.38713648 | AR37: 0.3937219199
A38: Pruning history | G38: 30 | H38: 292.8839309 | J38: 38.56293938 | L38: 783.006649 | N38: 61.31314636 | P38: 51.62299901 | R38: 37.1138852 | S38: 292.8839309 | T38: 51.62299901 | U38: 783.006649 | AM38: 1.789263139 | AN38: 0.3845409752 | AO38: 0.3610274545 | AQ38: 43.42800879 | AR38: 0.3951847206
B39: Age | C39: Height | D39: Sph
B40: 5.5 | C40: 2.4 | D40: 450
B41: 6.8 | C41: 4.6 | D41: 350
B42: 8 | C42: 6 | D42: 320
A46: Other options | E46: Implementation
B47: Fell age | C47: 30 | E47: 5
B48: Step length | C48: 0.01
F49: Bias
A50: Volume table (place X in box) | F50: Correctn
B51: 2007 Model | D51: x | E51: Old | F51: x
B52: 2006 Model | E52: Young | F52: x
B53: Direct sawlog V182 | E53: SI | F53: x
B54: Woodhill V236
B55: Otago/Sthld V328
B56: Kaingaroa V358
B57: Northland V11
B58: V430
B59: NZ 3-point taper
B60: NSW 1
B61: NSW 2
A63: Height model (place X in box) | F63: Drift
B64: NSW | F64: 0
B65: NZ | D65: x
A67: Mortality model (place X in box) | F67: Mortality
B68: NSW | E68: Add | F68: 0
B69: NZ 2004 model | E69: Mult | F69: 0
B70: NZ simple model | E70: Thin | F70: x
B71: NZ 2006 model
B72: NZ 2007 model | D72: x
A74: Wood Density
B75: Soil C | D75: 5.3
B76: Soil N | D76: 0.37
B77: MATemp | D77: 12
B78: Out Dens | D78: 410
B79: Out Age | D79: 15
B80: Inner ring
B81: Outer ring
B82: Genetic adjustment
B83: Model | D83: 2

Sheet Simple screen
B1: Radiata Pine Calculator Version 3.0 pro
B3: Stand information | C3: 300-index | D3: 26 | G3: Economic results | H3: EFGM ($/lsu) | I3: ='User interface'!M42 -> 0
C4: Site index (m) | D4: 28.3 | H4: NPV ($/ha) | I4: ='User interface'!J42 -> 2025.572824
C5: Stems/ha planted | D5: 850 | H5: LEV ($/ha) | I5: ='User interface'!K42 -> 2331.908985
C6: Rotation age (years) | D6: 30 | H6: IRR | I6: ='User interface'!L42 -> 0.09658432007
C7: Altitude (m) | D7: 300 | H7: Stumpage ($/ha) | I7: ='User interface'!N42 -> 33317.45402
C8: Latitude (0S) | D8: 40 | H8: Value per m3 ($) | I8: ='User interface'!O42 -> 85.05960648
H9: Silvicultural labour (hrs/ha) | I9: ='User interface'!P42 -> 66.33314641
B10: Financial, | C10: Labour Cost ($/hr) | D10: 25 | H10: Grazing (% of existing) | I10: ='User interface'!P8 -> 0
B11: Land & livestock | C11: Discount rate (%) | D11: 7
C12: Land Value ($/ha) | D12: 0 | G12: Stand results | H12: Rotation age (years) | I12: ='User interface'!J5 -> 30
C13: Livestock Carrying Capacity (LSU/ha) | D13: 8 | H13: DBH (cm) | I13: ='User interface'!K5 -> 51.62299901
C14: Livestock capital value ($/LSU) | D14: 85 | H14: MTH (m) | I14: ='User interface'!L5 -> 38.56293938
C15: Livestock Gross Margin ($/lsu/yr) | D15: 45 | H15: Stocking at clearfelling (stems/ha) | I15: ='User interface'!M5 -> 292.8839309
C16: Understorey grazing (Y/N) | D16: y | H16: Basal area (m2/ha) | I16: ='User interface'!N5 -> 61.31314636
H17: Total volume (m3/ha) | I17: ='User interface'!O5 -> 783.006649
H18: Merchantable volume (m3/ha) | I18: ='User interface'!P37 -> 665.5556517

Sheet Log specs
B1: Log grade specifications and prices Values entered here will be used next time the user interface is 'run'
B3: Grades A
B4: Grade | C4: Pruned | D4: S1 | E4: S2 | F4: S3 | G4: L1 | H4: L2 | I4: L3 | J4: Pulp
B5: Pruned | C5: 1 | D5: 0 | E5: 0 | F5: 0 | G5: 0 | H5: 0 | I5: 0 | J5: 0
B6: Length min | C6: 4.2 | D6: 4 | E6: 4 | F6: 4 | G6: 4 | H6: 4 | I6: 4 | J6: 4
B7: Length max | C7: 5.5 | D7: 5.5 | E7: 5.5 | F7: 5.5 | G7: 5.5 | H7: 5.5 | I7: 5.5 | J7: 5.5
B8: SED minimum | C8: 300 | D8: 400 | E8: 300 | F8: 200 | G8: 400 | H8: 300 | I8: 200 | J8: 100
B9: Branch maximum | C9: 0 | D9: 6 | E9: 6 | F9: 6 | G9: 12 | H9: 12 | I9: 12 | J9: 15
B10: Grade specific conversion | C10: 1 | D10: 1 | E10: 1 | F10: 1 | G10: 1 | H10: 1 | I10: 1 | J10: 1
B11: % downgraded to poorest grade | C11: 0 | D11: 0.05 | E11: 0.05 | F11: 0.1 | G11: 0.05 | H11: 0.1 | I11: 0.15
B12: Price ($/m3) | C12: =C26+('User interface'!L8-4)*C27 -> 146.2731682 | D12: 88 | E12: 80 | F12: 64 | G12: 65 | H12: 56 | I12: 52 | J12: 40
C13: most valuable logs <----------------> least valuable logs
B14: Grades B
B15: Grade | C15: Pruned | D15: AL | E15: AM | F15: KL | G15: KM | H15: S3L3 | I15: Pulp
B16: Pruned | C16: 1 | D16: 0 | E16: 0 | F16: 0 | G16: 0 | H16: 0 | I16: 0
B17: Length min | C17: 5.5 | D17: 12.1 | E17: 8.1 | F17: 11.1 | G17: 7.3 | H17: 4 | I17: 4
B18: Length max | C18: 5.8 | D18: 12.1 | E18: 8.1 | F18: 11.1 | G18: 7.3 | H18: 5.5 | I18: 5.5
B19: SED minimum | C19: 300 | D19: 310 | E19: 350 | F19: 210 | G19: 230 | H19: 150 | I19: 100
B20: Branch maximum | C20: 0 | D20: 6 | E20: 6 | F20: 6 | G20: 5 | H20: 8 | I20: 15
B21: Grade specific conversion | C21: 1 | D21: 1 | E21: 1 | F21: 1 | G21: 1 | H21: 1 | I21: 1
B22: % downgraded to poorest grade | C22: 0 | D22: 0.02 | E22: 0.03 | F22: 0.05 | G22: 0.05 | H22: 0.15
B23: Price ($/m3) | C23: =C12 -> 146.2731682 | D23: 92 | E23: 86 | F23: 80 | G23: 74 | H23: 58 | I23: 51
C24: most valuable logs <----------------> least valuable logs
B25: Pruned log prices
B26: Pruned log price for PLI 4 ($/m3) | C26: 120
B27: PLI premium ($/PLI unit) | C27: 10
C29: The above log grade specifications do not specifically allow for sweep, kink or wobble. These have the effect of lowering the conversion ratio and must be allowed for by using the overall conversion percent (in the user interface), the grade specific conversion (rows 10 and 21 above) and/or percent downgraded to poorest grade (rows 11 and 22 above).

Sheet Overriding
B1: This page is for overriding some of the costs and other parameters estimated by the Calculator for use in subsequent economic calculations
B2: If the cells are zero or empty, no overriding will take effect
B4: Operation/element | C4: 1 | D4: 2 | E4: 3 | F4: 4 | G4: 5
B5: Cost of pruning ($/ha)
B6: Cost of thinning ($/ha)
B7: DOS (cm)
B8: Cost of clearfelling ($/ha)

Sheet Economics
B1: Economic calculations and details- values entered into the pale green cells will be automatically used next time the user interface is 'run'
B3: Financial | C3: Annual fixed costs ($/ha) | D3: ='User interface'!D24 -> 46 | F3: Value by log grade
C4: Establishment costs (cents/tree) | D4: ='User interface'!D25 -> 50 | G4: Clearfell | H4: Thin 1 | I4: Thin 2 | J4: Thin 3 | K4: Thin 4 | L4: Thin 5 | M4: Prices
C5: Clearfell Logging Cost ($/m3) | D5: ='User interface'!D26 -> 35 | F5: ='User interface'!J27 -> Pruned | G5: =conref4('User interface'!P27)*M5 -> 30027.0906 | H5: =conref4('User interface'!K27)*$M5 -> 0 | I5: =conref4('User interface'!L27)*$M5 -> 0 | J5: =conref4('User interface'!M27)*$M5 -> 0 | K5: =conref4('User interface'!N27)*$M5 -> 0 | L5: =conref4('User interface'!O27)*$M5 -> 0 | M5: =Clearfell!B10 -> 146.2731682
C6: Production Thin Logging Cost ($/m3) | D6: ='User interface'!D27 -> 45 | F6: ='User interface'!J28 -> S1 | G6: =conref4('User interface'!P28)*M6 -> 837.0712871 | H6: =conref4('User interface'!K28)*$M6 -> 0 | I6: =conref4('User interface'!L28)*$M6 -> 0 | J6: =conref4('User interface'!M28)*$M6 -> 0 | K6: =conref4('User interface'!N28)*$M6 -> 0 | L6: =conref4('User interface'!O28)*$M6 -> 0 | M6: =Clearfell!C10 -> 88
C7: Labour Cost ($/hr) | D7: ='User interface'!D28 -> 25 | F7: ='User interface'!J29 -> S2 | G7: =conref4('User interface'!P29)*M7 -> 4308.91445 | H7: =conref4('User interface'!K29)*$M7 -> 0 | I7: =conref4('User interface'!L29)*$M7 -> 0 | J7: =conref4('User interface'!M29)*$M7 -> 0 | K7: =conref4('User interface'!N29)*$M7 -> 0 | L7: =conref4('User interface'!O29)*$M7 -> 0 | M7: =Clearfell!D10 -> 80
C8: Labour Supervision (%) | D8: ='User interface'!D29 -> 12 | F8: ='User interface'!J30 -> S3 | G8: =conref4('User interface'!P30)*M8 -> 3604.483581 | H8: =conref4('User interface'!K30)*$M8 -> 0 | I8: =conref4('User interface'!L30)*$M8 -> 0 | J8: =conref4('User interface'!M30)*$M8 -> 0 | K8: =conref4('User interface'!N30)*$M8 -> 0 | L8: =conref4('User interface'!O30)*$M8 -> 0 | M8: =Clearfell!E10 -> 64
C9: Discount rate (%) | D9: ='User interface'!D30 -> 7 | F9: ='User interface'!J31 -> L1 | G9: =conref4('User interface'!P31)*M9 -> 3587.853266 | H9: =conref4('User interface'!K31)*$M9 -> 0 | I9: =conref4('User interface'!L31)*$M9 -> 0 | J9: =conref4('User interface'!M31)*$M9 -> 0 | K9: =conref4('User interface'!N31)*$M9 -> 0 | L9: =conref4('User interface'!O31)*$M9 -> 0 | M9: =Clearfell!F10 -> 65
F10: ='User interface'!J32 -> L2 | G10: =conref4('User interface'!P32)*M10 -> 6657.962463 | H10: =conref4('User interface'!K32)*$M10 -> 0 | I10: =conref4('User interface'!L32)*$M10 -> 0 | J10: =conref4('User interface'!M32)*$M10 -> 0 | K10: =conref4('User interface'!N32)*$M10 -> 0 | L10: =conref4('User interface'!O32)*$M10 -> 0 | M10: =Clearfell!G10 -> 56
B11: Land & livestock | C11: Land Value ($/ha) | D11: ='User interface'!D32 -> 0 | F11: ='User interface'!J33 -> L3 | G11: =conref4('User interface'!P33)*M11 -> 4025.148891 | H11: =conref4('User interface'!K33)*$M11 -> 0 | I11: =conref4('User interface'!L33)*$M11 -> 0 | J11: =conref4('User interface'!M33)*$M11 -> 0 | K11: =conref4('User interface'!N33)*$M11 -> 0 | L11: =conref4('User interface'!O33)*$M11 -> 0 | M11: =Clearfell!H10 -> 52
C12: Livestock Carrying Capacity (LSU/ha) | D12: ='User interface'!D33 -> 0 | F12: ='User interface'!J34 -> Pulp | G12: =conref4('User interface'!P34)*M12 -> 3563.377284 | H12: =conref4('User interface'!K34)*$M12 -> 0 | I12: =conref4('User interface'!L34)*$M12 -> 0 | J12: =conref4('User interface'!M34)*$M12 -> 0 | K12: =conref4('User interface'!N34)*$M12 -> 0 | L12: =conref4('User interface'!O34)*$M12 -> 0 | M12: =Clearfell!I10 -> 40
C13: Livestock capital value ($/LSU) | D13: ='User interface'!D34 -> 0 | F13: ='User interface'!J35 ->  | G13: =conref4('User interface'!P35)*M13 -> 0 | H13: =conref4('User interface'!K35)*$M13 -> 0 | I13: =conref4('User interface'!L35)*$M13 -> 0 | J13: =conref4('User interface'!M35)*$M13 -> 0 | K13: =conref4('User interface'!N35)*$M13 -> 0 | L13: =conref4('User interface'!O35)*$M13 -> 0 | M13: =Clearfell!J10 -> 0
C14: Livestock Gross Margin ($/lsu/yr) | D14: ='User interface'!D35 -> 0 | F14: ='User interface'!J36 ->  | G14: =conref4('User interface'!P36)*M14 -> 0 | H14: =conref4('User interface'!K36)*$M14 -> 0 | I14: =conref4('User interface'!L36)*$M14 -> 0 | J14: =conref4('User interface'!M36)*$M14 -> 0 | K14: =conref4('User interface'!N36)*$M14 -> 0 | L14: =conref4('User interface'!O36)*$M14 -> 0 | M14: =Clearfell!K10 -> 0
C15: Understorey grazing (Y/N) | D15: ='User interface'!D36 -> N | F15: Revenue | G15: =SUM(G5:G14) -> 56611.90182 | H15: 0 | I15: 0 | J15: 0 | K15: 0 | L15: 0
B17: Plant & release | C17: Plant time per plant (min.) | D17: 1.036 | F17: Cost of thinnings and clear felling
C18: Release time per plant (min.) | D18: =0.0024242*60 -> 0.145452 | F18: Age | G18: ='User interface'!J5 -> 30 | H18: ='User interface'!D18 -> 8.8 | I18: ='User interface'!E18 -> 0 | J18: ='User interface'!F18 -> 0 | K18: ='User interface'!G18 -> 0 | L18: ='User interface'!H18 -> 0
C19: Supervision multiplier | D19: 1.1 | F19: Volume | G19: ='User interface'!P37 -> 665.5556517 | H19: ='User interface'!L22 -> 65.08873889 | I19: ='User interface'!M22 ->  | J19: ='User interface'!N22 ->  | K19: ='User interface'!O22 ->  | L19: ='User interface'!P22 -> 
F20: Stems | G20: ='User interface'!M5 -> 292.8839309 | H20: ='User interface'!L20 -> 497.1138833 | I20: ='User interface'!M20 ->  | J20: ='User interface'!N20 ->  | K20: ='User interface'!O20 ->  | L20: ='User interface'!P20 -> 
B21: Pruning | C21: Slope (degrees) | D21: 20 | F21: Waste/Prod./Clearfell | G21: C | H21: =conref2('User interface'!D21) -> W | I21: =conref2('User interface'!E21) ->  | J21: =conref2('User interface'!F21) ->  | K21: =conref2('User interface'!G21) ->  | L21: =conref2('User interface'!H21) -> 
B22: labour | C22: Hindrance (scale: 1-4) | D22: 2 | F22: Time per tree (min.) | H22: =wastethintime('User interface'!L21,Summary!D4,$D$26,$D$25)*$D$27 -> 1.039789995 | I22: =wastethintime('User interface'!M21,Summary!E4,$D$26,$D$25)*$D$27 -> 0 | J22: =wastethintime('User interface'!N21,Summary!F4,$D$26,$D$25)*$D$27 -> 0 | K22: =wastethintime('User interface'!O21,Summary!G4,$D$26,$D$25)*$D$27 -> 0 | L22: =wastethintime('User interface'!P21,Summary!H4,$D$26,$D$25)*$D$27 -> 0
C23: Supervision multiplier | D23: 1.1 | F23: Cost | G23: =costf1(G21,G19,$D$5,$D$6,G20,$D$7,G22,Overriding!C8) -> 23294.44781 | H23: =costf1(H21,H19,$D$5,$D$6,H20,$D$7,$H$22,Overriding!C6) -> 215.3725176 | I23: =costf1(I21,I19,$D$5,$D$6,I20,$D$7,$I$22,Overriding!D6) -> 0 | J23: =costf1(J21,J19,$D$5,$D$6,J20,$D$7,$J$22,Overriding!E6) -> 0 | K23: =costf1(K21,K19,$D$5,$D$6,K20,$D$7,$K$22,Overriding!F6) -> 0 | L23: =costf1(L21,L19,$D$5,$D$6,L20,$D$7,$L$22,Overriding!G6) -> 0
B25: Waste thin | C25: Slope (degrees) | D25: 20 | F25: Cost of pruning
B26: labour | C26: Hindrance (scale: 1-4) | D26: 2 | F26: Age | G26: =conref3('User interface'!D11) -> 5.5 | H26: =conref3('User interface'!E11) -> 6.8 | I26: =conref3('User interface'!F11) -> 8 | J26: =conref3('User interface'!G11) ->  | K26: =conref3('User interface'!H11) -> 
C27: Supervision multiplier | D27: 1.1 | F27: Stems | G27: =Summary!D30 -> 450 | H27: =Summary!E30 -> 350 | I27: =Summary!F30 -> 320 | J27: =Summary!G30 -> 0 | K27: =Summary!H30 -> 0
F28: Time per tree (min.) | G28: =prunetime(Summary!D25,Summary!D22,Summary!D30,Summary!D26,$D$22,$D$21)*$D$23 -> 1.323297624 | H28: =prunetime(Summary!E25,Summary!E22,Summary!E30,Summary!E26,$D$22,$D$21)*$D$23 -> 2.421503516 | I28: =prunetime(Summary!F25,Summary!F22,Summary!F30,Summary!F26,$D$22,$D$21)*$D$23 -> 2.674693463 | J28: =prunetime(Summary!G25,Summary!G22,Summary!G30,Summary!G26,$D$22,$D$21)*$D$23 -> 0 | K28: =prunetime(Summary!H25,Summary!H22,Summary!H30,Summary!H26,$D$22,$D$21)*$D$23 -> 0
B29: Economic results | C29: NPV ($/ha) | D29: =EconCalc(G15:L15,G23:L23,G18:L18,G30:L30,G26:L26,D3:D13,'User interface'!D5,D37,Summary!M4:N78,D17,D18,D19) -> 2025.572824 | F29: Hours worked | G29: =prunecosts(D7,D8,G27:K27,G28:K28,Overriding!C5:G5) -> 9.92473218 | H29: 14.12543718 | I29: 14.2650318 | J29: 0 | K29: 0
C30: LEV ($/ha) | D30: 2331.908985 | F30: Cost | G30: 277.892501 | H30: 395.512241 | I30: 399.4208905 | J30: 0 | K30: 0
C31: Annuity ($/yr) | D31: 163.233629
C32: IRR (%) | D32: 0.09658432007
C33: EFGM ($/lsu) | D33: 0
C34: Cost/m3 | D34: 38.41625073
C35: Labour hours | D35: =LabourHours('User interface'!D5,SUM(G29:K29),H20:L20,H22:L22,D17,D18) -> 66.33314641
C36: Value/m3 | D36: =SUM(G15:L15)/D37 -> 85.05960648
C37: Merchantable volume | D37: =SUM('User interface'!K37:P37) -> 665.5556517
B39: Additional costs | C39: Text | D39: Year | E39: Cost ($/ha)
C40: Poisoning possums | D40: 2 | E40: 20
C41: Spraying dothistroma | D41: 8 | E41: 25

Sheet Multiple runs
B1: Multiple runs
B3: Input | W3: Output
B4: Stand | G4: Thin1 | J4: Thin 2 | M4: Prune 1 | P4: Prune 2 | S4: Prune 3 | W4: Stand | AE4: Economics | AL4: Volume by log grades - Clearfelling | AW4: Volume by log grades - 1st thinning | BH4: Volume by log grades - 2nd thinning
B5: Stand number | C5: 300-index | D5: Site index | E5: Rotation age | F5: Initial stocking | G5: Waste/Prod. | H5: Age at thinning | I5: Stems after | J5: Waste/Prod. | K5: Age at thinning | L5: Stems after | M5: Age at pruning | N5: Pruned height | O5: Stems pruned | P5: Age at pruning | Q5: Pruned height | R5: Stems pruned | S5: Age at pruning | T5: Pruned height | U5: Stems pruned | W5: DBH (cm) | X5: MTH (m) | Y5: Stocking (stem/ha) | Z5: Volume (m3/ha) | AA5: BIX (cm) | AB5: Juvenile % | AC5: PLI | AD5: Density (g/ccm) | AE5: LEV ($/ha) | AF5: NPV ($/ha) | AG5: EFGM ($/lsu) | AH5: IRR | AI5: Stumpage ($/ha) | AJ5: Labour (hs) | AL5: =Clearfell!B2 -> Pruned | AM5: =Clearfell!C2 -> S1 | AN5: =Clearfell!D2 -> S2 | AO5: =Clearfell!E2 -> S3 | AP5: =Clearfell!F2 -> L1 | AQ5: =Clearfell!G2 -> L2 | AR5: =Clearfell!H2 -> L3 | AS5: =Clearfell!I2 -> Pulp | AT5: =Clearfell!J2 -> 0 | AU5: =Clearfell!K2 -> 0 | AW5: =AL5 -> Pruned | AX5: =AM5 -> S1 | AY5: S2 | AZ5: S3 | BA5: L1 | BB5: L2 | BC5: L3 | BD5: Pulp | BE5: 0 | BF5: 0 | BH5: =AL5 -> Pruned | BI5: =AM5 -> S1 | BJ5: S2 | BK5: S3 | BL5: L1 | BM5: L2 | BN5: L3 | BO5: Pulp | BP5: 0 | BQ5: 0
B6: 1 | C6: 26 | D6: 28.3 | E6: 30 | F6: 800 | G6: W | H6: 8.8 | I6: 500 | J6: W | K6: 15 | L6: 300 | M6: 5.5 | N6: 2.4 | O6: 450 | P6: 6.8 | Q6: 4.6 | R6: 350 | S6: 8 | T6: 6 | U6: 320 | W6: 50.90932113 | X6: 38.56293938 | Y6: 288.9108217 | Z6: 751.1762775 | AA6: 4.968551161 | AB6: 0.3224833014 | AC6: 6.447013731 | AD6: 361.0437603 | AE6: 2344.35 | AF6: 2036.38 | AG6: 0 | AH6: 0.09743118286 | AI6: 32967.93 | AJ6: 67.15435428 | AL6: 196.8708141 | AM6: 16.393905 | AN6: 77.11212241 | AO6: 76.76084901 | AP6: 42.17580506 | AQ6: 88.63346685 | AR6: 55.59675678 | AS6: 84.95611662

Sheet Index table
B1: 300-index and site index (SI) lookup table showing averages for a selection of permanent
B2: sample plots located throughout New Zealand*
C4: Farm | F4: Forest | I4: Sand
B5: Region | C5: N | D5: I300 | E5: SI | F5: N | G5: I300 | H5: SI | I5: N | J5: I300 | K5: SI
B6: Northland | C6: 191 | D6: 28.4 | E6: 32.4 | F6: 127 | G6: 18.1 | H6: 26.5 | I6: 285 | J6: 18.1 | K6: 27.3
B7: Auckland | C7: 12 | D7: 30.4 | E7: 30.7 | F7: 74 | G7: 23.7 | H7: 34 | I7: 185 | J7: 19.6 | K7: 27.8
B8: Waikato | C8: 130 | D8: 29.3 | E8: 31.7 | F8: 322 | G8: 27.6 | H8: 32.1 | I8: 52 | J8: 19.2 | K8: 25.2
B9: Bay of Plenty | C9: 193 | D9: 32.6 | E9: 32.6 | F9: 876 | G9: 27.2 | H9: 32.5 | I9: . | J9: . | K9: .
B10: Gisborne | C10: 57 | D10: 31.9 | E10: 34.2 | F10: 3 | G10: 36.9 | H10: 32.8 | I10: . | J10: . | K10: .
B11: Hawkes Bay | C11: 383 | D11: 30.3 | E11: 31.1 | F11: 153 | G11: 30.2 | H11: 29 | I11: . | J11: . | K11: .
B12: Taranaki | C12: 17 | D12: 33.8 | E12: 31.6 | F12: . | G12: . | H12: . | I12: 2 | J12: 30.5 | K12: 30
B13: Wanganui/Manawatu | C13: 38 | D13: 27.5 | E13: 29.5 | F13: 20 | G13: 31.6 | H13: 31.3 | I13: 77 | J13: 19.5 | K13: 24.7
B14: Wellington | C14: 6 | D14: 33.2 | E14: 32.6 | F14: 68 | G14: 26.8 | H14: 28.3 | I14: . | J14: . | K14: .
B15: Nelson | C15: 15 | D15: 28.5 | E15: 32.2 | F15: 206 | G15: 23.3 | H15: 29.3 | I15: . | J15: . | K15: .
B16: Marlborough | C16: 134 | D16: 23.7 | E16: 26.6 | F16: 110 | G16: 25.6 | H16: 29.3 | I16: . | J16: . | K16: .
B17: Canterbury | C17: 55 | D17: 26.2 | E17: 24.5 | F17: 293 | G17: 18.2 | H17: 23.7 | I17: . | J17: . | K17: .
B18: West Coast | C18: 1 | D18: 25.1 | E18: 31.4 | F18: 99 | G18: 21.8 | H18: 28 | I18: . | J18: . | K18: .
B19: Otago | C19: 152 | D19: 27.4 | E19: 26.4 | F19: 140 | G19: 26.1 | H19: 25.4 | I19: . | J19: . | K19: .
B20: Southland | C20: 81 | D20: 25.7 | E20: 25.5 | F20: 51 | G20: 26.5 | H20: 25.6 | I20: . | J20: . | K20: .
B21: New Zealand | C21: 1465 | D21: 29 | E21: 30.2 | F21: 2542 | G21: 25.2 | H21: 29.8 | I21: 601 | J21: 18.9 | K21: 26.9
B23: *Based on 4,608 PSPs in stands established from 1975, aged 7 or more years, with known previous cover (pasture or forest/scrub)

Sheet Wood density
B1: Breast height outerwood density lookup tables
B3: Regional average breast height outerwood (50mm core) basic densities (kg/m3) at age 27
C4: Auckland | E4: 499.5
C5: Rotorua | E5: 463.5
C6: Wellington | E6: 438.5
C7: Nelson | E7: 464.5
C8: Westland | E8: 443.5
C9: Canterbury | E9: 429.5
C10: Southland | E10: 424
B11: Values are from FRI Bulletin 50 (Cown, McConchie & Young 1991) & are for rings 16-25 for typical forest sites.
B12: On fertile farm sites, densities are lower (typically by 20-30 kg/m3). Density can also be influenced by stocking & genetics.
B16: Average, upper and lower limits for outerwood density by age
C17: Age (yrs) | D17: Low Density | E17: Average Density | F17: High Density
C18: 10 | D18: =E18-46.9*0.842 -> 326.778836 | E18: =500-298*0.923^C18 -> 366.268636 | F18: =E18+46.9*0.842 -> 405.758436
C19: 11 | D19: =E19-46.9*0.842 -> 337.076151 | E19: =500-298*0.923^C19 -> 376.565951 | F19: =E19+46.9*0.842 -> 416.055751
C20: 12 | D20: 346.5805728 | E20: 386.0703728 | F20: 425.5601728
C21: 13 | D21: 355.3531541 | E21: 394.8429541 | F21: 434.3327541
C22: 14 | D22: 363.4502466 | E22: 402.9400466 | F22: 442.4298466
C23: 15 | D23: 370.923863 | E23: 410.413663 | F23: 449.903463
C24: 16 | D24: 377.822011 | E24: 417.311811 | F24: 456.801611
C25: 17 | D25: 384.1890015 | E25: 423.6788015 | F25: 463.1686015
C26: 18 | D26: 390.0657338 | E26: 429.5555338 | F26: 469.0453338
C27: 19 | D27: 395.4899577 | E27: 434.9797577 | F27: 474.4695577
C28: 20 | D28: 400.4965164 | E28: 439.9863164 | F28: 479.4761164
C29: 21 | D29: 405.11757 | E29: 444.60737 | F29: 484.09717
C30: 22 | D30: 409.3828025 | E30: 448.8726025 | F30: 488.3624025
C31: 23 | D31: 413.3196121 | E31: 452.8094121 | F31: 492.2992121
C32: 24 | D32: 416.9532874 | E32: 456.4430874 | F32: 495.9328874
C33: 25 | D33: 420.3071697 | E33: 459.7969697 | F33: 499.2867697
C34: 26 | D34: 423.402803 | E34: 462.892603 | F34: 502.382403
C35: 27 | D35: 426.2600726 | E35: 465.7498726 | F35: 505.2396726
C36: 28 | D36: 428.8973324 | E36: 468.3871324 | F36: 507.8769324
C37: 29 | D37: 431.3315232 | E37: 470.8213232 | F37: 510.3111232
C38: 30 | D38: 433.5782813 | E38: 473.0680813 | F38: 512.5578813
C39: 31 | D39: 435.652039 | E39: 475.141839 | F39: 514.631639
C40: 32 | D40: 437.5661174 | E40: 477.0559174 | F40: 516.5457174
C41: 33 | D41: 439.3328118 | E41: 478.8226118 | F41: 518.3124118
C42: 34 | D42: 440.9634707 | E42: 480.4532707 | F42: 519.9430707
C43: 35 | D43: 442.4685688 | E43: 481.9583688 | F43: 521.4481688

Sheet Ht-Age table
A1: National Height/Age Table for Pinus radiata in New Zealand
A2: Displays values for Mean Top Height (MTH) for a given Site Index (SI) and age
G3: This sheet is 'stand-alone' - values for site index estimated here do not link to the user interface
A4: Site values:
A5: Latitude (0S) | B5: 36
A6: Altitude (m) | B6: 250
A8: Age (yrs) | B8: Site Index- MTH (m) at age 20 years
B9: 16 | C9: 18 | D9: 20 | E9: 22 | F9: 24 | G9: 26 | H9: 28 | I9: 30 | J9: 32 | K9: 34 | L9: 36 | M9: 38 | N9: 40
A10: 5 | B10: =minasmth(B$9,$B$5,$B$6,$A10) -> 3.151493392 | C10: 3.616176162 | D10: 4.10192919 | E10: 4.608525096 | F10: 5.13572623 | G10: 5.683286177 | H10: 6.250951116 | I10: 6.838461051 | J10: 7.445550934 | K10: 8.071951675 | L10: 8.717391059 | M10: 9.381594569 | N10: 10.06428613
A11: 6 | B11: 4.028200427 | C11: 4.613490888 | D11: 5.221364962 | E11: 5.851444245 | F11: 6.503348348 | G11: 7.176696064 | H11: 7.871106388 | I11: 8.586199418 | J11: 9.321597143 | K11: 10.07692412 | L11: 10.8518081 | M11: 11.64588049 | N11: 12.45877686
A12: 7 | B12: 4.939105904 | C12: 5.645486546 | D12: 6.375166703 | E12: 7.127641664 | F12: 7.902413427 | G12: 8.69899135 | H12: 9.516892678 | I12: 10.35564298 | J12: 11.2147765 | K12: 12.09383639 | L12: 12.99237498 | M12: 13.90995382 | N12: 14.84614387
A13: 8 | B13: 5.869416159 | C13: 6.695905985 | D13: 7.545732594 | E13: 8.41829406 | F13: 9.313003328 | G13: 10.22928827 | H13: 11.16659165 | I13: 12.12437106 | J13: 13.10209877 | K13: 14.09926157 | L13: 15.11536051 | M13: 16.14991073 | N13: 17.20244109
A14: 9 | B14: 6.807456304 | C14: 7.752025668 | D14: 8.719399472 | E14: 9.708908809 | F14: 10.71990667 | G14: 11.7517674 | H14: 12.80388611 | I14: 13.87567813 | J14: 14.96657837 | K14: 16.07604076 | L14: 17.2035376 | M14: 18.348559 | N14: 19.51061228
A15: 10 | B15: 7.743979136 | C15: 8.803846783 | D15: 9.8855144 | E15: 10.98827556 | F15: 12.11145126 | G15: 13.25438884 | H15: 14.41646091 | I15: 15.59706436 | J15: 16.79561928 | K15: 18.01156808 | L15: 19.24437449 | M15: 20.4935227 | N15: 21.75851649
A16: 11 | B16: 8.671665653 | C16: 9.843517243 | D16: 11.03577807 | E16: 12.24773174 | F16: 13.47869317 | G16: 14.72800699 | H16: 15.99504618 | I16: 17.27921055 | J16: 18.57992554 | K16: 19.89664086 | L16: 21.22882939 | M16: 22.57598597 | N16: 23.93762641
A17: 12 | B17: 9.584749497 | C17: 10.86490144 | D17: 12.16376049 | E17: 13.48062536 | F17: 14.81482821 | G17: 16.16573277 | H17: 17.53273254 | I17: 18.9152492 | J17: 20.31273101 | K17: 21.72465139 | L17: 23.15050755 | M17: 24.58981919 | N17: 26.04212731
A18: 13 | B18: 10.47872639 | C18: 11.86325029 | D18: 13.26453257 | E18: 14.68190937 | F18: 16.11475071 | G18: 17.56245842 | H18: 19.02446422 | I18: 20.50022786 | J18: 21.98923554 | K18: 23.49099829 | L18: 25.00505051 | M18: 26.53094867 | N18: 28.06826999
A19: 14 | B19: 11.35012455 | C19: 12.83494255 | D19: 14.33437938 | E19: 15.84782808 | F19: 17.3747144 | G19: 18.91449469 | H19: 20.46665389 | I19: 22.03070372 | J19: 23.60618097 | K19: 25.19264593 | L19: 26.78968096 | M19: 28.39688912 | N19: 30.0138929
A20: 15 | B20: =minasmth(B$9,$B$5,$B$6,$A20) -> 12.19632029 | C20: 13.7772785 | D20: 15.37057292 | E20: 16.97567018 | F20: 18.59206699 | G20: 20.21928809 | H20: 21.85688431 | I20: 23.50443085 | J20: 25.16152565 | K20: 26.82778787 | L20: 28.50285657 | M20: 30.18638939 | N20: 31.87806141
A21: 16 | B21: 13.01538827 | C21: 14.68831339 | D21: 16.37118972 | E21: 18.06357153 | F21: 19.76503923 | G21: 21.47519748 | H21: 23.19367346 | I21: 24.9201153 | J21: 26.65419063 | K21: 28.39558526 | L21: 30.14400197 | M21: 31.89915934 | N21: 33.66079078
A22: 17 | B22: 13.80597854 | C22: 15.56672153 | D22: 17.33496279 | E22: 19.11035591 | F22: 20.89257544 | G22: 22.68131533 | H22: 24.47628755 | I22: 26.27722074 | J22: 28.08385906 | K22: 29.89596106 | L22: 31.71329873 | M22: 33.53565654 | N22: 35.36283061
A23: 18 | B23: 14.56721507 | C23: 16.41168455 | D23: 18.26116057 | E23: 20.11540538 | F23: 21.97419605 | G23: 23.83732332 | H23: 25.70459057 | I23: 27.57581287 | J23: 29.45081616 | K23: 31.32943642 | L23: 33.21151898 | M23: 35.09691787 | N23: 36.9854952
A24: 19 | B24: 15.29861133 | C24: 17.22279908 | D24: 19.14948717 | E24: 21.07855394 | F24: 23.00988548 | G24: 24.94337504 | H24: 26.87892249 | I24: 28.81643378 | J24: 30.75582052 | K24: 32.69699953 | L24: 34.63989249 | M24: 36.58442558 | N24: 38.53052914
A25: 20 | B25: 16 | C25: 18 | D25: 20 | E25: 22 | F25: 24 | G25: 26 | H25: 28 | I25: 30 | J25: 32 | K25: 34 | L25: 36 | M25: 38 | N25: 40
A26: 21 | B26: 16.67147406 | C26: 18.74349649 | D26: 20.81304122 | E26: 22.88023391 | F26: 24.9451919 | G26: 27.00802482 | H26: 29.06883527 | I26: 31.12771934 | J26: 33.18476713 | K26: 35.2400632 | L26: 37.29368702 | M26: 39.34571329 | N26: 41.39621237
A27: 22 | B27: 17.3133374 | C27: 19.45371863 | D27: 21.58918081 | E27: 23.71997792 | F27: 25.84634675 | G27: 27.96850835 | H27: 30.08666931 | I27: 32.20102289 | J27: 34.31175014 | K27: 36.41902078 | L27: 38.52299414 | M27: 40.62381988 | N27: 42.72163875
A28: 23 | B28: 17.92606339 | C28: 20.13127267 | D28: 22.32916904 | E28: 24.5201362 | F28: 26.70453149 | G28: 28.88268811 | H28: 31.05491714 | I28: 33.22150931 | J28: 35.38273669 | K28: 37.5388541 | L28: 39.69010051 | M28: 41.83670022 | N28: 43.97886396
A29: 24 | B29: 18.51025998 | C29: 20.77690362 | D29: 23.03389684 | E29: 25.28175344 | F29: 27.52095143 | G29: 29.75193609 | H29: 31.97512271 | I29: 34.19089912 | J29: 36.39962783 | K29: 38.60164815 | L29: 40.79727798 | M29: 42.98681544 | N29: 45.17054043
A30: 25 | B30: =minasmth(B$9,$B$5,$B$6,$A30) -> 19.06664046 | C30: 21.39146388 | D30: 23.70436267 | E30: 26.00598022 | F30: 28.29691454 | G30: 30.57772218 | H30: 32.84892177 | I30: 35.1109972 | J30: 37.36440041 | K30: 39.60955409 | L30: 41.84685389 | M30: 44.07667064 | N30: 46.2993522
A31: 26 | B31: 19.59599888 | C31: 21.97588705 | D31: 24.34164498 | E31: 26.69404438 | F31: 29.03380194 | G31: 31.36158409 | H31: 33.67801133 | I31: 35.98366215 | J31: 38.27907645 | K31: 40.56475878 | L31: 42.84118111 | M31: 45.10878546 | N31: 47.36798618
A32: 27 | B32: 20.09918935 | C32: 22.53116594 | D32: 24.94687917 | E32: 27.34722722 | F32: 29.73304352 | G32: 32.10510249 | H32: 34.46412464 | I32: 36.81078119 | J32: 39.14569817 | K32: 41.46946018 | L32: 43.78261375 | M32: 46.08567036 | N32: 48.37910923
A33: 28 | B33: 20.57710884 | C33: 23.05833433 | D33: 25.52123855 | E33: 27.96684373 | F33: 30.39609773 | G33: 32.80988063 | H33: 35.20901072 | I33: 37.59424976 | J33: 39.9663078 | K33: 42.32584745 | L33: 44.6734878 | M33: 47.0098079 | N33: 49.33534995
A34: 29 | B34: 21.03068274 | C34: 23.55845171 | D34: 26.06591845 | E34: 28.5542264 | F34: 31.0244351 | G34: 33.4775277 | H34: 35.91441771 | I34: 38.33595501 | J34: 40.74293133 | K34: 43.13608507 | L34: 45.51610571 | M34: 47.88363781 | N34: 50.23928458
A35: 30 | B35: 21.46085283 | C35: 24.03259072 | D35: 26.58212321 | E35: 29.11071181 | F35: 31.61952471 | G35: 34.10964523 | H35: 36.58207937 | I35: 39.03776251 | J35: 41.47756553 | K35: 43.90230023 | L35: 46.31272424 | M35: 48.70954543 | N35: 51.09342597
A36: 31 | B36: 21.86856738 | C36: 24.4818267 | D36: 27.07105544 | E36: 29.63762972 | F36: 32.18282316 | G36: 34.70781617 | H36: 37.21370428 | I36: 39.70150563 | J36: 42.17216762 | K36: 44.62657296 | L36: 47.06554505 | M36: 49.48985285 | N36: 51.90021531
A37: 32 | B37: 22.25477295 | C37: 24.90722923 | D37: 27.53390729 | E37: 30.13629429 | F37: 32.7157658 | G37: 35.27359611 | H37: 37.81096727 | I37: 40.32897727 | J37: 42.82864734 | K37: 45.31092852 | L37: 47.77670755 | M37: 50.22681221 | N37: 52.66201607
A38: 33 | B38: 22.62040767 | C38: 25.30985512 | D38: 27.97185339 | E38: 30.60799688 | F38: 33.21975961 | G38: 35.8085064 | H38: 38.37550269 | I38: 40.92192338 | J38: 43.44886078 | K38: 45.95733165 | L38: 48.44828362 | M38: 50.92260094 | N38: 53.38110967
A39: 34 | B39: 22.96639583 | C39: 25.69074287 | D39: 28.38604519 | E39: 31.0540005 | F39: 33.6961777 | G39: 36.31402873 | H39: 38.90889925 | I39: 41.48203811 | J39: 44.03460587 | K39: 46.56768241 | L39: 49.08227381 | M39: 51.57931846 | N39: 54.05969269
A40: 35 | B40: =minasmth(B$9,$B$5,$B$6,$A40) -> 23.2936435 | C40: 26.05090825 | D40: 28.77760649 | E40: 31.47553541 | F40: 34.14635504 | G40: 36.79160107 | H40: 39.41269618 | I40: 42.01096018 | J40: 44.58761911 | K40: 47.14381333 | L40: 49.6806049 | M40: 52.19898408 | N40: 54.69987531
A41: 36 | B41: 23.6030351 | C41: 26.39134074 | D41: 29.14763006 | E41: 31.87379571 | F41: 34.57158525 | G41: 37.24261466 | H41: 39.88838048 | I41: 42.51027048 | J41: 45.10957342 | K41: 47.68748755 | L41: 50.24512847 | M41: 52.78353603 | N41: 55.30368065
A42: 37 | B42: 23.89543072 | C42: 26.71300097 | D42: 29.49717499 | E42: 32.24993697 | F42: 34.97311832 | G42: 37.66841194 | H42: 40.33738504 | I42: 42.98149046 | J42: 45.60207687 | K42: 48.20039791 | L42: 50.7776203 | M42: 53.33483125 | N42: 55.87304506
A43: 38 | B43: 24.17166407 | C43: 27.01681867 | D43: 29.82726483 | E43: 32.60507441 | F43: 35.35215902 | G43: 38.07028516 | H43: 40.76108757 | I43: 43.42608126 | J43: 46.06667216 | K43: 48.68416673 | L43: 51.2797805 | M43: 53.85464584 | N43: 56.40981889
A44: 39 | B44: 24.43254107 | C44: 27.3036913 | D44: 30.13888632 | E44: 32.94028179 | F44: 35.70986598 | G44: 38.44947566 | H44: 41.16081009 | I44: 43.84544357 | J44: 46.50483666 | K44: 49.14034618 | L44: 51.75323421 | M44: 54.34467613 | N44: 56.91576792
A45: 40 | B45: 24.67883879 | C45: 27.57448316 | D45: 30.43298862 | E45: 33.25659083 | F45: 36.04735127 | G45: 38.80717371 | H45: 41.53781895 | I45: 44.24091783 | J45: 46.91798296 | K45: 49.57041914 | L45: 52.19953273 | M45: 54.80654009 | N45: 57.39257509
A46: 41 | B46: 24.91130485 | C46: 27.83002486 | D46: 30.71048292 | E46: 33.554991 | F46: 36.36568036 | G46: 39.14451866 | H46: 41.89332531 | I46: 44.61378498 | J46: 47.30745985 | K46: 49.97580037 | L46: 52.62015504 | M46: 55.24177916 | N46: 57.84184265
A47: 42 | B47: 25.13065714 | C47: 28.07111317 | D47: 30.97224245 | E47: 33.83642967 | F47: 36.66587253 | G47: 39.46259954 | H47: 42.22848587 | I47: 44.96526745 | J47: 47.67455356 | K47: 50.35783807 | L47: 53.01650955 | M47: 55.65186029 | N47: 58.26509445
A48: 43 | B48: 25.33758375 | C48: 28.29851111 | D48: 31.21910274 | E48: 34.10181254 | F48: 36.94890145 | G48: 39.76245585 | H48: 42.54440396 | I48: 45.29653041 | J48: 48.02048926 | K48: 50.71781564 | L48: 53.38993615 | M48: 56.03817821 | N48: 58.66377848
A49: 44 | B49: 25.53274323 | C49: 28.51294833 | D49: 31.45186211 | E49: 34.35200434 | F49: 37.21569606 | G49: 40.04507867 | H49: 42.84213078 | I49: 45.60868329 | J49: 48.34643279 | K49: 51.05695356 | L49: 53.74170831 | M49: 56.40205779 | N49: 59.03926949
A50: 45 | B50: =minasmth(B$9,$B$5,$B$6,$A50) -> 25.71676492 | C50: 28.71512156 | D50: 31.67128236 | E50: 34.58782965 | F50: 37.46714159 | G50: 40.31141183 | H50: 43.12266682 | I50: 45.90278138 | J50: 48.65349246 | K50: 51.37641149 | L50: 54.07303541 | M50: 56.7447566 | N50: 59.39287175
A51: 46 | B51: 25.89024947 | C51: 28.90569536 | D51: 31.87808959 | E51: 34.81007392 | F51: 37.70408075 | G51: 40.56235329 | H51: 43.38696341 | I51: 46.17982758 | J51: 48.94272102 | K51: 51.67729038 | L51: 54.38506507 | M51: 57.0674674 | N51: 59.72582176
A52: 47 | B52: 26.05376951 | C52: 29.08530283 | D52: 32.07297515 | E52: 35.01948459 | F52: 37.927315 | G52: 40.79875661 | H52: 43.63592436 | I52: 46.44077421 | J52: 49.21511766 | K52: 51.96063471 | L52: 54.67888552 | M52: 57.37132078 | N52: 60.03929108
A53: 48 | B53: 26.20787036 | C53: 29.25454657 | D53: 32.25659666 | E53: 35.21677222 | F53: 38.13760589 | G53: 41.02143246 | H53: 43.87040769 | I53: 46.68652494 | J53: 49.47163006 | K53: 52.22743468 | L53: 54.95552805 | M53: 57.65738773 | N53: 60.33438912
A54: 49 | B54: 26.35307083 | C54: 29.41399956 | D54: 32.42957914 | E54: 35.40261185 | F54: 38.33567653 | G54: 41.23115022 | H54: 44.09122732 | I54: 46.91793661 | J54: 49.71315649 | K54: 52.47862848 | L54: 55.21596941 | M54: 57.92668223 | N54: 60.61216581
A55: 50 | B55: 26.48986407 | C55: 29.56420618 | D55: 32.59251611 | E55: 35.57764417 | F55: 38.52221297 | G55: 41.42863953 | H55: 44.29915484 | I55: 47.13582122 | J55: 49.94054784 | K55: 52.71510454 | L55: 55.46113419 | M55: 58.18016379 | N55: 60.87361439

Sheet PLI
B1: Pruned log Index (PLI) description
B2: (background information only)

Sheet Annual growth
B33: From Jackson et al NZ Journal of Forestry Science, 1976 5(3) pp 265-286

Sheet Default
B1: Default settings
B3: Stand information | C3: 300-index | D3: 26
C4: Site index (m) | D4: 28.3 | E4: Survival
C5: Number of stems planted | D5: 850 | E5: 0.95
C6: Rotation age (years) | D6: 30
C7: Altitude | D7: 300
C8: Latitude | D8: 40
B10: Prunings | D10: Prune 1 | E10: Prune 2 | F10: Prune 3 | G10: Prune 4 | H10: Prune 5
C11: Time of pruning (years) | D11: 5.5 | E11: 6.8 | F11: 8
C12: Pruned height (m) | D12: 2.4 | E12: 4.6 | F12: 6
C13: Stems per hectare | D13: 450 | E13: 350 | F13: 320
C14: Target DOS (cm)
C15: Target green crown length (m)
B17: Thinnings | D17: Thin 1 | E17: Thin 2 | F17: Thin 3 | G17: Thin 4 | H17: Thin 5
C18: Age at thinning (years) | D18: 8.8
C19: SPH after thinning | D19: 307
C20: Thinning coefficient | D20: 0.78
C21: Production or waste (P/W) | D21: W
C22: Target final crop stocking | D22: 270
B24: Financial | C24: Annual fixed costs ($/ha) | D24: 46 | F24: Model Adjustments
C25: Establishment costs (cents/tree) | D25: 50 | F25: Mort + | G25: 0
C26: Clearfell Logging Cost ($/m3) | D26: 35 | F26: Mort x | G26: 0
C27: Production Thin Log. Cost ($/m3) | D27: 45 | F27: Drift | G27: 0
C28: Labour Cost ($/hr) | D28: 25
C29: Labour Supervision (%) | D29: 12
C30: Discount rate (%) | D30: 7
B32: Land & livestock | C32: Land Value ($/ha) | D32: 0
C33: Livestock Carrying Capacity | D33: 0
C34: Livestock capital value ($/LSU) | D34: 0
C35: Livestock Gross Margin | D35: 0
C36: Understorey grazing (Y/N) | D36: N
B38: Log quality | C38: Clearfell Conversion (%) | D38: 85
C39: Thinning Conv. Reduction (%) | D39: 10
C40: B.H. Outerwood Density (kg/m3) | D40: 410
C41: Density measurement age (yrs) | D41: 15
C42: Pruned log sweep (mm/m) | D42: 8

Sheet Original Defaults (hidden)
B1: Default settings
B3: Stand information | C3: 300-index | D3: 26
C4: Site index (m) | D4: 28.3 | E4: Survival
C5: Number of stems planted | D5: 850 | E5: 0.95
C6: Rotation age (years) | D6: 30
C7: Altitude | D7: 300
C8: Latitude | D8: 40
B10: Prunings | D10: Prune 1 | E10: Prune 2 | F10: Prune 3 | G10: Prune 4 | H10: Prune 5
C11: Time of pruning (years) | D11: 5.5 | E11: 6.8 | F11: 8
C12: Pruned height (m) | D12: 2.4 | E12: 4.6 | F12: 6
C13: Stems per hectare | D13: 450 | E13: 350 | F13: 320
C14: Target DOS (cm)
C15: Target green crown length (m)
B17: Thinnings | D17: Thin 1 | E17: Thin 2 | F17: Thin 3 | G17: Thin 4 | H17: Thin 5
C18: Age at thinning (years) | D18: 8.8
C19: SPH after thinning | D19: 307
C20: Thinning coefficient | D20: 0.78
C21: Production or waste (P/W) | D21: W
C22: Target final crop stocking | D22: 270
B24: Financial | C24: Annual fixed costs ($/ha) | D24: 0
C25: Establishment costs (cents/tree) | D25: 50
C26: Clearfell Logging Cost ($/m3) | D26: 35
C27: Production Thin Log. Cost ($/m3) | D27: 45
C28: Labour Cost ($/hr) | D28: 25
C29: Labour Supervision (%) | D29: 12
C30: Discount rate (%) | D30: 7
B32: Land & livestock | C32: Land Value ($/ha) | D32: 0
C33: Livestock Carrying Capacity | D33: 8
C34: Livestock capital value ($/LSU) | D34: 85
C35: Livestock Gross Margin | D35: 45
C36: Understorey grazing (Y/N) | D36: y
B38: Log quality | C38: Clearfell Conversion (%) | D38: 85
C39: Thinning Conv. Reduction (%) | D39: 10
C40: B.H. Outerwood Density (kg/m3) | D40: 410
C41: Density measurement age (yrs) | D41: 15
C42: Pruned log sweep (mm/m) | D42: 8

Sheet Change (hidden)
I1: SUM | J1: =SUM(J3:N42) -> 0 | P1: To check that log specs correspond to pruning
P2: =MAX('User interface'!D12:H12) -> 6 | Q2: Max pruned height
D3: 26 | J3: =IF(D3='User interface'!D3,0,1) -> 0 | K3: =IF(E3='User interface'!E3,0,1) -> 0 | P3: ='Log specs'!C6 -> 4.2 | Q3: Log length minimum
D4: 28.3 | E4: Survival | J4: =IF(D4='User interface'!D4,0,1) -> 0 | K4: =IF(E4='User interface'!E4,0,1) -> 0 | P4: ='Log specs'!C7 -> 5.5 | Q4: Log length meximum
D5: 850 | E5: 0.95 | J5: =IF(D5='User interface'!D5,0,1) -> 0 | K5: =IF(E5='User interface'!E5,0,1) -> 0
D6: 30 | J6: =IF(D6='User interface'!D6,0,1) -> 0 | K6: =IF(E6='User interface'!E6,0,1) -> 0 | P6: =IF(AND(P2<>0,ABS(P2-P4)>1),1,0) -> 0
D7: 300 | F7: PUSH RUN TO UPDATE | J7: =IF(D7='User interface'!D7,0,1) -> 0
D8: 40 | J8: =IF(D8='User interface'!D8,0,1) -> 0
D10: Prune 1 | E10: Prune 2 | F10: Prune 3 | G10: Prune 4 | H10: Prune 5
D11: 5.5 | E11: 6.8 | F11: 8 | J11: =IF(D11='User interface'!D11,0,1) -> 0 | K11: =IF(E11='User interface'!E11,0,1) -> 0 | L11: =IF(F11='User interface'!F11,0,1) -> 0 | M11: =IF(G11='User interface'!G11,0,1) -> 0 | N11: =IF(H11='User interface'!H11,0,1) -> 0
D12: 2.4 | E12: 4.6 | F12: 6 | J12: =IF(D12='User interface'!D12,0,1) -> 0 | K12: =IF(E12='User interface'!E12,0,1) -> 0 | L12: =IF(F12='User interface'!F12,0,1) -> 0 | M12: =IF(G12='User interface'!G12,0,1) -> 0 | N12: =IF(H12='User interface'!H12,0,1) -> 0
D13: 450 | E13: 350 | F13: 320 | J13: =IF(D13='User interface'!D13,0,1) -> 0 | K13: =IF(E13='User interface'!E13,0,1) -> 0 | L13: =IF(F13='User interface'!F13,0,1) -> 0 | M13: =IF(G13='User interface'!G13,0,1) -> 0 | N13: =IF(H13='User interface'!H13,0,1) -> 0
D17: Thin 1 | E17: Thin 2 | F17: Thin 3 | G17: Thin 4 | H17: Thin 5
D18: 8.8 | J18: =IF(D18='User interface'!D18,0,1) -> 0 | K18: =IF(E18='User interface'!E18,0,1) -> 0 | L18: =IF(F18='User interface'!F18,0,1) -> 0 | M18: =IF(G18='User interface'!G18,0,1) -> 0 | N18: =IF(H18='User interface'!H18,0,1) -> 0
D19: 307 | J19: =IF(D19='User interface'!D19,0,1) -> 0 | K19: =IF(E19='User interface'!E19,0,1) -> 0 | L19: =IF(F19='User interface'!F19,0,1) -> 0 | M19: =IF(G19='User interface'!G19,0,1) -> 0 | N19: =IF(H19='User interface'!H19,0,1) -> 0
D20: 0.78 | J20: =IF(D20='User interface'!D20,0,1) -> 0 | K20: =IF(E20='User interface'!E20,0,1) -> 0 | L20: =IF(F20='User interface'!F20,0,1) -> 0 | M20: =IF(G20='User interface'!G20,0,1) -> 0 | N20: =IF(H20='User interface'!H20,0,1) -> 0
D21: W | J21: =IF(D21='User interface'!D21,0,1) -> 0 | K21: =IF(E21='User interface'!E21,0,1) -> 0 | L21: =IF(F21='User interface'!F21,0,1) -> 0 | M21: =IF(G21='User interface'!G21,0,1) -> 0 | N21: =IF(H21='User interface'!H21,0,1) -> 0
D22: 270
D24: 46 | F24: Model Adjustments | J24: =IF(D24='User interface'!D24,0,1) -> 0
D25: 50 | F25: Mort + | G25: 0 | J25: =IF(D25='User interface'!D25,0,1) -> 0
D26: 35 | F26: Mort x | G26: 0 | J26: =IF(D26='User interface'!D26,0,1) -> 0
D27: 45 | F27: Drift | G27: 0 | J27: =IF(D27='User interface'!D27,0,1) -> 0
D28: 25 | J28: =IF(D28='User interface'!D28,0,1) -> 0
D29: 12 | J29: =IF(D29='User interface'!D29,0,1) -> 0
D30: 7 | F30: Calibrate indices | J30: =IF(D30='User interface'!D30,0,1) -> 0
F31: Age (years) | H31: 12
D32: 0 | F32: Stocking (sph) | H32: 300 | J32: =IF(D32='User interface'!D32,0,1) -> 0
D33: 0 | F33: DBH (cm) | J33: =IF(D33='User interface'!D33,0,1) -> 0
D34: 0 | F34: Basal area (m2/ha) | H34: 18 | J34: =IF(D34='User interface'!D34,0,1) -> 0
D35: 0 | F35: Volume (m3/ha) | J35: =IF(D35='User interface'!D35,0,1) -> 0
D36: N | F36: MTH (m) | H36: 18 | J36: =IF(D36='User interface'!D36,0,1) -> 0
F37: MH (m)
D38: 85 | J38: =IF(D38='User interface'!D38,0,1) -> 0
D39: 10 | J39: =IF(D39='User interface'!D39,0,1) -> 0
D40: 410 | J40: =IF(D40='User interface'!D40,0,1) -> 0
D41: 15 | J41: =IF(D41='User interface'!D41,0,1) -> 0
D42: 8 | J42: =IF(D42='User interface'!D42,0,1) -> 0

Sheet Summary (hidden)
D2: Thin 1 | E2: Thin 2 | F2: Thin 3 | G2: Thin 4 | H2: Thin 5 | J2: Pasture production | P2: Time | Q2: Weighted | R2: Average
C3: Age | D3: =conref3('User interface'!D18) -> 8.8 | E3: =conref3('User interface'!E18) ->  | F3: =conref3('User interface'!F18) ->  | G3: =conref3('User interface'!G18) ->  | H3: =conref3('User interface'!H18) ->  | J3: Age | K3: Full PP | L3: Slash | M3: Time | N3: Value | O3: Full - slash | P3: =MAX(J4:J78) -> 30 | Q3: =SUM(Q4:Q78) -> 365.9773178 | R3: =IF(ISERROR(Q3/P3),0,Q3/P3) -> 12.19924393 | T3: Age | U3: Crown closure
C4: SPHb4 | D4: =IF(D3<>"",atage2(D3,'300 Index'!$G$5:$G$105,'300 Index'!$H$5:$H$105),"") -> 804.1138833 | E4: =IF(E3<>"",atage2(E3,'300 Index'!$G$5:$G$105,'300 Index'!$H$5:$H$105),"") ->  | F4: =IF(F3<>"",atage2(F3,'300 Index'!$G$5:$G$105,'300 Index'!$H$5:$H$105),"") ->  | G4: =IF(G3<>"",atage2(G3,'300 Index'!$G$5:$G$105,'300 Index'!$H$5:$H$105),"") ->  | H4: =IF(H3<>"",atage2(H3,'300 Index'!$G$5:$G$105,'300 Index'!$H$5:$H$105),"") ->  | J4: =ppcalc('300 Index'!G5:G106,'300 Index'!N5:N106,'300 Index'!J5:J106,'300 Index'!H5:H106,'300 Index'!K5:K106) -> 0 | K4: 100 | L4: =slashcalc(D18:H30,D3:H15,J4:J78) -> 0 | M4: =ppvalue(J4:J78,K4:K78,L4:L78,Economics!D14,Economics!D12,'User interface'!D36) -> 0 | N4: 0 | O4: 0 | P4: =J4 -> 0 | Q4: =P4*O4 -> 0 | T4: =CCcalcPub('300 Index'!G5:G106,'300 Index'!N5:N106,'300 Index'!J5:J106,'300 Index'!H5:H106,'300 Index'!K5:K106) -> 0 | U4: 0
C5: SPHaft | D5: =conref3('User interface'!D19) -> 307 | E5: =conref3('User interface'!E19) ->  | F5: =conref3('User interface'!F19) ->  | G5: =conref3('User interface'!G19) ->  | H5: =conref3('User interface'!H19) ->  | J5: 1 | K5: 100 | L5: 0 | M5: 0 | N5: 0 | O5: 0 | P5: =J5-J4 -> 1 | Q5: =P5*O5 -> 0 | T5: 1 | U5: 0
C6: SPHdif | D6: =IF(D5<>"",D4-D5,"") -> 497.1138833 | E6: =IF(E5<>"",E4-E5,"") ->  | F6: =IF(F5<>"",F4-F5,"") ->  | G6: =IF(G5<>"",G4-G5,"") ->  | H6: =IF(H5<>"",H4-H5,"") ->  | J6: 2 | K6: 99.99754205 | L6: 0 | M6: 0 | N6: 0 | O6: 0 | P6: =J6-J5 -> 1 | Q6: 0 | T6: 2 | U6: 0.001326656982
C7: Volb4 | D7: =IF(D3<>"",atage2(D3,'300 Index'!$G$5:$G$105,'300 Index'!$L$5:$L$105),"") -> 105.3142478 | E7: =IF(E3<>"",atage2(E3,'300 Index'!$G$5:$G$105,'300 Index'!$L$5:$L$105),"") ->  | F7: =IF(F3<>"",atage2(F3,'300 Index'!$G$5:$G$105,'300 Index'!$L$5:$L$105),"") ->  | G7: =IF(G3<>"",atage2(G3,'300 Index'!$G$5:$G$105,'300 Index'!$L$5:$L$105),"") ->  | H7: =IF(H3<>"",atage2(H3,'300 Index'!$G$5:$G$105,'300 Index'!$L$5:$L$105),"") ->  | J7: 3 | K7: 98.91975057 | L7: 0 | M7: 0 | N7: 0 | O7: 0 | P7: 1 | Q7: 0 | T7: 3 | U7: 0.5840631563
C8: Volaft | D8: =IF(D3<>"",atage2(D3,'300 Index'!$G$5:$G$105,'300 Index'!$M$5:$M$105),"") -> 40.22550896 | E8: =IF(E3<>"",atage2(E3,'300 Index'!$G$5:$G$105,'300 Index'!$M$5:$M$105),"") ->  | F8: =IF(F3<>"",atage2(F3,'300 Index'!$G$5:$G$105,'300 Index'!$M$5:$M$105),"") ->  | G8: =IF(G3<>"",atage2(G3,'300 Index'!$G$5:$G$105,'300 Index'!$M$5:$M$105),"") ->  | H8: =IF(H3<>"",atage2(H3,'300 Index'!$G$5:$G$105,'300 Index'!$M$5:$M$105),"") ->  | J8: 4 | K8: 91.01273145 | L8: 0 | M8: 0 | N8: 0 | O8: =K8*(1-L8) -> 91.01273145 | P8: 1 | Q8: 91.01273145 | T8: 4 | U8: 4.922605875
C9: VolDif | D9: =IF(D8<>"",D7-D8,"") -> 65.08873889 | E9: =IF(E8<>"",E7-E8,"") ->  | F9: =IF(F8<>"",F7-F8,"") ->  | G9: =IF(G8<>"",G7-G8,"") ->  | H9: =IF(H8<>"",H7-H8,"") ->  | J9: 5 | K9: 71.99488595 | L9: 0 | M9: 0 | N9: 0 | O9: 71.99488595 | P9: 1 | Q9: 71.99488595 | T9: 5 | U9: 15.86120821
C10: BAb4 | D10: =IF(D3<>"",atage2(D3,'300 Index'!$G$5:$G$105,'300 Index'!$N$5:$N$105),"") -> 23.42711066 | E10: =IF(E3<>"",atage2(E3,'300 Index'!$G$5:$G$105,'300 Index'!$N$5:$N$105),"") ->  | F10: =IF(F3<>"",atage2(F3,'300 Index'!$G$5:$G$105,'300 Index'!$N$5:$N$105),"") ->  | G10: =IF(G3<>"",atage2(G3,'300 Index'!$G$5:$G$105,'300 Index'!$N$5:$N$105),"") ->  | H10: =IF(H3<>"",atage2(H3,'300 Index'!$G$5:$G$105,'300 Index'!$N$5:$N$105),"") ->  | J10: 5.5 | K10: 65.38987027 | L10: 0.3114879333 | M10: 0 | N10: 0 | O10: 45.02171472 | P10: 0.5 | Q10: 22.51085736 | T10: 5.5 | U10: 19.84824367
C11: BAaft | D11: =IF(D3<>"",atage2(D3,'300 Index'!$G$5:$G$105,'300 Index'!$O$5:$O$105),"") -> 8.94814775 | E11: =IF(E3<>"",atage2(E3,'300 Index'!$G$5:$G$105,'300 Index'!$O$5:$O$105),"") ->  | F11: =IF(F3<>"",atage2(F3,'300 Index'!$G$5:$G$105,'300 Index'!$O$5:$O$105),"") ->  | G11: =IF(G3<>"",atage2(G3,'300 Index'!$G$5:$G$105,'300 Index'!$O$5:$O$105),"") ->  | H11: =IF(H3<>"",atage2(H3,'300 Index'!$G$5:$G$105,'300 Index'!$O$5:$O$105),"") ->  | J11: 6 | K11: 53.49497001 | L11: 0.2076586222 | M11: 0 | N11: 0 | O11: 42.38627824 | P11: 0.5 | Q11: 21.19313912 | T11: 6 | U11: 27.31178857
C12: BADif | D12: =IF(D11<>"",D10-D11,"") -> 14.47896291 | E12: =IF(E11<>"",E10-E11,"") ->  | F12: =IF(F11<>"",F10-F11,"") ->  | G12: =IF(G11<>"",G10-G11,"") ->  | H12: =IF(H11<>"",H10-H11,"") ->  | J12: 6.8 | K12: 50.52824478 | L12: 0.3844514419 | M12: 0 | N12: 0 | O12: 31.10258822 | P12: 0.8 | Q12: 24.88207058 | T12: 6.8 | U12: 29.23551572
C13: DBHdiff | D13: =ba2dbh(D12,D6) -> 19.25731973 | E13: =ba2dbh(E12,E6) ->  | F13: =ba2dbh(F12,F6) ->  | G13: =ba2dbh(G12,G6) ->  | H13: =ba2dbh(H12,H6) ->  | J13: 7 | K13: 45.50862264 | L13: 0.2563009612 | M13: 0 | N13: 0 | O13: 33.84471891 | P13: 0.2 | Q13: 6.768943782 | T13: 7 | U13: 32.55231548
C14: MTH | D14: =IF(D3<>"",atage2(D3,'300 Index'!$G$5:$G$105,'300 Index'!$J$5:$J$105),"") -> 11.87300152 | E14: =IF(E3<>"",atage2(E3,'300 Index'!$G$5:$G$105,'300 Index'!$J$5:$J$105),"") ->  | F14: =IF(F3<>"",atage2(F3,'300 Index'!$G$5:$G$105,'300 Index'!$J$5:$J$105),"") ->  | G14: =IF(G3<>"",atage2(G3,'300 Index'!$G$5:$G$105,'300 Index'!$J$5:$J$105),"") ->  | H14: =IF(H3<>"",atage2(H3,'300 Index'!$G$5:$G$105,'300 Index'!$J$5:$J$105),"") ->  | J14: 8 | K14: 34.12366655 | L14: 0.3304814094 | M14: 0 | N14: 0 | O14: 22.84642913 | P14: 1 | Q14: 22.84642913 | T14: 8 | U14: 40.39257135
C15: P/W | D15: =conref2('User interface'!D21) -> W | E15: =conref2('User interface'!E21) ->  | F15: =conref2('User interface'!F21) ->  | G15: =conref2('User interface'!G21) ->  | H15: =conref2('User interface'!H21) ->  | J15: 8.8 | K15: 18.34948715 | L15: 0.8081458981 | M15: 0 | N15: 0 | O15: 3.520424377 | P15: 0.8 | Q15: 2.816339502 | T15: 8.8 | U15: 52.12387716
J16: 9 | K16: 61.12362875 | L16: 0.5387639321 | M16: 0 | N16: 0 | O16: 28.19242218 | P16: 0.2 | Q16: 5.638484436 | T16: 9 | U16: 22.48129733
C17: Unpruned | D17: Prune 1 | E17: Prune 2 | F17: Prune 3 | G17: Prune 4 | H17: Prune 5 | J17: 10 | K17: 49.05072565 | L17: 0.3591759547 | M17: 0 | N17: 0 | O17: 31.43288443 | P17: 1 | Q17: 31.43288443 | T17: 10 | U17: 30.2035598
B18: Age at prune | D18: =conref3('User interface'!D11) -> 5.5 | E18: =conref3('User interface'!E11) -> 6.8 | F18: =conref3('User interface'!F11) -> 8 | G18: =conref3('User interface'!G11) ->  | H18: =conref3('User interface'!H11) ->  | J18: 11 | K18: 36.83513866 | L18: 0.2394506365 | M18: 0 | N18: 0 | O18: 28.01494126 | P18: 1 | Q18: 28.01494126 | T18: 11 | U18: 38.4824722
B19: FC Vol | C19: =readoffpruned(D18:H18,'300 Index'!G5:G205,'300 Index'!S5:AJ205) -> 0 | D19: 0 | E19: 0 | F19: 292.8839309 | G19: 0 | H19: 0 | J19: 12 | K19: 23.7550403 | L19: 0.1596337577 | M19: 0 | N19: 0 | O19: 19.96293395 | P19: 1 | Q19: 19.96293395 | T19: 12 | U19: 47.9752575
B20: FC DBH | C20: 0 | D20: 0 | E20: 0 | F20: 51.62299901 | G20: 0 | H20: 0 | J20: 13 | K20: 13.32724452 | L20: 0.1064225051 | M20: 0 | N20: 0 | O20: 11.90892577 | P20: 1 | Q20: 11.90892577 | T20: 13 | U20: 56.11526741
B21: FC SPH | C21: 0 | D21: 0 | E21: 0 | F21: 783.006649 | G21: 0 | H21: 0 | J21: 14 | K21: 5.375105887 | L21: 0.07094833674 | M21: 0 | N21: 0 | O21: 4.993751064 | P21: 1 | Q21: 4.993751064 | T21: 14 | U21: 62.74232926
B22: Stand SPH | D22: =IF(D18<>"",atage2(D18,'300 Index'!$G$5:$G$105,'300 Index'!$H$5:$H$105),"") -> 806.1084108 | E22: =IF(E18<>"",atage2(E18,'300 Index'!$G$5:$G$105,'300 Index'!$H$5:$H$105),"") -> 805.560119 | F22: =IF(F18<>"",atage2(F18,'300 Index'!$G$5:$G$105,'300 Index'!$H$5:$H$105),"") -> 804.8364295 | G22: =IF(G18<>"",atage2(G18,'300 Index'!$G$5:$G$105,'300 Index'!$H$5:$H$105),"") ->  | H22: =IF(H18<>"",atage2(H18,'300 Index'!$G$5:$G$105,'300 Index'!$H$5:$H$105),"") ->  | J22: 15 | K22: 0 | L22: 0.04729889116 | M22: 0 | N22: 0 | O22: 0 | P22: 1 | Q22: 0 | T22: 15 | U22: 67.96461613
B23: MTH @ prune | C23: =IF(C18<>"",atage(C18,'300 Index'!$G$5:$G$105,'300 Index'!$J$5:$J$105),"") ->  | D23: =IF(D18<>"",atage2(D18,'300 Index'!$G$5:$G$105,'300 Index'!$J$5:$J$105),"") -> 6.587147924 | E23: =IF(E18<>"",atage2(E18,'300 Index'!$G$5:$G$105,'300 Index'!$J$5:$J$105),"") -> 8.639669382 | F23: =IF(F18<>"",atage2(F18,'300 Index'!$G$5:$G$105,'300 Index'!$J$5:$J$105),"") -> 10.57537857 | G23: =IF(G18<>"",atage2(G18,'300 Index'!$G$5:$G$105,'300 Index'!$J$5:$J$105),"") ->  | H23: =IF(H18<>"",atage2(H18,'300 Index'!$G$5:$G$105,'300 Index'!$J$5:$J$105),"") ->  | J23: 16 | K23: 0 | L23: 0.0315325941 | M23: 0 | N23: 0 | O23: 0 | P23: 1 | Q23: 0 | T23: 16 | U23: 70.53603105
B24: MH @ prune | D24: =IF(D18<>"",calcmeanht(D23,D22),"") -> 6.153604199 | E24: =IF(E18<>"",calcmeanht(E23,E22),"") -> 8.071114815 | F24: =IF(F18<>"",calcmeanht(F23,F22),"") -> 9.87956814 | G24: =IF(G18<>"",calcmeanht(G23,G22),"") ->  | H24: =IF(H18<>"",calcmeanht(H23,H22),"") ->  | J24: 17 | K24: 0 | L24: 0.0210217294 | M24: 0 | N24: 0 | O24: 0 | P24: 1 | Q24: 0 | T24: 17 | U24: 71.87656605
B25: PruneH | D25: =conref3('User interface'!D12) -> 2.4 | E25: =conref3('User interface'!E12) -> 4.6 | F25: =conref3('User interface'!F12) -> 6 | G25: =conref3('User interface'!G12) ->  | H25: =conref3('User interface'!H12) ->  | J25: 18 | K25: 0 | L25: 0.01401448627 | M25: 0 | N25: 0 | O25: 0 | P25: 1 | Q25: 0 | T25: 18 | U25: 72.95672633
B26: DBH at prune | D26: =IF(D18<>"",atage2(D18,'300 Index'!$G$5:$G$105,'300 Index'!$T$5:$T$105),"") -> 11.15990863 | E26: =IF(E18<>"",atage2(E18,'300 Index'!$G$5:$G$105,'300 Index'!$T$5:$T$105),"") -> 14.98074221 | F26: =IF(F18<>"",atage2(F18,'300 Index'!$G$5:$G$105,'300 Index'!$T$5:$T$105),"") -> 17.65286327 | G26: =IF(G18<>"",atage2(G18,'300 Index'!$G$5:$G$105,'300 Index'!$T$5:$T$105),"") ->  | H26: =IF(H18<>"",atage2(H18,'300 Index'!$G$5:$G$105,'300 Index'!$T$5:$T$105),"") ->  | J26: 19 | K26: 0 | L26: 0.009342990846 | M26: 0 | N26: 0 | O26: 0 | P26: 1 | Q26: 0 | T26: 19 | U26: 73.83426733
B27: DOSheight | D27: =IF(D18<>"",0.8,"") -> 0.8 | E27: =IF(E18<>"",D25+0.2,"") -> 2.6 | F27: =IF(F18<>"",E25+0.2,"") -> 4.8 | G27: =IF(G18<>"",F25+0.2,"") ->  | H27: =IF(H18<>"",G25+0.2,"") ->  | J27: 20 | K27: 0 | L27: 0.006228660564 | M27: 0 | N27: 0 | O27: 0 | P27: 1 | Q27: 0 | T27: 20 | U27: 74.55152516
B28: DOS | D28: =doscalc(D26,D24,D27) -> 15.64775564 | E28: =doscalc(E26,E24,E27) -> 16.71055368 | F28: =doscalc(F26,F24,F27) -> 15.93475311 | G28: =doscalc(G26,G24,G27) -> 0 | H28: =doscalc(H26,H24,H27) -> 0 | J28: 21 | K28: 0 | L28: 0.004152440376 | M28: 0 | N28: 0 | O28: 0 | P28: 1 | Q28: 0 | T28: 21 | U28: 75.14014428
B29: GCL | D29: =IF(D18<>"",atage2(D18,'300 Index'!$G$5:$G$105,'300 Index'!$K$5:$K$105),"") -> 3.840152185 | E29: =IF(E18<>"",atage2(E18,'300 Index'!$G$5:$G$105,'300 Index'!$K$5:$K$105),"") -> 3.657934405 | F29: =IF(F18<>"",atage2(F18,'300 Index'!$G$5:$G$105,'300 Index'!$K$5:$K$105),"") -> 4.142832375 | G29: =IF(G18<>"",atage2(G18,'300 Index'!$G$5:$G$105,'300 Index'!$K$5:$K$105),"") ->  | H29: =IF(H18<>"",atage2(H18,'300 Index'!$G$5:$G$105,'300 Index'!$K$5:$K$105),"") ->  | J29: 22 | K29: 0 | L29: 0.002768293584 | M29: 0 | N29: 0 | O29: 0 | P29: 1 | Q29: 0 | T29: 22 | U29: 75.61708544
B30: Pruned SPH | D30: =IF(ISNUMBER(D55),MIN($D$55:D55),"") -> 450 | E30: =IF(ISNUMBER(E55),MIN($D$55:E55),"") -> 350 | F30: =IF(ISNUMBER(F55),MIN($D$55:F55),"") -> 320 | G30: =IF(ISNUMBER(G55),MIN($D$55:G55),"") -> 0 | H30: =IF(ISNUMBER(H55),MIN($D$55:H55),"") -> 0 | J30: 23 | K30: 0 | L30: 0.001845529056 | M30: 0 | N30: 0 | O30: 0 | P30: 1 | Q30: 0 | T30: 23 | U30: 76.06147421
J31: 24 | K31: 0 | L31: 0.001230352704 | M31: 0 | N31: 0 | O31: 0 | P31: 1 | Q31: 0 | T31: 24 | U31: 76.4687158
B32: Volume and stocking at thinnings for pruned elements | J32: 25 | K32: 0 | L32: 0.000820235136 | M32: 0 | N32: 0 | O32: 0 | P32: 1 | Q32: 0 | T32: 25 | U32: 76.84230499
B33: Thin stats | C33: Unpruned | D33: Prune 1 | E33: Prune 2 | F33: Prune 3 | G33: Prune 4 | H33: Prune 5 | J33: 26 | K33: 0 | L33: 0.000546823424 | M33: 0 | N33: 0 | O33: 0 | P33: 1 | Q33: 0 | T33: 26 | U33: 77.18546768
D34: =D18 -> 5.5 | E34: =E18 -> 6.8 | F34: =F18 -> 8 | G34: =G18 ->  | H34: =H18 ->  | J34: 27 | K34: 0 | L34: 0.0003645489493 | M34: 0 | N34: 0 | O34: 0 | P34: 1 | Q34: 0 | T34: 27 | U34: 77.5011773
B35: =D3 -> 8.8 | J35: 28 | K35: 0 | L35: 0.0002430326329 | M35: 0 | N35: 0 | O35: 0 | P35: 1 | Q35: 0 | T35: 28 | U35: 77.79217344
A36: SPH | B36: =D6 -> 497.1138833 | C36: =readoffprunedatthinning(D18:H18,'300 Index'!G5:G205,'300 Index'!S5:AJ205,B35,B37,B36) -> 355.5464972 | D36: 99.60436107 | E36: 29.68557117 | F36: 12.27745386 | G36: 0 | H36: 0 | I36: =SUM(C36:H36) -> 497.1138833 | J36: 29 | K36: 0 | L36: 0.0001620217553 | M36: 0 | N36: 0 | O36: 0 | P36: 1 | Q36: 0 | T36: 29 | U36: 78.06098124
A37: Vol | B37: =D9 -> 65.08873889 | C37: 34.72782726 | D37: 9.03245215 | E37: 2.320218086 | F37: 19.00824139 | G37: 0 | H37: 0 | I37: =SUM(C37:H37) -> 65.08873889 | J37: 30 | K37: 0 | L37: 0.0001080145035 | M37: 0 | N37: 0 | O37: 0 | P37: 1 | Q37: 0 | T37: 30 | U37: 78.30993045
B38: =E3 ->  | J38: 0 | K38: 0 | L38: 7.2009669e-05 | M38: 0 | N38: 0 | O38: 0 | P38: -30 | Q38: 0 | T38: 0 | U38: 0
A39: SPH | B39: =E6 ->  | C39: =readoffprunedatthinning(D18:H18,'300 Index'!G5:G205,'300 Index'!S5:AJ205,B38,B40,B39) -> 0 | D39: 0 | E39: 0 | F39: 0 | G39: 0 | H39: 0 | I39: 0 | J39: 0 | K39: 0 | L39: 4.8006446e-05 | M39: 0 | N39: 0 | O39: 0 | P39: 0 | Q39: 0 | T39: 0 | U39: 0
A40: Vol | B40: =E9 ->  | C40: 0 | D40: 0 | E40: 0 | F40: 0 | G40: 0 | H40: 0 | I40: 0 | J40: 0 | K40: 0 | L40: 3.200429733e-05 | M40: 0 | N40: 0 | O40: 0 | P40: 0 | Q40: 0 | T40: 0 | U40: 0
B41: =F3 ->  | J41: 0 | K41: 0 | L41: 2.133619822e-05 | M41: 0 | N41: 0 | O41: 0 | P41: 0 | Q41: 0 | T41: 0 | U41: 0
A42: SPH | B42: =F6 ->  | C42: =readoffprunedatthinning(D18:H18,'300 Index'!G5:G205,'300 Index'!S5:AJ205,B41,B43,B42) -> 0 | D42: 0 | E42: 0 | F42: 0 | G42: 0 | H42: 0 | I42: 0 | J42: 0 | K42: 0 | L42: 1.422413215e-05 | M42: 0 | N42: 0 | O42: 0 | P42: 0 | Q42: 0 | T42: 0 | U42: 0
A43: Vol | B43: =F9 ->  | C43: 0 | D43: 0 | E43: 0 | F43: 0 | G43: 0 | H43: 0 | I43: 0 | J43: 0 | K43: 0 | L43: 9.482754766e-06 | M43: 0 | N43: 0 | O43: 0 | P43: 0 | Q43: 0 | T43: 0 | U43: 0
B44: =G3 ->  | J44: 0 | K44: 0 | L44: 6.321836511e-06 | M44: 0 | N44: 0 | O44: 0 | P44: 0 | Q44: 0 | T44: 0 | U44: 0
A45: SPH | B45: =G6 ->  | C45: =readoffprunedatthinning(D18:H18,'300 Index'!G5:G205,'300 Index'!S5:AJ205,B44,B46,B45) -> 0 | D45: 0 | E45: 0 | F45: 0 | G45: 0 | H45: 0 | I45: 0 | J45: 0 | K45: 0 | L45: 4.214557674e-06 | M45: 0 | N45: 0 | O45: 0 | P45: 0 | Q45: 0 | T45: 0 | U45: 0
A46: Vol | B46: =G9 ->  | C46: 0 | D46: 0 | E46: 0 | F46: 0 | G46: 0 | H46: 0 | I46: 0 | J46: 0 | K46: 0 | L46: 2.809705116e-06 | M46: 0 | N46: 0 | O46: 0 | P46: 0 | Q46: 0 | T46: 0 | U46: 0
B47: =H3 ->  | J47: 0 | K47: 0 | L47: 1.873136744e-06 | M47: 0 | N47: 0 | O47: 0 | P47: 0 | Q47: 0 | T47: 0 | U47: 0
A48: SPH | B48: =H6 ->  | C48: =readoffprunedatthinning(D18:H18,'300 Index'!G5:G205,'300 Index'!S5:AJ205,B47,B49,B48) -> 0 | D48: 0 | E48: 0 | F48: 0 | G48: 0 | H48: 0 | I48: 0 | J48: 0 | K48: 0 | L48: 1.248757829e-06 | M48: 0 | N48: 0 | O48: 0 | P48: 0 | Q48: 0 | T48: 0 | U48: 0
A49: Vol | B49: =H9 ->  | C49: 0 | D49: 0 | E49: 0 | F49: 0 | G49: 0 | H49: 0 | I49: 0 | J49: 0 | K49: 0 | L49: 8.325052195e-07 | M49: 0 | N49: 0 | O49: 0 | P49: 0 | Q49: 0 | T49: 0 | U49: 0
J50: 0 | K50: 0 | L50: 5.550034797e-07 | M50: 0 | N50: 0 | O50: 0 | P50: 0 | Q50: 0 | T50: 0 | U50: 0
J51: 0 | K51: 0 | L51: 3.700023198e-07 | M51: 0 | N51: 0 | O51: 0 | P51: 0 | Q51: 0 | T51: 0 | U51: 0
J52: 0 | K52: 0 | L52: 2.466682132e-07 | M52: 0 | N52: 0 | O52: 0 | P52: 0 | Q52: 0 | T52: 0 | U52: 0
B53: Pruned stocking intermediate calculations | J53: 0 | K53: 0 | L53: 1.644454755e-07 | M53: 0 | N53: 0 | O53: 0 | P53: 0 | Q53: 0 | T53: 0 | U53: 0
B54: Pruned SPH step 1 | D54: =VLOOKUP('User interface'!D11,'300 Index'!$G$5:$H$48,2) -> 806.1084108 | E54: =VLOOKUP('User interface'!E11,'300 Index'!$G$5:$H$48,2) -> 805.560119 | F54: =VLOOKUP('User interface'!F11,'300 Index'!$G$5:$H$48,2) -> 804.8364295 | G54: =VLOOKUP('User interface'!G11,'300 Index'!$G$5:$H$48,2) -> 807.5 | H54: =VLOOKUP('User interface'!H11,'300 Index'!$G$5:$H$48,2) -> 807.5 | J54: 0 | K54: 0 | L54: 1.09630317e-07 | M54: 0 | N54: 0 | O54: 0 | P54: 0 | Q54: 0 | T54: 0 | U54: 0
B55: Pruned SPH step 2 | D55: =IF(ISNUMBER('User interface'!D13),MIN('User interface'!D13,D54),0) -> 450 | E55: =IF(ISNUMBER('User interface'!E13),MIN('User interface'!E13,E54),0) -> 350 | F55: =IF(ISNUMBER('User interface'!F13),MIN('User interface'!F13,F54),0) -> 320 | G55: =IF(ISNUMBER('User interface'!G13),MIN('User interface'!G13,G54),0) -> 0 | H55: =IF(ISNUMBER('User interface'!H13),MIN('User interface'!H13,H54),0) -> 0 | J55: 0 | K55: 0 | L55: 7.308687798e-08 | M55: 0 | N55: 0 | O55: 0 | P55: 0 | Q55: 0 | T55: 0 | U55: 0
J56: 0 | K56: 0 | L56: 4.872458532e-08 | M56: 0 | N56: 0 | O56: 0 | P56: 0 | Q56: 0 | T56: 0 | U56: 0
J57: 0 | K57: 0 | L57: 3.248305688e-08 | M57: 0 | N57: 0 | O57: 0 | P57: 0 | Q57: 0 | T57: 0 | U57: 0
J58: 0 | K58: 0 | L58: 2.165537125e-08 | M58: 0 | N58: 0 | O58: 0 | P58: 0 | Q58: 0 | T58: 0 | U58: 0
J59: 0 | K59: 0 | L59: 1.443691417e-08 | M59: 0 | N59: 0 | O59: 0 | P59: 0 | Q59: 0 | T59: 0 | U59: 0
J60: 0 | K60: 0 | L60: 9.624609446e-09 | M60: 0 | N60: 0 | O60: 0 | P60: 0 | Q60: 0 | T60: 0 | U60: 0
J61: 0 | K61: 0 | L61: 6.416406297e-09 | M61: 0 | N61: 0 | O61: 0 | P61: 0 | Q61: 0 | T61: 0 | U61: 0
J62: 0 | K62: 0 | L62: 4.277604198e-09 | M62: 0 | N62: 0 | O62: 0 | P62: 0 | Q62: 0 | T62: 0 | U62: 0
J63: 0 | K63: 0 | L63: 2.851736132e-09 | M63: 0 | N63: 0 | O63: 0 | P63: 0 | Q63: 0 | T63: 0 | U63: 0
J64: 0 | K64: 0 | L64: 1.901157421e-09 | M64: 0 | N64: 0 | O64: 0 | P64: 0 | Q64: 0 | T64: 0 | U64: 0
J65: 0 | K65: 0 | L65: 1.267438281e-09 | M65: 0 | N65: 0 | O65: 0 | P65: 0 | Q65: 0 | T65: 0 | U65: 0
J66: 0 | K66: 0 | L66: 8.44958854e-10 | M66: 0 | N66: 0 | O66: 0 | P66: 0 | Q66: 0 | T66: 0 | U66: 0
J67: 0 | K67: 0 | L67: 5.633059026e-10 | M67: 0 | N67: 0 | O67: 0 | P67: 0 | Q67: 0 | T67: 0 | U67: 0
J68: 0 | K68: 0 | L68: 3.755372684e-10 | M68: 0 | N68: 0 | O68: 0 | P68: 0 | Q68: 0 | T68: 0 | U68: 0
J69: 0 | K69: 0 | L69: 2.50358179e-10 | M69: 0 | N69: 0 | O69: =K69*(1-L69) -> 0 | P69: 0 | Q69: =P69*O69 -> 0 | T69: 0 | U69: 0
J70: 0 | K70: 0 | L70: 1.669054526e-10 | M70: 0 | N70: 0 | O70: 0 | P70: =J70-J69 -> 0 | Q70: 0 | T70: 0 | U70: 0
J71: 0 | K71: 0 | L71: 1.112703018e-10 | M71: 0 | N71: 0 | O71: 0 | P71: 0 | Q71: 0 | T71: 0 | U71: 0
J72: 0 | K72: 0 | L72: 7.418020117e-11 | M72: 0 | N72: 0 | O72: 0 | P72: 0 | Q72: 0 | T72: 0 | U72: 0
J73: 0 | K73: 0 | L73: 4.945346745e-11 | M73: 0 | N73: 0 | O73: 0 | P73: 0 | Q73: 0 | T73: 0 | U73: 0
J74: 0 | K74: 0 | L74: 3.29689783e-11 | M74: 0 | N74: 0 | O74: 0 | P74: 0 | Q74: 0 | T74: 0 | U74: 0
J75: 0 | K75: 0 | L75: 2.197931887e-11 | M75: 0 | N75: 0 | O75: 0 | P75: 0 | Q75: 0 | T75: 0 | U75: 0
J76: 0 | K76: 0 | L76: 1.465287924e-11 | M76: 0 | N76: 0 | O76: 0 | P76: 0 | Q76: 0 | T76: 0 | U76: 0
J77: 0 | K77: 0 | L77: 9.768586162e-12 | M77: 0 | N77: 0 | O77: 0 | P77: 0 | Q77: 0 | T77: 0 | U77: 0
J78: 0 | K78: 0 | L78: 6.512390775e-12 | M78: 0 | N78: 0 | O78: 0 | P78: 0 | Q78: 0 | T78: 0 | U78: 0

Sheet Clearfell (hidden)
A1: Log grades
A2: Grade | B2: Pruned | C2: S1 | D2: S2 | E2: S3 | F2: L1 | G2: L2 | H2: L3 | I2: Pulp
A3: Pruned | B3: 1 | C3: 0 | D3: 0 | E3: 0 | F3: 0 | G3: 0 | H3: 0 | I3: 0
A4: Length min | B4: 4.2 | C4: 4 | D4: 4 | E4: 4 | F4: 4 | G4: 4 | H4: 4 | I4: 4
A5: Length max | B5: 5.5 | C5: 5.5 | D5: 5.5 | E5: 5.5 | F5: 5.5 | G5: 5.5 | H5: 5.5 | I5: 5.5
A6: SED minimum | B6: 300 | C6: 400 | D6: 300 | E6: 200 | F6: 400 | G6: 300 | H6: 200 | I6: 100
A7: Branch maximum | B7: 0 | C7: 6 | D7: 6 | E7: 6 | F7: 12 | G7: 12 | H7: 12 | I7: 15
A8: Nominal Conversion | B8: 1 | C8: 1 | D8: 1 | E8: 1 | F8: 1 | G8: 1 | H8: 1 | I8: 1
A9: Pulp downgrade | B9: 0 | C9: 0.05 | D9: 0.05 | E9: 0.1 | F9: 0.05 | G9: 0.1 | H9: 0.15
A10: Prices | B10: 146.2731682 | C10: 88 | D10: 80 | E10: 64 | F10: 65 | G10: 56 | H10: 52 | I10: 40 | P10: DOS estimate | Q10: =K13 -> 16.71055368
A11: BIX calculations | P11: DOS override value | Q11: =MAX(Overriding!C7:G7) -> 0
A12: BIX calculations | B12: DBH 20 | C12: ThinHT | D12: SI | E12: FCS-SPH | H12: BIX1 | I12: BIX2 | J12: BIXn | K12: DOS | L12: Sweep | P12: DOS to be used | Q12: =IF(Q11>0,Q11,Q10) -> 16.71055368
B13: =atage2(20,'300 Index'!G5:G205,'300 Index'!P5:P205) -> 41.29516878 | C13: =MIN('User interface'!L18:P18) -> 11.87300152 | D13: ='User interface'!D4 -> 28.3 | E13: =E16 -> 292.8839309 | H13: =bix1calc(I13,E13) -> 3.732497196 | I13: =bix2calc(B13,C13,D13) -> 4.927880716 | J13: =bixncalc(I13,E13,C13) -> 5.234990222 | K13: =MAX('User interface'!L11:P11) -> 16.71055368 | L13: ='User interface'!D42 -> 8
L14: =L13 -> 8 | M14: Change unit to mm/m
B15: Age | C15: DBH | D15: MH | E15: SPH | F15: BA | G15: VOL | H15: MTH
A16: Stand | B16: ='User interface'!J5 -> 30 | C16: ='User interface'!K5 -> 51.62299901 | D16: =calcmeanht(H16,E16) -> 37.1138852 | E16: ='User interface'!M5 -> 292.8839309 | F16: ='User interface'!N5 -> 61.31314636 | G16: ='User interface'!O5 -> 783.006649 | H16: ='User interface'!L5 -> 38.56293938 | L16: Juvenile
A18: Peterson | B18: a | C18: b | F18: minDBH | G18: maxDBH | H18: VarDBH
A19: Parms | B19: =PetersonParms(C16,D16,F16,B16) -> 0.2496376327 | C19: -0.5358649526 | F19: =wmindbh(B$16,C16,H$16,E16,F16) -> 31.74076099 | G19: =wmaxdbh(B$16,C16,H$16,E16,F16) -> 71.48007668 | H19: =Wvar(F19,G19) -> 0.005302077691
A21: Weibull | B21: alpha | C21: beta | D21: gamma | M21: Conversion factor (%) | N21: ='User interface'!D38/100 -> 0.85
A22: Parms | B22: =Wparms(F19,G19,C16,E16) -> 39.70121954 | C22: 1.979359508 | D22: =F19^2*PI()/40000-0.01 -> 0.06912697279
A24: Elements | B24: TSV | C24: Pruned Height | D24: =B2 -> Pruned | E24: S1 | F24: S2 | G24: S3 | H24: L1 | I24: L2 | J24: L3 | K24: Pulp | L24: 0 | M24: 0 | N24: Average
A25: Unpruned | B25: =G16-SUM(B26:B30) -> 0 | C25: 0 | D25: =DistLogs($B$3:$K$7,$B16:$H16,$B$22:$D$22,$B$19:$C$19,$B$13:$E$13,$F$19:$G$19,B25:B30,C25:C30) -> 0 | E25: 0 | F25: 0 | G25: 0 | H25: 0 | I25: 0 | J25: 0 | K25: 0 | L25: 0 | M25: 0 | N25: 0 | O25: 0
A26: 1 | B26: =conref4('User interface'!L15) -> 0 | C26: ='User interface'!D12 -> 2.4 | D26: 0 | E26: 0 | F26: 0 | G26: 0 | H26: 0 | I26: 0 | J26: 0 | K26: 0 | L26: 0 | M26: 0 | N26: 27.03426303 | O26: 0 | P26: average sed unpruned
A27: 2 | B27: =conref4('User interface'!M15) -> 0 | C27: ='User interface'!E12 -> 4.6 | D27: 0 | E27: 0 | F27: 0 | G27: 0 | H27: 0 | I27: 0 | J27: 0 | K27: 0 | L27: 0 | M27: 0 | N27: 5.168816802 | O27: 0 | P27: average BIX unpruned
A28: 3 | B28: =conref4('User interface'!N15) -> 783.006649 | C28: ='User interface'!F12 -> 6 | D28: 233.9222888 | E28: 11.40983033 | F28: 64.60666119 | G28: 71.30887526 | H28: 66.20956425 | I28: 150.5337305 | J28: 103.7726001 | K28: 56.65228796 | L28: 0 | M28: 0 | N28: 5.5 | O28: 25.15372623 | P28: average lth (m) (pruned logs)
A29: 4 | B29: =conref4('User interface'!O15) -> 0 | C29: ='User interface'!G12 -> 0 | D29: 0 | E29: 0 | F29: 0 | G29: 0 | H29: 0 | I29: 0 | J29: 0 | K29: 0 | L29: 0 | M29: 0 | N29: 41.64334649 | O29: 0 | P29: average pruned sed (cm)
A30: 5 | B30: =conref4('User interface'!P15) -> 0 | C30: ='User interface'!H12 -> 0 | D30: 0 | E30: 0 | F30: 0 | G30: 0 | H30: 0 | I30: 0 | J30: 0 | K30: 0 | L30: 0 | M30: 0 | N30: 9.380009155 | O30: 0 | P30: average pruned taper (mm/m)
O31: =plicalc(N28,N29*10,L14,N30,Q12*10,SUM(B26:B30)) -> 6.627316819 | P31: pli
C33: Adjusted | D33: =ConverAdj(D25:M30,B8:K8,B9:K9,N21,B2:K2,G16) -> 205.2809204 | E33: 9.512173717 | F33: 53.86143062 | G33: 56.32005595 | H33: 55.19774255 | I33: 118.8921868 | J33: 77.40670944 | K33: 89.08443211 | L33: 0 | M33: 0 | O33: =SUM(D25:M30)/G16 -> 0.9685943783
B34: Transposed
B35: =IF(D33>0,D33,"") -> 205.2809204 | N35: =(N29*IF(ISNUMBER(B35),B35,0)+N26*SUM(B36:B40))/SUM(B35:B40) -> 33.04343828 | P35: Average SED
B36: =IF(E33>0,E33,"") -> 9.512173717
B37: =IF(F33>0,F33,"") -> 53.86143062 | N37: =IF(ISNUMBER(H27),SUM(D25:M30),0) -> 758.4158384 | O37: Merchantable volume before TSV correction
B38: =IF(G33>0,G33,"") -> 56.32005595 | N38: =IF(ISNUMBER(H28),SUM(D25:M30)+SUM(O25:O30),0) -> 783.5695647 | O38: Merchantable volume before TSV correction + Scrap
B39: =IF(H33>0,H33,"") -> 55.19774255 | N39: =N37/N38 -> 0.967898541 | O39: Theoretical yield
B40: =IF(I33>0,I33,"") -> 118.8921868
B41: =IF(J33>0,J33,"") -> 77.40670944
B42: =IF(K33>0,K33,"") -> 89.08443211
B43: =IF(L33>0,L33,"") -> 
B44: =IF(M33>0,M33,"") -> 

Sheet Prod thin 1 (hidden)
B2: =Clearfell!B2 -> Pruned | C2: =Clearfell!C2 -> S1 | D2: =Clearfell!D2 -> S2 | E2: =Clearfell!E2 -> S3 | F2: =Clearfell!F2 -> L1 | G2: =Clearfell!G2 -> L2 | H2: =Clearfell!H2 -> L3 | I2: =Clearfell!I2 -> Pulp | J2: =Clearfell!J2 -> 0 | K2: =Clearfell!K2 -> 0
B3: =Clearfell!B3 -> 1 | C3: =Clearfell!C3 -> 0 | D3: =Clearfell!D3 -> 0 | E3: =Clearfell!E3 -> 0 | F3: =Clearfell!F3 -> 0 | G3: =Clearfell!G3 -> 0 | H3: =Clearfell!H3 -> 0 | I3: =Clearfell!I3 -> 0 | J3: =Clearfell!J3 -> 0 | K3: =Clearfell!K3 -> 0
B4: =Clearfell!B4 -> 4.2 | C4: =Clearfell!C4 -> 4 | D4: =Clearfell!D4 -> 4 | E4: =Clearfell!E4 -> 4 | F4: =Clearfell!F4 -> 4 | G4: =Clearfell!G4 -> 4 | H4: =Clearfell!H4 -> 4 | I4: =Clearfell!I4 -> 4 | J4: =Clearfell!J4 -> 0 | K4: =Clearfell!K4 -> 0
B5: =Clearfell!B5 -> 5.5 | C5: =Clearfell!C5 -> 5.5 | D5: =Clearfell!D5 -> 5.5 | E5: =Clearfell!E5 -> 5.5 | F5: =Clearfell!F5 -> 5.5 | G5: =Clearfell!G5 -> 5.5 | H5: =Clearfell!H5 -> 5.5 | I5: =Clearfell!I5 -> 5.5 | J5: =Clearfell!J5 -> 0 | K5: =Clearfell!K5 -> 0
B6: =Clearfell!B6 -> 300 | C6: =Clearfell!C6 -> 400 | D6: =Clearfell!D6 -> 300 | E6: =Clearfell!E6 -> 200 | F6: =Clearfell!F6 -> 400 | G6: =Clearfell!G6 -> 300 | H6: =Clearfell!H6 -> 200 | I6: =Clearfell!I6 -> 100 | J6: =Clearfell!J6 -> 0 | K6: =Clearfell!K6 -> 0
B7: =Clearfell!B7 -> 0 | C7: =Clearfell!C7 -> 6 | D7: =Clearfell!D7 -> 6 | E7: =Clearfell!E7 -> 6 | F7: =Clearfell!F7 -> 12 | G7: =Clearfell!G7 -> 12 | H7: =Clearfell!H7 -> 12 | I7: =Clearfell!I7 -> 15 | J7: =Clearfell!J7 -> 0 | K7: =Clearfell!K7 -> 0
B8: =Clearfell!B8 -> 1 | C8: =Clearfell!C8 -> 1 | D8: =Clearfell!D8 -> 1 | E8: =Clearfell!E8 -> 1 | F8: =Clearfell!F8 -> 1 | G8: =Clearfell!G8 -> 1 | H8: =Clearfell!H8 -> 1 | I8: =Clearfell!I8 -> 1 | J8: =Clearfell!J8 -> 0 | K8: =Clearfell!K8 -> 0
B9: =Clearfell!B9 -> 0 | C9: =Clearfell!C9 -> 0.05 | D9: =Clearfell!D9 -> 0.05 | E9: =Clearfell!E9 -> 0.1 | F9: =Clearfell!F9 -> 0.05 | G9: =Clearfell!G9 -> 0.1 | H9: =Clearfell!H9 -> 0.15 | I9: =Clearfell!I9 -> 0 | J9: =Clearfell!J9 -> 0 | K9: =Clearfell!K9 -> 0
A11: BIX calculations
A12: BIX calculations | B12: DBH30 | C12: ThinHT | D12: SI | E12: FCS-SPH | H12: BIX1 | I12: BIX2 | J12: BIXn | K12: DOS | L12: Sweep
B13: =atage2(20,'300 Index'!G5:G205,'300 Index'!P5:P205) -> 41.29516878 | C13: =MIN('User interface'!L18:P18) -> 11.87300152 | D13: ='User interface'!D4 -> 28.3 | E13: =E16 -> 497.1138833 | H13: =bix1calc(I13,E13) -> 4.174712042 | I13: =bix2calc(B13,C13,D13) -> 4.927880716 | J13: =bixncalc(I13,E13,C13) -> 5.275213022 | K13: =MAX('User interface'!L11:P11) -> 16.71055368 | L13: =conref3('User interface'!D42) -> 8
L14: =L13 -> 8 | M14: Change unit to mm/m
B15: Age | C15: DBH | D15: MH | E15: SPH | F15: BA | G15: VOL | H15: MTH
A16: Stand | B16: =conref4(Summary!D3) -> 8.8 | C16: =IF(E16>0,ba2dbh(F16,E16),0) -> 19.25731973 | D16: =calcmeanht(H16,E16) -> 11.21231345 | E16: =conref4('User interface'!L20) -> 497.1138833 | F16: =conref4(Summary!D12) -> 14.47896291 | G16: =IF('User interface'!D21="P",'User interface'!L22,0) -> 0 | H16: =conref4(Summary!D14) -> 11.87300152
A18: Peterson | B18: a | C18: b | F18: minDBH | G18: maxDBH | H18: VarDBH
A19: Parms | B19: =PetersonParms(C16,D16,F16,B16) -> 0.3802481435 | C19: 0.4022404897 | F19: =wmindbh(B$16,C16,H$16,E16,F16) -> 13.64666214 | G19: =wmaxdbh(B$16,C16,H$16,E16,F16) -> 24.7262734 | H19: =Wvar(F19,G19) -> 0.0001353486859
A21: Weibull | B21: alpha | C21: beta | D21: gamma | M21: Conversion factor (%) | N21: =('User interface'!D38-'User interface'!D39)/100 -> 0.75
A22: Parms | B22: =Wparms(F19,G19,C16,E16) -> 190.4872169 | C22: 1.264154077 | D22: =F19^2*PI()/40000-0.01 -> 0.004626578973
A24: Elements | B24: TSV | C24: Pruned Height | D24: =B2 -> Pruned | E24: S1 | F24: S2 | G24: S3 | H24: L1 | I24: L2 | J24: L3 | K24: Pulp | L24: 0 | M24: 0 | N24: Average
A25: Unpruned | B25: =G16-SUM(B26:B30) -> -30.36091163 | C25: 0 | D25: =DistLogs(Clearfell!B3:K7,$B16:$H16,$B$22:$D$22,$B$19:$C$19,$B$13:$E$13,$F$19:$G$19,B25:B30,C25:C30) -> 0 | E25: 0 | F25: 0 | G25: 0 | H25: 0 | I25: 0 | J25: 0 | K25: 0 | L25: 0 | M25: 0 | N25: 0 | O25: 0
A26: 1 | B26: =conref4(Summary!D37) -> 9.03245215 | C26: ='User interface'!D12 -> 2.4 | D26: 0 | E26: 0 | F26: 0 | G26: 0 | H26: 0 | I26: 0 | J26: 0 | K26: 0 | L26: 0 | M26: 0 | N26: 0 | O26: 0 | P26: average sed unpruned
A27: 2 | B27: =conref4(Summary!E37) -> 2.320218086 | C27: ='User interface'!E12 -> 4.6 | D27: 0 | E27: 0 | F27: 0 | G27: 0 | H27: 0 | I27: 0 | J27: 0 | K27: 0 | L27: 0 | M27: 0 | N27: 0 | O27: 0 | P27: average BIX unpruned
A28: 3 | B28: =conref4(Summary!F37) -> 19.00824139 | C28: ='User interface'!F12 -> 6 | D28: 0 | E28: 0 | F28: 0 | G28: 0 | H28: 0 | I28: 0 | J28: 0 | K28: 0 | L28: 0 | M28: 0 | N28: 0 | O28: 0 | P28: average lth (m) (pruned logs)
A29: 4 | B29: =conref4(Summary!G37) -> 0 | C29: ='User interface'!G12 -> 0 | D29: 0 | E29: 0 | F29: 0 | G29: 0 | H29: 0 | I29: 0 | J29: 0 | K29: 0 | L29: 0 | M29: 0 | N29: 0 | O29: 0 | P29: average pruned sed (cm)
A30: 5 | B30: =conref4(Summary!H37) -> 0 | C30: ='User interface'!H12 -> 0 | D30: 0 | E30: 0 | F30: 0 | G30: 0 | H30: 0 | I30: 0 | J30: 0 | K30: 0 | L30: 0 | M30: 0 | N30: 0 | O30: 0 | P30: average pruned taper (mm/m)
O31: =plicalc(N28,N29*10,L14,N30,K13*10,SUM(B26:B30)) -> 0 | P31: pli
C33: Adjusted | D33: =ConverAdj(D25:M30,B8:K8,B9:K9,N21,B2:K2,G16) -> 0 | E33: 0 | F33: 0 | G33: 0 | H33: 0 | I33: 0 | J33: 0 | K33: 0 | L33: 0 | M33: 0
B34: Transposed
B35: =IF(D33>0,D33,"") -> 
B36: =IF(E33>0,E33,"") -> 
B37: =IF(F33>0,F33,"") -> 
B38: =IF(G33>0,G33,"") -> 
B39: =IF(H33>0,H33,"") -> 
B40: =IF(I33>0,I33,"") -> 
B41: =IF(J33>0,J33,"") -> 
B42: =IF(K33>0,K33,"") -> 
B43: =IF(L33>0,L33,"") -> 
B44: =IF(M33>0,M33,"") -> 

Sheet Prod thin 2 (hidden)
B2: =Clearfell!B2 -> Pruned | C2: =Clearfell!C2 -> S1 | D2: =Clearfell!D2 -> S2 | E2: =Clearfell!E2 -> S3 | F2: =Clearfell!F2 -> L1 | G2: =Clearfell!G2 -> L2 | H2: =Clearfell!H2 -> L3 | I2: =Clearfell!I2 -> Pulp | J2: =Clearfell!J2 -> 0 | K2: =Clearfell!K2 -> 0 | L2: =Clearfell!L2 -> 0
B3: =Clearfell!B3 -> 1 | C3: =Clearfell!C3 -> 0 | D3: =Clearfell!D3 -> 0 | E3: =Clearfell!E3 -> 0 | F3: =Clearfell!F3 -> 0 | G3: =Clearfell!G3 -> 0 | H3: =Clearfell!H3 -> 0 | I3: =Clearfell!I3 -> 0 | J3: =Clearfell!J3 -> 0 | K3: =Clearfell!K3 -> 0 | L3: =Clearfell!L3 -> 0
B4: =Clearfell!B4 -> 4.2 | C4: =Clearfell!C4 -> 4 | D4: =Clearfell!D4 -> 4 | E4: =Clearfell!E4 -> 4 | F4: =Clearfell!F4 -> 4 | G4: =Clearfell!G4 -> 4 | H4: =Clearfell!H4 -> 4 | I4: =Clearfell!I4 -> 4 | J4: =Clearfell!J4 -> 0 | K4: =Clearfell!K4 -> 0 | L4: =Clearfell!L4 -> 0
B5: =Clearfell!B5 -> 5.5 | C5: =Clearfell!C5 -> 5.5 | D5: =Clearfell!D5 -> 5.5 | E5: =Clearfell!E5 -> 5.5 | F5: =Clearfell!F5 -> 5.5 | G5: =Clearfell!G5 -> 5.5 | H5: =Clearfell!H5 -> 5.5 | I5: =Clearfell!I5 -> 5.5 | J5: =Clearfell!J5 -> 0 | K5: =Clearfell!K5 -> 0 | L5: =Clearfell!L5 -> 0
B6: =Clearfell!B6 -> 300 | C6: =Clearfell!C6 -> 400 | D6: =Clearfell!D6 -> 300 | E6: =Clearfell!E6 -> 200 | F6: =Clearfell!F6 -> 400 | G6: =Clearfell!G6 -> 300 | H6: =Clearfell!H6 -> 200 | I6: =Clearfell!I6 -> 100 | J6: =Clearfell!J6 -> 0 | K6: =Clearfell!K6 -> 0 | L6: =Clearfell!L6 -> 0
B7: =Clearfell!B7 -> 0 | C7: =Clearfell!C7 -> 6 | D7: =Clearfell!D7 -> 6 | E7: =Clearfell!E7 -> 6 | F7: =Clearfell!F7 -> 12 | G7: =Clearfell!G7 -> 12 | H7: =Clearfell!H7 -> 12 | I7: =Clearfell!I7 -> 15 | J7: =Clearfell!J7 -> 0 | K7: =Clearfell!K7 -> 0 | L7: =Clearfell!L7 -> 0
B8: =Clearfell!B8 -> 1 | C8: =Clearfell!C8 -> 1 | D8: =Clearfell!D8 -> 1 | E8: =Clearfell!E8 -> 1 | F8: =Clearfell!F8 -> 1 | G8: =Clearfell!G8 -> 1 | H8: =Clearfell!H8 -> 1 | I8: =Clearfell!I8 -> 1 | J8: =Clearfell!J8 -> 0 | K8: =Clearfell!K8 -> 0 | L8: =Clearfell!L8 -> 0
B9: =Clearfell!B9 -> 0 | C9: =Clearfell!C9 -> 0.05 | D9: =Clearfell!D9 -> 0.05 | E9: =Clearfell!E9 -> 0.1 | F9: =Clearfell!F9 -> 0.05 | G9: =Clearfell!G9 -> 0.1 | H9: =Clearfell!H9 -> 0.15 | I9: =Clearfell!I9 -> 0 | J9: =Clearfell!J9 -> 0 | K9: =Clearfell!K9 -> 0 | L9: =Clearfell!L9 -> 0
A11: BIX calculations
A12: BIX calculations | B12: DBH30 | C12: ThinHT | D12: SI | E12: FCS-SPH | H12: BIX1 | I12: BIX2 | J12: BIXn | K12: DOS | L12: Sweep
B13: =atage2(20,'300 Index'!G5:G205,'300 Index'!P5:P205) -> 41.29516878 | C13: =MIN('User interface'!L18:P18) -> 11.87300152 | D13: ='User interface'!D4 -> 28.3 | E13: =E16 -> 0 | H13: =bix1calc(I13,E13) -> 3.006007237 | I13: =bix2calc(B13,C13,D13) -> 4.927880716 | J13: =bixncalc(I13,E13,C13) -> 5.177307148 | K13: =MAX('User interface'!L11:P11) -> 16.71055368 | L13: =conref3('User interface'!D42) -> 8
L14: =L13 -> 8 | M14: Change unit to mm/m
B15: Age | C15: DBH | D15: MH | E15: SPH | F15: BA | G15: VOL | H15: MTH
A16: Stand | B16: =conref4(Summary!E3) -> 0 | C16: =IF(E16>0,ba2dbh(F16,E16),0) -> 0 | D16: =calcmeanht(H16,E16) -> 0 | E16: =conref4('User interface'!M20) -> 0 | F16: =conref4(Summary!E12) -> 0 | G16: =IF('User interface'!E21="P",'User interface'!M22,0) -> 0 | H16: =conref4(Summary!E14) -> 0
A18: Peterson | B18: a | C18: b | F18: minDBH | G18: maxDBH | H18: VarDBH
A19: Parms | B19: =PetersonParms(C16,D16,F16,B16) -> 0 | C19: 0 | F19: =wmindbh(B$16,C16,H$16,E16,F16) -> -10 | G19: =wmaxdbh(B$16,C16,H$16,E16,F16) -> 10 | H19: =Wvar(F19,G19) -> 7.924e-05
A21: Weibull | B21: alpha | C21: beta | D21: gamma | M21: Conversion factor (%) | N21: =('User interface'!D38-'User interface'!D39)/100 -> 0.75
A22: Parms | B22: =Wparms(F19,G19,C16,E16) -> 0 | C22: 0 | D22: =F19^2*PI()/40000-0.01 -> -0.002146018366
A24: Elements | B24: TSV | C24: Pruned Height | D24: =B2 -> Pruned | E24: S1 | F24: S2 | G24: S3 | H24: L1 | I24: L2 | J24: L3 | K24: Pulp | L24: 0 | M24: 0 | N24: Average
A25: Unpruned | B25: =G16-SUM(B26:B30) -> 0 | C25: 0 | D25: =DistLogs(Clearfell!B3:K7,$B16:$H16,$B$22:$D$22,$B$19:$C$19,$B$13:$E$13,$F$19:$G$19,B25:B30,C25:C30) -> 0 | E25: 0 | F25: 0 | G25: 0 | H25: 0 | I25: 0 | J25: 0 | K25: 0 | L25: 0 | M25: 0 | N25: 0 | O25: 0
A26: 1 | B26: =conref4(Summary!D40) -> 0 | C26: ='User interface'!D12 -> 2.4 | D26: 0 | E26: 0 | F26: 0 | G26: 0 | H26: 0 | I26: 0 | J26: 0 | K26: 0 | L26: 0 | M26: 0 | N26: 0 | O26: 0 | P26: average sed unpruned
A27: 2 | B27: =conref4(Summary!E40) -> 0 | C27: ='User interface'!E12 -> 4.6 | D27: 0 | E27: 0 | F27: 0 | G27: 0 | H27: 0 | I27: 0 | J27: 0 | K27: 0 | L27: 0 | M27: 0 | N27: 0 | O27: 0 | P27: average BIX unpruned
A28: 3 | B28: =conref4(Summary!F40) -> 0 | C28: ='User interface'!F12 -> 6 | D28: 0 | E28: 0 | F28: 0 | G28: 0 | H28: 0 | I28: 0 | J28: 0 | K28: 0 | L28: 0 | M28: 0 | N28: 0 | O28: 0 | P28: average lth (m) (pruned logs)
A29: 4 | B29: =conref4(Summary!G40) -> 0 | C29: ='User interface'!G12 -> 0 | D29: 0 | E29: 0 | F29: 0 | G29: 0 | H29: 0 | I29: 0 | J29: 0 | K29: 0 | L29: 0 | M29: 0 | N29: 0 | O29: 0 | P29: average pruned sed (cm)
A30: 5 | B30: =conref4(Summary!H40) -> 0 | C30: ='User interface'!H12 -> 0 | D30: 0 | E30: 0 | F30: 0 | G30: 0 | H30: 0 | I30: 0 | J30: 0 | K30: 0 | L30: 0 | M30: 0 | N30: 0 | O30: 0 | P30: average pruned taper (mm/m)
O31: =plicalc(N28,N29*10,L14,N30,K13*10,SUM(B26:B30)) -> 0 | P31: pli
C33: Adjusted | D33: =ConverAdj(D25:M30,B8:K8,B9:K9,N21,B2:K2,G16) -> 0 | E33: 0 | F33: 0 | G33: 0 | H33: 0 | I33: 0 | J33: 0 | K33: 0 | L33: 0 | M33: 0
B34: Transposed
B35: =IF(D33>0,D33,"") -> 
B36: =IF(E33>0,E33,"") -> 
B37: =IF(F33>0,F33,"") -> 
B38: =IF(G33>0,G33,"") -> 
B39: =IF(H33>0,H33,"") -> 
B40: =IF(I33>0,I33,"") -> 
B41: =IF(J33>0,J33,"") -> 
B42: =IF(K33>0,K33,"") -> 
B43: =IF(L33>0,L33,"") -> 
B44: =IF(M33>0,M33,"") -> 

Sheet Prod thin 3 (hidden)
B2: =Clearfell!B2 -> Pruned | C2: =Clearfell!C2 -> S1 | D2: =Clearfell!D2 -> S2 | E2: =Clearfell!E2 -> S3 | F2: =Clearfell!F2 -> L1 | G2: =Clearfell!G2 -> L2 | H2: =Clearfell!H2 -> L3 | I2: =Clearfell!I2 -> Pulp | J2: =Clearfell!J2 -> 0 | K2: =Clearfell!K2 -> 0
B3: =Clearfell!B3 -> 1 | C3: =Clearfell!C3 -> 0 | D3: =Clearfell!D3 -> 0 | E3: =Clearfell!E3 -> 0 | F3: =Clearfell!F3 -> 0 | G3: =Clearfell!G3 -> 0 | H3: =Clearfell!H3 -> 0 | I3: =Clearfell!I3 -> 0 | J3: =Clearfell!J3 -> 0 | K3: =Clearfell!K3 -> 0
B4: =Clearfell!B4 -> 4.2 | C4: =Clearfell!C4 -> 4 | D4: =Clearfell!D4 -> 4 | E4: =Clearfell!E4 -> 4 | F4: =Clearfell!F4 -> 4 | G4: =Clearfell!G4 -> 4 | H4: =Clearfell!H4 -> 4 | I4: =Clearfell!I4 -> 4 | J4: =Clearfell!J4 -> 0 | K4: =Clearfell!K4 -> 0
B5: =Clearfell!B5 -> 5.5 | C5: =Clearfell!C5 -> 5.5 | D5: =Clearfell!D5 -> 5.5 | E5: =Clearfell!E5 -> 5.5 | F5: =Clearfell!F5 -> 5.5 | G5: =Clearfell!G5 -> 5.5 | H5: =Clearfell!H5 -> 5.5 | I5: =Clearfell!I5 -> 5.5 | J5: =Clearfell!J5 -> 0 | K5: =Clearfell!K5 -> 0
B6: =Clearfell!B6 -> 300 | C6: =Clearfell!C6 -> 400 | D6: =Clearfell!D6 -> 300 | E6: =Clearfell!E6 -> 200 | F6: =Clearfell!F6 -> 400 | G6: =Clearfell!G6 -> 300 | H6: =Clearfell!H6 -> 200 | I6: =Clearfell!I6 -> 100 | J6: =Clearfell!J6 -> 0 | K6: =Clearfell!K6 -> 0
B7: =Clearfell!B7 -> 0 | C7: =Clearfell!C7 -> 6 | D7: =Clearfell!D7 -> 6 | E7: =Clearfell!E7 -> 6 | F7: =Clearfell!F7 -> 12 | G7: =Clearfell!G7 -> 12 | H7: =Clearfell!H7 -> 12 | I7: =Clearfell!I7 -> 15 | J7: =Clearfell!J7 -> 0 | K7: =Clearfell!K7 -> 0
B8: =Clearfell!B8 -> 1 | C8: =Clearfell!C8 -> 1 | D8: =Clearfell!D8 -> 1 | E8: =Clearfell!E8 -> 1 | F8: =Clearfell!F8 -> 1 | G8: =Clearfell!G8 -> 1 | H8: =Clearfell!H8 -> 1 | I8: =Clearfell!I8 -> 1 | J8: =Clearfell!J8 -> 0 | K8: =Clearfell!K8 -> 0
B9: =Clearfell!B9 -> 0 | C9: =Clearfell!C9 -> 0.05 | D9: =Clearfell!D9 -> 0.05 | E9: =Clearfell!E9 -> 0.1 | F9: =Clearfell!F9 -> 0.05 | G9: =Clearfell!G9 -> 0.1 | H9: =Clearfell!H9 -> 0.15 | I9: =Clearfell!I9 -> 0 | J9: =Clearfell!J9 -> 0 | K9: =Clearfell!K9 -> 0
A11: BIX calculations
A12: BIX calculations | B12: DBH30 | C12: ThinHT | D12: SI | E12: FCS-SPH | H12: BIX1 | I12: BIX2 | J12: BIXn | K12: DOS | L12: Sweep
B13: =atage2(20,'300 Index'!G5:G205,'300 Index'!P5:P205) -> 41.29516878 | C13: =MIN('User interface'!L18:P18) -> 11.87300152 | D13: ='User interface'!D4 -> 28.3 | E13: =E16 -> 0 | H13: =bix1calc(I13,E13) -> 3.006007237 | I13: =bix2calc(B13,C13,D13) -> 4.927880716 | J13: =bixncalc(I13,E13,C13) -> 5.177307148 | K13: =MAX('User interface'!L11:P11) -> 16.71055368 | L13: =conref3('User interface'!D42) -> 8
L14: =L13 -> 8 | M14: Change unit to mm/m
B15: Age | C15: DBH | D15: MH | E15: SPH | F15: BA | G15: VOL | H15: MTH
A16: Stand | B16: =conref4(Summary!F3) -> 0 | C16: =IF(E16>0,ba2dbh(F16,E16),0) -> 0 | D16: =calcmeanht(H16,E16) -> 0 | E16: =conref4('User interface'!N20) -> 0 | F16: =conref4(Summary!F12) -> 0 | G16: =IF('User interface'!F21="P",'User interface'!N22,0) -> 0 | H16: =conref4(Summary!F14) -> 0
A18: Peterson | B18: a | C18: b | F18: minDBH | G18: maxDBH | H18: VarDBH
A19: Parms | B19: =PetersonParms(C16,D16,F16,B16) -> 0 | C19: 0 | F19: =wmindbh(B$16,C16,H$16,E16,F16) -> -10 | G19: =wmaxdbh(B$16,C16,H$16,E16,F16) -> 10 | H19: =Wvar(F19,G19) -> 7.924e-05
A21: Weibull | B21: alpha | C21: beta | D21: gamma | M21: Conversion factor (%) | N21: =('User interface'!D38-'User interface'!D39)/100 -> 0.75
A22: Parms | B22: =Wparms(F19,G19,C16,E16) -> 0 | C22: 0 | D22: =F19^2*PI()/40000-0.01 -> -0.002146018366
A24: Elements | B24: TSV | C24: Pruned Height | D24: =B2 -> Pruned | E24: S1 | F24: S2 | G24: S3 | H24: L1 | I24: L2 | J24: L3 | K24: Pulp | L24: 0 | M24: 0 | N24: Average
A25: Unpruned | B25: =G16-SUM(B26:B30) -> 0 | C25: 0 | D25: =DistLogs(Clearfell!B3:K7,$B16:$H16,$B$22:$D$22,$B$19:$C$19,$B$13:$E$13,$F$19:$G$19,B25:B30,C25:C30) -> 0 | E25: 0 | F25: 0 | G25: 0 | H25: 0 | I25: 0 | J25: 0 | K25: 0 | L25: 0 | M25: 0 | N25: 0 | O25: 0
A26: 1 | B26: =conref4(Summary!D43) -> 0 | C26: ='User interface'!D12 -> 2.4 | D26: 0 | E26: 0 | F26: 0 | G26: 0 | H26: 0 | I26: 0 | J26: 0 | K26: 0 | L26: 0 | M26: 0 | N26: 0 | O26: 0 | P26: average sed unpruned
A27: 2 | B27: =conref4(Summary!E43) -> 0 | C27: ='User interface'!E12 -> 4.6 | D27: 0 | E27: 0 | F27: 0 | G27: 0 | H27: 0 | I27: 0 | J27: 0 | K27: 0 | L27: 0 | M27: 0 | N27: 0 | O27: 0 | P27: average BIX unpruned
A28: 3 | B28: =conref4(Summary!F43) -> 0 | C28: ='User interface'!F12 -> 6 | D28: 0 | E28: 0 | F28: 0 | G28: 0 | H28: 0 | I28: 0 | J28: 0 | K28: 0 | L28: 0 | M28: 0 | N28: 0 | O28: 0 | P28: average lth (m) (pruned logs)
A29: 4 | B29: =conref4(Summary!G43) -> 0 | C29: ='User interface'!G12 -> 0 | D29: 0 | E29: 0 | F29: 0 | G29: 0 | H29: 0 | I29: 0 | J29: 0 | K29: 0 | L29: 0 | M29: 0 | N29: 0 | O29: 0 | P29: average pruned sed (cm)
A30: 5 | B30: =conref4(Summary!H43) -> 0 | C30: ='User interface'!H12 -> 0 | D30: 0 | E30: 0 | F30: 0 | G30: 0 | H30: 0 | I30: 0 | J30: 0 | K30: 0 | L30: 0 | M30: 0 | N30: 0 | O30: 0 | P30: average pruned taper (mm/m)
O31: =plicalc(N28,N29*10,L14,N30,K13*10,SUM(B26:B30)) -> 0 | P31: pli
C33: Adjusted | D33: =ConverAdj(D25:M30,B8:K8,B9:K9,N21,B2:K2,G16) -> 0 | E33: 0 | F33: 0 | G33: 0 | H33: 0 | I33: 0 | J33: 0 | K33: 0 | L33: 0 | M33: 0
B34: Transposed
B35: =IF(D33>0,D33,"") -> 
B36: =IF(E33>0,E33,"") -> 
B37: =IF(F33>0,F33,"") -> 
B38: =IF(G33>0,G33,"") -> 
B39: =IF(H33>0,H33,"") -> 
B40: =IF(I33>0,I33,"") -> 
B41: =IF(J33>0,J33,"") -> 
B42: =IF(K33>0,K33,"") -> 
B43: =IF(L33>0,L33,"") -> 
B44: =IF(M33>0,M33,"") -> 

Sheet Prod thin 4 (hidden)
B2: =Clearfell!B2 -> Pruned | C2: =Clearfell!C2 -> S1 | D2: =Clearfell!D2 -> S2 | E2: =Clearfell!E2 -> S3 | F2: =Clearfell!F2 -> L1 | G2: =Clearfell!G2 -> L2 | H2: =Clearfell!H2 -> L3 | I2: =Clearfell!I2 -> Pulp | J2: =Clearfell!J2 -> 0 | K2: =Clearfell!K2 -> 0
B3: =Clearfell!B3 -> 1 | C3: =Clearfell!C3 -> 0 | D3: =Clearfell!D3 -> 0 | E3: =Clearfell!E3 -> 0 | F3: =Clearfell!F3 -> 0 | G3: =Clearfell!G3 -> 0 | H3: =Clearfell!H3 -> 0 | I3: =Clearfell!I3 -> 0 | J3: =Clearfell!J3 -> 0 | K3: =Clearfell!K3 -> 0
B4: =Clearfell!B4 -> 4.2 | C4: =Clearfell!C4 -> 4 | D4: =Clearfell!D4 -> 4 | E4: =Clearfell!E4 -> 4 | F4: =Clearfell!F4 -> 4 | G4: =Clearfell!G4 -> 4 | H4: =Clearfell!H4 -> 4 | I4: =Clearfell!I4 -> 4 | J4: =Clearfell!J4 -> 0 | K4: =Clearfell!K4 -> 0
B5: =Clearfell!B5 -> 5.5 | C5: =Clearfell!C5 -> 5.5 | D5: =Clearfell!D5 -> 5.5 | E5: =Clearfell!E5 -> 5.5 | F5: =Clearfell!F5 -> 5.5 | G5: =Clearfell!G5 -> 5.5 | H5: =Clearfell!H5 -> 5.5 | I5: =Clearfell!I5 -> 5.5 | J5: =Clearfell!J5 -> 0 | K5: =Clearfell!K5 -> 0
B6: =Clearfell!B6 -> 300 | C6: =Clearfell!C6 -> 400 | D6: =Clearfell!D6 -> 300 | E6: =Clearfell!E6 -> 200 | F6: =Clearfell!F6 -> 400 | G6: =Clearfell!G6 -> 300 | H6: =Clearfell!H6 -> 200 | I6: =Clearfell!I6 -> 100 | J6: =Clearfell!J6 -> 0 | K6: =Clearfell!K6 -> 0
B7: =Clearfell!B7 -> 0 | C7: =Clearfell!C7 -> 6 | D7: =Clearfell!D7 -> 6 | E7: =Clearfell!E7 -> 6 | F7: =Clearfell!F7 -> 12 | G7: =Clearfell!G7 -> 12 | H7: =Clearfell!H7 -> 12 | I7: =Clearfell!I7 -> 15 | J7: =Clearfell!J7 -> 0 | K7: =Clearfell!K7 -> 0
B8: =Clearfell!B8 -> 1 | C8: =Clearfell!C8 -> 1 | D8: =Clearfell!D8 -> 1 | E8: =Clearfell!E8 -> 1 | F8: =Clearfell!F8 -> 1 | G8: =Clearfell!G8 -> 1 | H8: =Clearfell!H8 -> 1 | I8: =Clearfell!I8 -> 1 | J8: =Clearfell!J8 -> 0 | K8: =Clearfell!K8 -> 0
B9: =Clearfell!B9 -> 0 | C9: =Clearfell!C9 -> 0.05 | D9: =Clearfell!D9 -> 0.05 | E9: =Clearfell!E9 -> 0.1 | F9: =Clearfell!F9 -> 0.05 | G9: =Clearfell!G9 -> 0.1 | H9: =Clearfell!H9 -> 0.15 | I9: =Clearfell!I9 -> 0 | J9: =Clearfell!J9 -> 0 | K9: =Clearfell!K9 -> 0
A11: BIX calculations
A12: BIX calculations | B12: DBH30 | C12: ThinHT | D12: SI | E12: FCS-SPH | H12: BIX1 | I12: BIX2 | J12: BIXn | K12: DOS | L12: Sweep
B13: =atage2(20,'300 Index'!G5:G205,'300 Index'!P5:P205) -> 41.29516878 | C13: =MIN('User interface'!L18:P18) -> 11.87300152 | D13: ='User interface'!D4 -> 28.3 | E13: =E16 -> 0 | H13: =bix1calc(I13,E13) -> 3.006007237 | I13: =bix2calc(B13,C13,D13) -> 4.927880716 | J13: =bixncalc(I13,E13,C13) -> 5.177307148 | K13: =MAX('User interface'!L11:P11) -> 16.71055368 | L13: =conref3('User interface'!D42) -> 8
L14: =L13 -> 8 | M14: Change unit to mm/m
B15: Age | C15: DBH | D15: MH | E15: SPH | F15: BA | G15: VOL | H15: MTH
A16: Stand | B16: =conref4(Summary!G3) -> 0 | C16: =IF(E16>0,ba2dbh(F16,E16),0) -> 0 | D16: =calcmeanht(H16,E16) -> 0 | E16: =conref4('User interface'!O20) -> 0 | F16: =conref4(Summary!F12) -> 0 | G16: =IF('User interface'!G21="P",'User interface'!O22,0) -> 0 | H16: =conref4(Summary!G14) -> 0
A18: Peterson | B18: a | C18: b | F18: minDBH | G18: maxDBH | H18: VarDBH
A19: Parms | B19: =PetersonParms(C16,D16,F16,B16) -> 0 | C19: 0 | F19: =wmindbh(B$16,C16,H$16,E16,F16) -> -10 | G19: =wmaxdbh(B$16,C16,H$16,E16,F16) -> 10 | H19: =Wvar(F19,G19) -> 7.924e-05
A21: Weibull | B21: alpha | C21: beta | D21: gamma | M21: Conversion factor (%) | N21: =('User interface'!D38-'User interface'!D39)/100 -> 0.75
A22: Parms | B22: =Wparms(F19,G19,C16,E16) -> 0 | C22: 0 | D22: =F19^2*PI()/40000-0.01 -> -0.002146018366
A24: Elements | B24: TSV | C24: Pruned Height | D24: =B2 -> Pruned | E24: S1 | F24: S2 | G24: S3 | H24: L1 | I24: L2 | J24: L3 | K24: Pulp | L24: 0 | M24: 0 | N24: Average
A25: Unpruned | B25: =G16-SUM(B26:B30) -> 0 | C25: 0 | D25: =DistLogs(Clearfell!B3:K7,$B16:$H16,$B$22:$D$22,$B$19:$C$19,$B$13:$E$13,$F$19:$G$19,B25:B30,C25:C30) -> 0 | E25: 0 | F25: 0 | G25: 0 | H25: 0 | I25: 0 | J25: 0 | K25: 0 | L25: 0 | M25: 0 | N25: 0 | O25: 0
A26: 1 | B26: =conref4(Summary!D46) -> 0 | C26: ='User interface'!D12 -> 2.4 | D26: 0 | E26: 0 | F26: 0 | G26: 0 | H26: 0 | I26: 0 | J26: 0 | K26: 0 | L26: 0 | M26: 0 | N26: 0 | O26: 0 | P26: average sed unpruned
A27: 2 | B27: =conref4(Summary!E46) -> 0 | C27: ='User interface'!E12 -> 4.6 | D27: 0 | E27: 0 | F27: 0 | G27: 0 | H27: 0 | I27: 0 | J27: 0 | K27: 0 | L27: 0 | M27: 0 | N27: 0 | O27: 0 | P27: average BIX unpruned
A28: 3 | B28: =conref4(Summary!F46) -> 0 | C28: ='User interface'!F12 -> 6 | D28: 0 | E28: 0 | F28: 0 | G28: 0 | H28: 0 | I28: 0 | J28: 0 | K28: 0 | L28: 0 | M28: 0 | N28: 0 | O28: 0 | P28: average lth (m) (pruned logs)
A29: 4 | B29: =conref4(Summary!G46) -> 0 | C29: ='User interface'!G12 -> 0 | D29: 0 | E29: 0 | F29: 0 | G29: 0 | H29: 0 | I29: 0 | J29: 0 | K29: 0 | L29: 0 | M29: 0 | N29: 0 | O29: 0 | P29: average pruned sed (cm)
A30: 5 | B30: =conref4(Summary!H46) -> 0 | C30: ='User interface'!H12 -> 0 | D30: 0 | E30: 0 | F30: 0 | G30: 0 | H30: 0 | I30: 0 | J30: 0 | K30: 0 | L30: 0 | M30: 0 | N30: 0 | O30: 0 | P30: average pruned taper (mm/m)
O31: =plicalc(N28,N29*10,L14,N30,K13*10,SUM(B26:B30)) -> 0 | P31: pli
C33: Adjusted | D33: =ConverAdj(D25:M30,B8:K8,B9:K9,N21,B2:K2,G16) -> 0 | E33: 0 | F33: 0 | G33: 0 | H33: 0 | I33: 0 | J33: 0 | K33: 0 | L33: 0 | M33: 0
B34: Transposed
B35: =IF(D33>0,D33,"") -> 
B36: =IF(E33>0,E33,"") -> 
B37: =IF(F33>0,F33,"") -> 
B38: =IF(G33>0,G33,"") -> 
B39: =IF(H33>0,H33,"") -> 
B40: =IF(I33>0,I33,"") -> 
B41: =IF(J33>0,J33,"") -> 
B42: =IF(K33>0,K33,"") -> 
B43: =IF(L33>0,L33,"") -> 
B44: =IF(M33>0,M33,"") -> 

Sheet Prod thin 5 (hidden)
B2: =Clearfell!B2 -> Pruned | C2: =Clearfell!C2 -> S1 | D2: =Clearfell!D2 -> S2 | E2: =Clearfell!E2 -> S3 | F2: =Clearfell!F2 -> L1 | G2: =Clearfell!G2 -> L2 | H2: =Clearfell!H2 -> L3 | I2: =Clearfell!I2 -> Pulp | J2: =Clearfell!J2 -> 0 | K2: =Clearfell!K2 -> 0
B3: =Clearfell!B3 -> 1 | C3: =Clearfell!C3 -> 0 | D3: =Clearfell!D3 -> 0 | E3: =Clearfell!E3 -> 0 | F3: =Clearfell!F3 -> 0 | G3: =Clearfell!G3 -> 0 | H3: =Clearfell!H3 -> 0 | I3: =Clearfell!I3 -> 0 | J3: =Clearfell!J3 -> 0 | K3: =Clearfell!K3 -> 0
B4: =Clearfell!B4 -> 4.2 | C4: =Clearfell!C4 -> 4 | D4: =Clearfell!D4 -> 4 | E4: =Clearfell!E4 -> 4 | F4: =Clearfell!F4 -> 4 | G4: =Clearfell!G4 -> 4 | H4: =Clearfell!H4 -> 4 | I4: =Clearfell!I4 -> 4 | J4: =Clearfell!J4 -> 0 | K4: =Clearfell!K4 -> 0
B5: =Clearfell!B5 -> 5.5 | C5: =Clearfell!C5 -> 5.5 | D5: =Clearfell!D5 -> 5.5 | E5: =Clearfell!E5 -> 5.5 | F5: =Clearfell!F5 -> 5.5 | G5: =Clearfell!G5 -> 5.5 | H5: =Clearfell!H5 -> 5.5 | I5: =Clearfell!I5 -> 5.5 | J5: =Clearfell!J5 -> 0 | K5: =Clearfell!K5 -> 0
B6: =Clearfell!B6 -> 300 | C6: =Clearfell!C6 -> 400 | D6: =Clearfell!D6 -> 300 | E6: =Clearfell!E6 -> 200 | F6: =Clearfell!F6 -> 400 | G6: =Clearfell!G6 -> 300 | H6: =Clearfell!H6 -> 200 | I6: =Clearfell!I6 -> 100 | J6: =Clearfell!J6 -> 0 | K6: =Clearfell!K6 -> 0
B7: =Clearfell!B7 -> 0 | C7: =Clearfell!C7 -> 6 | D7: =Clearfell!D7 -> 6 | E7: =Clearfell!E7 -> 6 | F7: =Clearfell!F7 -> 12 | G7: =Clearfell!G7 -> 12 | H7: =Clearfell!H7 -> 12 | I7: =Clearfell!I7 -> 15 | J7: =Clearfell!J7 -> 0 | K7: =Clearfell!K7 -> 0
B8: =Clearfell!B8 -> 1 | C8: =Clearfell!C8 -> 1 | D8: =Clearfell!D8 -> 1 | E8: =Clearfell!E8 -> 1 | F8: =Clearfell!F8 -> 1 | G8: =Clearfell!G8 -> 1 | H8: =Clearfell!H8 -> 1 | I8: =Clearfell!I8 -> 1 | J8: =Clearfell!J8 -> 0 | K8: =Clearfell!K8 -> 0
B9: =Clearfell!B9 -> 0 | C9: =Clearfell!C9 -> 0.05 | D9: =Clearfell!D9 -> 0.05 | E9: =Clearfell!E9 -> 0.1 | F9: =Clearfell!F9 -> 0.05 | G9: =Clearfell!G9 -> 0.1 | H9: =Clearfell!H9 -> 0.15 | I9: =Clearfell!I9 -> 0 | J9: =Clearfell!J9 -> 0 | K9: =Clearfell!K9 -> 0
A11: BIX calculations
A12: BIX calculations | B12: DBH30 | C12: ThinHT | D12: SI | E12: FCS-SPH | H12: BIX1 | I12: BIX2 | J12: BIXn | K12: DOS | L12: Sweep
B13: =atage2(20,'300 Index'!G5:G205,'300 Index'!P5:P205) -> 41.29516878 | C13: =MIN('User interface'!L18:P18) -> 11.87300152 | D13: ='User interface'!D4 -> 28.3 | E13: =E16 -> 0 | H13: =bix1calc(I13,E13) -> 3.006007237 | I13: =bix2calc(B13,C13,D13) -> 4.927880716 | J13: =bixncalc(I13,E13,C13) -> 5.177307148 | K13: =MAX('User interface'!L11:P11) -> 16.71055368 | L13: =conref3('User interface'!D42) -> 8
L14: =L13 -> 8 | M14: Change unit to mm/m
B15: Age | C15: DBH | D15: MH | E15: SPH | F15: BA | G15: VOL | H15: MTH
A16: Stand | B16: =conref4(Summary!H3) -> 0 | C16: =IF(E16>0,ba2dbh(F16,E16),0) -> 0 | D16: =calcmeanht(H16,E16) -> 0 | E16: =conref4('User interface'!P20) -> 0 | F16: =conref4(Summary!H12) -> 0 | G16: =IF('User interface'!H21="P",'User interface'!P22,0) -> 0 | H16: =conref4(Summary!H14) -> 0
A18: Peterson | B18: a | C18: b | F18: minDBH | G18: maxDBH | H18: VarDBH
A19: Parms | B19: =PetersonParms(C16,D16,F16,B16) -> 0 | C19: 0 | F19: =wmindbh(B$16,C16,H$16,E16,F16) -> -10 | G19: =wmaxdbh(B$16,C16,H$16,E16,F16) -> 10 | H19: =Wvar(F19,G19) -> 7.924e-05
A21: Weibull | B21: alpha | C21: beta | D21: gamma | M21: Conversion factor (%) | N21: =('User interface'!D38-'User interface'!D39)/100 -> 0.75
A22: Parms | B22: =Wparms(F19,G19,C16,E16) -> 0 | C22: 0 | D22: =F19^2*PI()/40000-0.01 -> -0.002146018366
A24: Elements | B24: TSV | C24: Pruned Height | D24: =B2 -> Pruned | E24: S1 | F24: S2 | G24: S3 | H24: L1 | I24: L2 | J24: L3 | K24: Pulp | L24: 0 | M24: 0 | N24: Average
A25: Unpruned | B25: =G16-SUM(B26:B30) -> 0 | C25: 0 | D25: =DistLogs(Clearfell!B3:K7,$B16:$H16,$B$22:$D$22,$B$19:$C$19,$B$13:$E$13,$F$19:$G$19,B25:B30,C25:C30) -> 0 | E25: 0 | F25: 0 | G25: 0 | H25: 0 | I25: 0 | J25: 0 | K25: 0 | L25: 0 | M25: 0 | N25: 0 | O25: 0
A26: 1 | B26: =conref4(Summary!D49) -> 0 | C26: ='User interface'!D12 -> 2.4 | D26: 0 | E26: 0 | F26: 0 | G26: 0 | H26: 0 | I26: 0 | J26: 0 | K26: 0 | L26: 0 | M26: 0 | N26: 0 | O26: 0 | P26: average sed unpruned
A27: 2 | B27: =conref4(Summary!E49) -> 0 | C27: ='User interface'!E12 -> 4.6 | D27: 0 | E27: 0 | F27: 0 | G27: 0 | H27: 0 | I27: 0 | J27: 0 | K27: 0 | L27: 0 | M27: 0 | N27: 0 | O27: 0 | P27: average BIX unpruned
A28: 3 | B28: =conref4(Summary!F49) -> 0 | C28: ='User interface'!F12 -> 6 | D28: 0 | E28: 0 | F28: 0 | G28: 0 | H28: 0 | I28: 0 | J28: 0 | K28: 0 | L28: 0 | M28: 0 | N28: 0 | O28: 0 | P28: average lth (m) (pruned logs)
A29: 4 | B29: =conref4(Summary!G49) -> 0 | C29: ='User interface'!G12 -> 0 | D29: 0 | E29: 0 | F29: 0 | G29: 0 | H29: 0 | I29: 0 | J29: 0 | K29: 0 | L29: 0 | M29: 0 | N29: 0 | O29: 0 | P29: average pruned sed (cm)
A30: 5 | B30: =conref4(Summary!H49) -> 0 | C30: ='User interface'!H12 -> 0 | D30: 0 | E30: 0 | F30: 0 | G30: 0 | H30: 0 | I30: 0 | J30: 0 | K30: 0 | L30: 0 | M30: 0 | N30: 0 | O30: 0 | P30: average pruned taper (mm/m)
O31: =plicalc(N28,N29*10,L14,N30,K13*10,SUM(B26:B30)) -> 0 | P31: pli
C33: Adjusted | D33: =ConverAdj(D25:M30,B8:K8,B9:K9,N21,B2:K2,G16) -> 0 | E33: 0 | F33: 0 | G33: 0 | H33: 0 | I33: 0 | J33: 0 | K33: 0 | L33: 0 | M33: 0
B34: Transposed
B35: =IF(D33>0,D33,"") -> 
B36: =IF(E33>0,E33,"") -> 
B37: =IF(F33>0,F33,"") -> 
B38: =IF(G33>0,G33,"") -> 
B39: =IF(H33>0,H33,"") -> 
B40: =IF(I33>0,I33,"") -> 
B41: =IF(J33>0,J33,"") -> 
B42: =IF(K33>0,K33,"") -> 
B43: =IF(L33>0,L33,"") -> 
B44: =IF(M33>0,M33,"") -> 

Sheet Stand histories (hidden)
K1: CO2 equivalents (t/ha)
A2: Age | B2: DBH | C2: MTH | D2: MH | E2: SPH | F2: BA | G2: VOL | H2: Root Biomass | I2: Grazing | J2: Crown closure | K2: Rotation 1 | L2: Rotation 2
A3: 1 | B3: 0 | C3: 0.7819607947 | D3: 0.7290658939 | E3: 950 | F3: 0 | G3: 0.0716021303 | J3: 0 | K3: 0.1933115918 | L3: 326.8206216
A4: 2 | B4: 0.2966563567 | C4: 1.754166532 | D4: 1.63550947 | E4: 949.8996592 | F4: 0.006566843186 | G4: 0.4317984466 | H4: 0.004320419597 | J4: 0 | K4: 1.112009971 | L4: 279.2887341
A5: 3 | B5: 2.56727393 | C5: 2.968362086 | D5: 2.767585952 | E5: 949.4436982 | F5: 0.4915698456 | G5: 1.27770715 | H5: 0.5428589074 | J5: 1.497255594e-05 | K5: 3.026796988 | L5: 240.445091
A6: 4 | B6: 5.546762027 | C6: 4.340864533 | D6: 4.047272784 | E6: 948.9879049 | F6: 2.293566523 | G6: 5.836714513 | H6: 3.047258048 | J6: 0.007221467998 | K6: 13.70251826 | L6: 216.7550355
A7: 5 | B7: 8.778335699 | C7: 5.819651472 | D7: 5.42606806 | E7: 948.5295852 | F7: 5.741783959 | G7: 16.19920813 | H7: 8.517147643 | J7: 0.06033260128 | K7: 33.96415125 | L7: 207.9751444
A8: 6 | B8: 12.02556754 | C8: 7.368445917 | D8: 6.870151553 | E8: 948.0403961 | F8: 10.76984872 | G8: 34.55042045 | H8: 17.22912993 | J8: 0.1895810336 | K8: 66.52660458 | L8: 215.9402799
A9: 7 | B9: 14.80763912 | C9: 8.960483025 | D9: 8.3545789 | E9: 947.4234342 | F9: 16.31876778 | G9: 59.50750068 | H9: 27.44304913 | J9: 0.2351240047 | K9: 105.8200359 | L9: 234.3542991
A10: 8 | B10: 17.35448288 | C10: 10.57537857 | D10: 9.860371344 | E10: 946.4748341 | F10: 22.3925742 | G10: 92.08424132 | H10: 39.11931381 | J10: 0.321175349 | K10: 153.6608224 | L10: 264.4329711
A11: 9 | B11: 19.64704936 | C11: 12.19731439 | D11: 11.3728289 | E11: 944.9170857 | F11: 28.65233173 | G11: 131.5728117 | H11: 51.56793432 | J11: 0.342049292 | K11: 200.4669378 | L11: 296.0965877
A12: 10 | B12: 21.73853277 | C12: 13.81388373 | D12: 13.27056457 | E12: 306.8309237 | F12: 11.39019556 | G12: 57.83690965 | H12: 21.0036532 | J12: 0.3780997967 | K12: 199.3438103 | L12: 282.0373213
A13: 11 | B13: 23.75287352 | C13: 15.41530636 | D13: 14.80934417 | E13: 306.649083 | F13: 13.59081745 | G13: 75.61900454 | H13: 54.59538278 | J13: 0.4612057102 | K13: 205.9440805 | L13: 277.5639299
A14: 12 | B14: 26.37094122 | C14: 16.99386861 | D14: 16.32628208 | E14: 306.4437082 | F14: 16.74069819 | G14: 101.2263441 | H14: 59.75088528 | J14: 0.5784585813 | K14: 224.0879594 | L14: 286.2098509
A15: 13 | B15: 28.80478805 | C15: 18.54350886 | D15: 17.81559384 | E15: 306.2029046 | F15: 19.9576899 | G15: 130.1866838 | H15: 65.29690475 | J15: 0.2222272176 | K15: 246.1051234 | L15: 300.065086
A16: 14 | B16: 31.04935822 | C16: 20.05950186 | D16: 19.2727798 | E16: 305.917622 | F16: 23.16761603 | G16: 161.9662962 | H16: 71.04849269 | J16: 0.2977969751 | K16: 273.2907098 | L16: 320.2240197
A17: 15 | B17: 33.11428163 | C17: 21.53821286 | D17: 20.69439018 | E17: 305.5800453 | F17: 26.32250782 | G17: 196.0737413 | H17: 76.87432357 | J17: 0.3797503577 | K17: 303.7004569 | L17: 344.5738632
A18: 16 | B18: 35.01441705 | C18: 22.97690271 | D18: 22.07783549 | E18: 305.1838698 | F18: 29.39185337 | G18: 232.0615591 | H18: 82.68193275 | J18: 0.4747539858 | K18: 337.1519188 | L18: 372.7903813
A19: 17 | B19: 36.76485581 | C19: 24.37357102 | D19: 23.4212341 | E19: 304.7243728 | F19: 32.3552323 | G19: 269.5123582 | H19: 88.40308795 | J19: 0.5567345191 | K19: 372.7459404 | L19: 403.8548592
A20: 18 | B20: 38.37915897 | C20: 25.72682862 | D20: 24.72328811 | E20: 304.1983866 | F20: 35.19811531 | G20: 308.030325 | H20: 93.98483332 | J20: 0.6237652196 | K20: 410.0225738 | L20: 437.2063104
A21: 19 | B21: 39.86914256 | C21: 27.03579269 | D21: 25.98318152 | E21: 303.6042137 | F21: 37.90994746 | G21: 347.2408087 | H21: 99.38519498 | J21: 0.6767337647 | K21: 448.3687693 | L21: 472.146111
A22: 20 | B22: 41.24515695 | C22: 28.3 | D22: 27.200496 | E22: 302.9415 | F22: 40.48333561 | G22: 386.794143 | H22: 104.5712697 | J22: 0.7026711694 | K22: 487.3392823 | L22: 508.156383
A23: 21 | B23: 42.51641573 | C23: 29.51933459 | D23: 28.37514095 | E23: 302.211078 | F23: 42.91363137 | G23: 426.3701983 | H23: 109.5181922 | J23: 0.7164961661 | K23: 526.5114197 | L23: 544.752651
A24: 22 | B24: 43.69124842 | C24: 30.69396722 | D24: 29.50729514 | E24: 301.4147921 | F24: 45.1986087 | G24: 465.6818877 | H24: 114.2083074 | J24: 0.7276376962 | K24: 565.5554438 | L24: 581.5525163
A25: 23 | B25: 44.77726985 | C25: 31.82430441 | D25: 30.59735792 | E25: 300.5553174 | F25: 47.3381447 | G25: 504.4770821 | H25: 118.6303374 | J25: 0.7366901674 | K25: 604.1867512 | L25: 618.2263966
A26: 24 | B26: 45.78148902 | C26: 32.9109455 | D26: 31.64590814 | E26: 299.635982 | F26: 49.33389312 | G26: 542.5390006 | H26: 122.7785168 | J26: 0.7440902635 | K26: 642.1758925 | L26: 654.5063488
A27: 25 | B27: 46.7103801 | C27: 33.9546463 | D27: 32.65366979 | E27: 298.6606013 | F27: 51.18896329 | G27: 579.6853637 | H27: 126.65173 | J27: 0.7501647378 | K27: 679.3322376 | L27: 690.1687355
A28: 26 | B28: 47.56993159 | C28: 34.9562883 | D28: 33.62148287 | E28: 297.6333274 | F28: 52.90761804 | G28: 615.7666396 | H28: 130.2526873 | J28: 0.7551625278 | K28: 715.503432 | L28: 725.0328466
A29: 27 | B29: 48.36568356 | C29: 35.91685253 | D29: 34.55027892 | E29: 296.558517 | F29: 54.49500012 | G29: 650.663683 | H29: 133.587166 | J29: 0.7592763918 | K29: 750.5686401 | L29: 758.953443
A30: 28 | B30: 49.10275847 | C30: 36.83739738 | D30: 35.44106036 | E30: 295.4406197 | F30: 55.95689176 | G30: 684.2850132 | H30: 136.6633323 | J30: 0.7626577306 | K30: 784.4358501 | L30: 791.8174745
A31: 29 | B31: 50.0589741 | C31: 37.71903982 | D31: 36.29492447 | E31: 294.2755347 | F31: 57.92814797 | G31: 724.4254258 | H31: 141.0766371 | J31: 0.7654269616 | K31: 827.5737636 | L31: 834.075475
A32: 30 | B32: 51.02883503 | C32: 38.56293938 | D32: 37.11305667 | E32: 293.0500609 | F32: 59.94386199 | G32: 765.5200441 | H32: 145.6644807 | J32: 0.7676809336 | K32: 869.5809041 | L32: 875.3102543
A33: 31 | H33: 74.3888377
A34: 32 | H34: 37.98935161
A35: 33 | H35: 19.40063698
A36: 34 | H36: 9.907637256
A37: 35 | H37: 5.059693456
A38: 36 | H38: 2.58391554
A39: 37 | H39: 1.319569965
A40: 38 | H40: 0.6738861493
A41: 39 | H41: 0.3441443456
A42: 40 | H42: 0.1757497624
A43: 41 | H43: 0.08975297538
A44: 1 | B44: 0 | C44: 0.7819607947 | D44: 0.7299150281 | E44: 855 | F44: 0 | G44: 0.06500010976 | J44: 0 | K44: 0.1755044334 | L44: 364.4038383
A45: 2 | B45: 0.3048499888 | C45: 1.754166532 | D45: 1.637414946 | E45: 854.9055887 | F45: 0.006241114055 | G45: 0.3922434811 | H45: 0.004133055213 | J45: 0 | K45: 1.00999243 | L45: 311.0773891
A46: 3 | B46: 2.579338341 | C46: 2.968362086 | D46: 2.770814365 | E46: 854.4952257 | F46: 0.4465785555 | G46: 1.160764068 | H46: 0.4937285755 | J46: 1.389468115e-05 | K46: 2.749303009 | L46: 267.2774585
A47: 4 | B47: 5.566775972 | C47: 4.340864533 | D47: 4.051999806 | E47: 854.0850254 | F47: 2.079123043 | G47: 5.290994405 | H47: 2.764734895 | J47: 0.006297775382 | K47: 12.41641513 | L47: 238.5670996
A48: 5 | B48: 8.812924767 | C48: 5.819651472 | D48: 5.432413286 | E48: 853.6731816 | F48: 5.208388363 | G48: 14.69434721 | H48: 7.733223795 | J48: 0.05291792314 | K48: 30.7996411 | L48: 224.5347548
A49: 6 | B49: 12.08532088 | C49: 7.368445917 | D49: 6.87819537 | E49: 853.2406297 | F49: 9.789477114 | G49: 31.40532046 | H49: 15.67941531 | J49: 0.1690639685 | K49: 60.44564075 | L49: 226.7391262
A50: 7 | B50: 14.88306835 | C50: 8.960483025 | D50: 8.36437254 | E50: 852.7222505 | F50: 14.83761657 | G50: 54.10638169 | H50: 24.98266371 | J50: 0.2109252083 | K50: 96.15251566 | L50: 239.1632925
A51: 8 | B51: 17.44953551 | C51: 10.57537857 | D51: 9.87194344 | E51: 851.9805436 | F51: 20.37834992 | G51: 83.8012135 | H51: 35.64721027 | J51: 0.2891742774 | K51: 139.4994823 | L51: 262.7127908
A52: 9 | B52: 19.77435999 | C52: 12.19731439 | D52: 11.38619004 | E52: 850.8273845 | F52: 26.13472463 | G52: 120.0118453 | H52: 47.10976272 | J52: 0.3091623837 | K52: 183.1354071 | L52: 289.4785155
A53: 10 | B53: 21.73351712 | C53: 13.81388373 | D53: 13.13932973 | E53: 399.7457646 | F53: 14.83253884 | G53: 75.31637229 | H53: 27.3498596 | J53: 0.3434701293 | K53: 194.0348159 | L53: 285.9719002
A54: 11 | B54: 23.81122378 | C54: 15.41530636 | D54: 14.66293559 | E54: 399.4515753 | F54: 17.79095116 | G54: 98.9884547 | H54: 54.74412082 | J54: 0.4238869464 | K54: 212.1253074 | L54: 291.7353861
A55: 12 | B55: 26.24996595 | C55: 16.99386861 | D55: 16.16497219 | E55: 399.0907965 | F55: 21.60234002 | G55: 130.6233395 | H55: 61.73647206 | J55: 0.5416818234 | K55: 241.1410605 | L55: 310.1821249
A56: 13 | B56: 28.46539255 | C56: 18.54350886 | D56: 17.63974068 | E56: 398.6366461 | F56: 25.37366321 | G56: 165.5158029 | H56: 68.88178031 | J56: 0.2899861457 | K56: 273.1702658 | L56: 333.1321499
A57: 14 | B57: 30.47107309 | C57: 20.05950186 | D57: 19.0828117 | E57: 398.0707893 | F57: 29.03403554 | G57: 202.9788129 | H57: 75.99093523 | J57: 0.3849166857 | K57: 309.5038895 | L57: 361.6519389
A58: 15 | B58: 32.29114881 | C58: 21.53821286 | D58: 20.49079341 | E58: 397.3790221 | F58: 32.5494403 | G58: 242.4575416 | H58: 82.95665367 | J58: 0.4780350241 | K58: 348.170898 | L58: 393.5821101
A59: 16 | B59: 33.95042601 | C59: 22.97690271 | D59: 21.8611432 | E59: 396.5511685 | F59: 35.90552546 | G59: 283.4898539 | H59: 89.71930874 | J59: 0.5712943476 | K59: 389.0187057 | L59: 428.6116996
A60: 17 | B60: 35.47019629 | C60: 24.37357102 | D60: 23.19201654 | E60: 395.5807448 | F60: 39.09614383 | G60: 325.6627498 | H60: 96.24186655 | J60: 0.644520475 | K60: 431.1864746 | L60: 465.7463955
A61: 18 | B61: 36.86757865 | C61: 25.72682862 | D61: 24.48214385 | E61: 394.4646207 | F61: 42.118111 | G61: 368.5894914 | H61: 102.4974845 | J61: 0.6996312507 | K61: 474.3086738 | L61: 504.5079313
A62: 19 | B62: 38.1562166 | C62: 27.03579269 | D62: 25.73072957 | E62: 393.2026907 | F62: 44.96956519 | G62: 411.9042423 | H62: 108.4650927 | J62: 0.7402237708 | K62: 517.890575 | L62: 544.3061486
A63: 20 | B63: 39.34719047 | C63: 28.3 | D63: 26.93736872 | E63: 391.7975278 | F63: 47.64976277 | G63: 455.2650832 | H63: 114.1284024 | J63: 0.7548831826 | K63: 561.6012841 | L63: 584.7291972
A64: 21 | B64: 40.44975658 | C64: 29.51933459 | D64: 28.1019776 | E64: 390.2540079 | F64: 50.15922219 | G64: 498.3590721 | H64: 119.4758822 | J64: 0.7635945753 | K64: 605.1043265 | L64: 625.3717763
A65: 22 | B65: 41.47186026 | C65: 30.69396722 | D65: 29.22473615 | E65: 388.5789113 | F65: 52.4998251 | G65: 540.9064207 | H65: 124.5007485 | J65: 0.7704693725 | K65: 648.1291371 | L65: 665.9046839
A66: 23 | B66: 42.42047039 | C66: 31.82430441 | D66: 30.30603978 | E66: 386.7805195 | F66: 54.67479317 | G66: 582.6628884 | H66: 129.2007306 | J66: 0.7759567753 | K66: 690.4298771 | L66: 706.032022
A67: 24 | B67: 43.30179458 | C67: 32.9109455 | D67: 31.346459 | E67: 384.8682258 | F67: 56.68856259 | G67: 623.4204144 | H67: 133.577631 | J67: 0.7803686481 | K67: 731.8034896 | L67: 745.5079111
A68: 25 | B68: 44.12141964 | C68: 33.9546463 | D68: 32.34670557 | E68: 382.8521739 | F68: 58.54659867 | G68: 663.0063233 | H68: 137.6367638 | J68: 0.7839283085 | K68: 772.0783222 | L68: 784.1239948
A69: 26 | B69: 44.88440716 | C69: 34.9562883 | D69: 33.30760409 | E69: 380.7429348 | F69: 60.25518665 | G69: 701.2815011 | H69: 141.3863474 | J69: 0.7868003514 | K69: 811.1167957 | L69: 821.7111752
A70: 27 | B70: 45.59536195 | C70: 35.91685253 | D70: 34.23006805 | E70: 378.5512282 | F70: 61.82122284 | G70: 738.1378925 | H70: 144.8369065 | J70: 0.7891091927 | K70: 848.8103528 | L70: 858.1337786
A71: 28 | B71: 46.27513197 | C71: 36.83739738 | D71: 35.11508187 | E71: 376.2870499 | F71: 63.29744796 | G71: 774.0511249 | H71: 148.1132129 | J71: 0.7909509197 | K71: 885.8322295 | L71: 894.0416717
A72: 29 | B72: 47.17274842 | C72: 37.71903982 | D72: 35.96376866 | E72: 373.9355788 | F72: 65.36582482 | G72: 817.437932 | H72: 152.9074855 | J72: 0.792401104 | K72: 933.4123587 | L72: 940.6446129
A73: 30 | B73: 48.0477042 | C73: 38.56293938 | D73: 36.77730719 | E73: 371.4797347 | F73: 67.36774423 | G73: 860.3275936 | H73: 157.5931456 | J73: 0.7935201139 | K73: 977.6621895 | L73: 984.0366065
A74: 31 | H74: 80.48064204
A75: 32 | H75: 41.10035192
A76: 33 | H76: 20.98938186
A77: 34 | H77: 10.71898731
A78: 35 | H78: 5.474038719
A79: 36 | H79: 2.795515941
A80: 37 | H80: 1.427631367
A81: 38 | H81: 0.7290716138
A82: 39 | H82: 0.3723267999
A83: 40 | H83: 0.1901421524
A84: 41 | H84: 0.0971029701
A85: 1 | B85: 0 | C85: 0.7819607947 | D85: 0.7311555248 | E85: 760 | F85: 0 | G85: 0.05825304899 | J85: 0 | K85: 0.157300924 | L85: 399.6020507
A86: 2 | B86: 0.3126558523 | C86: 1.754166532 | D86: 1.64019855 | E86: 759.9124303 | F86: 0.005835368269 | G86: 0.3517465298 | H86: 0.003887878175 | J86: 0 | K86: 0.9055863206 | L86: 340.8855692
A87: 3 | B87: 2.590839536 | C87: 2.968362086 | D87: 2.775529717 | E87: 759.547665 | F87: 0.4005047405 | G87: 1.041007245 | H87: 0.4432633132 | J87: 1.258506159e-05 | K87: 2.465258304 | L87: 292.4598187
A88: 4 | B88: 5.585880642 | C88: 4.340864533 | D88: 4.05890274 | E88: 759.1830528 | F88: 1.860807313 | G88: 4.735420116 | H88: 2.476462775 | J88: 0.005387384062 | K88: 11.10843719 | L88: 258.9897103
A89: 5 | B89: 8.846019955 | C89: 5.819651472 | D89: 5.441677614 | E89: 758.8174442 | F89: 4.664496076 | G89: 13.15987214 | H89: 6.931905527 | J89: 0.04554596501 | K89: 27.5753803 | L89: 239.8948335
A90: 6 | B90: 12.14272311 | C90: 7.368445917 | D90: 6.889937492 | E90: 758.4386637 | F90: 8.784645588 | G90: 28.18175134 | H90: 14.08602681 | J90: 0.1480212398 | K90: 54.2197227 | L90: 236.4416304
A91: 7 | B91: 14.92821731 | C91: 8.960483025 | D91: 8.378665717 | E91: 758.0059709 | F91: 13.26966992 | G91: 48.38875719 | H91: 22.35889988 | J91: 0.1857888002 | K91: 85.12795954 | L91: 241.8199139
A92: 8 | B92: 17.4937056 | C92: 10.57537857 | D92: 9.888826391 | E92: 757.4330739 | F92: 18.20872297 | G92: 74.87912845 | H92: 31.87128159 | J92: 0.2563706152 | K92: 123.1982986 | L92: 258.1868978
A93: 9 | B93: 19.85285689 | C93: 12.19731439 | D93: 11.40567291 | E93: 756.5990308 | F93: 23.42520504 | G93: 107.569608 | H93: 42.26582276 | J93: 0.2747939585 | K93: 163.5454832 | L93: 280.0437631
A94: 10 | B94: 21.94466257 | C94: 13.81388373 | D94: 13.04323635 | E94: 499.5991474 | F94: 18.89953415 | G94: 95.96768058 | H94: 34.92998835 | J94: 0.306271565 | K94: 187.7983741 | L94: 288.5102821
A95: 11 | B95: 24.02281457 | C95: 15.41530636 | D95: 14.55576212 | E95: 499.0927286 | F95: 22.62562668 | G95: 125.8884812 | H95: 55.00756573 | J95: 0.382273403 | K95: 218.2008564 | L95: 305.4070503
A96: 12 | B96: 26.27151804 | C96: 16.99386861 | D96: 16.04694967 | E96: 498.426084 | F96: 27.02356833 | G96: 163.4039987 | H96: 63.75383874 | J96: 0.4985525646 | K96: 258.1999537 | L96: 333.8283881
A97: 13 | B97: 28.27276358 | C97: 18.54350886 | D97: 17.511169 | E97: 497.550253 | F97: 31.24244909 | G97: 203.7986791 | H97: 72.33498492 | J97: 0.3664979867 | K97: 300.0237876 | L97: 365.7078912
A98: 14 | B98: 30.05802997 | C98: 20.05950186 | D98: 18.94404502 | E98: 496.4364373 | F98: 35.23353942 | G98: 246.3199439 | H98: 80.60063076 | J98: 0.4746888403 | K98: 344.9504412 | L98: 402.0771575
A99: 15 | B99: 31.66269896 | C99: 21.53821286 | D99: 20.34222886 | E99: 495.0656573 | F99: 38.98793741 | G99: 290.4172659 | H99: 88.49471438 | J99: 0.5696510463 | K99: 391.1033078 | L99: 440.8528421
A100: 16 | B100: 33.11778527 | C100: 22.97690271 | D100: 21.70321135 | E100: 493.4272033 | F100: 42.51255994 | G100: 335.6552857 | H100: 96.0039814 | J100: 0.6526204829 | K100: 438.4430761 | L100: 481.8218469
A101: 17 | B101: 34.4476728 | C101: 24.37357102 | D101: 23.0251733 | E101: 491.5172799 | F101: 45.81737057 | G101: 381.6491711 | H101: 103.1282188 | J101: 0.7122734042 | K101: 486.2937982 | L101: 524.1618104
A102: 18 | B102: 35.67081131 | C102: 25.72682862 | D102: 24.30686358 | E102: 489.3380198 | F102: 48.91099874 | G102: 428.0362941 | H102: 109.8687058 | J102: 0.7540285324 | K102: 534.4596318 | L102: 567.5532636
A103: 19 | B103: 36.80119512 | C103: 27.03579269 | D103: 25.54749904 | E103: 486.8966913 | F103: 51.80029882 | G103: 474.4711839 | H103: 116.225899 | J103: 0.7830417056 | K103: 582.5712179 | L103: 611.5222301
A104: 20 | B104: 37.84969614 | C104: 28.3 | D104: 26.74668174 | E104: 484.2049453 | F104: 54.49110459 | G104: 520.6300267 | H104: 122.2002847 | J104: 0.7906393523 | K104: 630.3775956 | L104: 655.729024
A105: 21 | B105: 38.82503191 | C105: 29.51933459 | D105: 27.90433037 | E105: 481.2780389 | F105: 56.98903248 | G105: 566.216941 | H105: 127.7936773 | J105: 0.7955582347 | K105: 677.5964638 | L105: 699.8159345
A106: 22 | B106: 39.73441011 | C106: 30.69396722 | D106: 29.02062315 | E106: 478.1340402 | F106: 59.30001459 | G106: 610.9688667 | H106: 133.0101019 | J106: 0.7993547322 | K106: 723.9956981 | L106: 743.4866082
A107: 23 | B107: 40.58394436 | C107: 31.82430441 | D107: 30.09595012 | E107: 474.7930435 | F107: 61.43055673 | G107: 654.658272 | H107: 137.8561604 | J107: 0.8023183263 | K107: 769.3591656 | L107: 786.4700922
A108: 24 | B108: 41.37892273 | C108: 32.9109455 | D108: 31.13087334 | E108: 471.2764275 | F108: 63.38779925 | G108: 697.0938452 | H108: 142.3410067 | J108: 0.8046423034 | K108: 813.5076385 | L108: 828.5402741
A109: 25 | B109: 42.12398531 | C109: 33.9546463 | D109: 32.12609347 | E109: 467.6061866 | F109: 65.17945879 | G109: 738.1196228 | H109: 146.4760823 | J109: 0.8064608821 | K109: 856.2894137 | L109: 869.5052737
A110: 26 | B110: 42.82324599 | C110: 34.9562883 | D110: 33.08242178 | E110: 463.8043506 | F110: 66.81370907 | G110: 777.6130288 | H110: 150.2747308 | J110: 0.80787074 | K110: 897.5839924 | L110: 909.2100967
A111: 27 | B111: 43.48037999 | C111: 35.91685253 | D111: 34.00075659 | E111: 459.8925032 | F111: 68.29903826 | G111: 815.4822219 | H111: 153.7517732 | J111: 0.808943797 | K111: 937.2978202 | L111: 947.531517
A112: 28 | B112: 44.16950879 | C112: 36.83739738 | D112: 34.8820803 | E112: 455.8846318 | F112: 69.86693433 | G112: 854.3879866 | H112: 157.4688229 | J112: 0.8097350499 | K112: 979.1036661 | L112: 988.1167348
A113: 29 | B113: 45.0154128 | C113: 37.71903982 | D113: 35.72755542 | E113: 451.7446522 | F113: 71.90963603 | G113: 899.2721247 | H113: 162.393594 | J113: 0.8102875442 | K113: 1028.768413 | L113: 1036.710562
A114: 30 | B114: 45.83314286 | C114: 38.56293938 | D114: 36.53832536 | E114: 447.4643688 | F114: 73.83959946 | G114: 942.9771716 | H114: 167.0900034 | J114: 0.8106356435 | K114: 1075.138647 | L114: 1082.140504
A115: 31 | H115: 85.33055611
A116: 32 | H116: 43.57713602
A117: 33 | H117: 22.25424128
A118: 34 | H118: 11.36493354
A119: 35 | H119: 5.803914535
A120: 36 | H120: 2.963978962
A121: 37 | H121: 1.513663104
A122: 38 | H122: 0.7730068334
A123: 39 | H123: 0.3947639095
A124: 40 | H124: 0.2016004743
A125: 41 | H125: 0.1029545768
